Workbook

Sheet 1. Information Sheet
U1: a
M12: Version | N12: 1.02
E14: Utility Name | F14: Welland Hydro-Electric System Corp.
E16: Service Territory
E18: Assigned EB Number | F18: EB-2016-0110
E20: Name of Contact and Title | F20: Wayne Armstrong, Chief Operating Officer & Director of Finance
E22: Phone Number | F22: 905-732-1381 x234
E24: Email Address | F24: warmstrong@wellandhydro.com
E26: We are applying for rates effective | F26: 2017-05-01
E28: Rate-Setting Method | F28: Cost of Service
A30: Please indicate in which Rate Year the Group 1 accounts were last cleared1 | F30: 2016
A32: Please indicate the last Cost of Service Re-Basing Year | F32: 2013
B35: Notes
C37: Pale green cells represent input cells.
C39: Pale blue cells represent drop-down lists. The applicant should select the appropriate item from the drop-down list.
C41: White cells contain fixed values, automatically generated values or formulae.
A44: Note: 1. Rate year of application

Sheet Sheet1 (hidden)
A1: 1. Information Sheet
A2: Sheet1 | B2: X
A3: 2.2-TSC Current Tariff Schedule | B3: X | C3: X
A4: 2016 List | B4: X
A5: 3. Regulatory Charges | B5: X | C5: X
A6: 4.2-TS Tariff Schedule | B6: X
A7: 4.2-TS Tariff Schedule | B7: X | C7: X
A8: 5. 2-W Bill Impacts | B8: X | C8: X
A9: 20. HIDDEN | B9: X
A10: 20. Bill Impacts hidden | B10: X
A11: 2.1.7 Filing | B11: X
A12: 2 1 5 TotalConsumptionData_Dist | B12: X
A13: 212_Total_Connection_RollUp | B13: X
A14: 2016 Database | B14: X
A15: lists | B15: X
A16: Sheet2 | B16: X

Sheet 2.2-TSC Current Tariff Schedule
AZ1: TRUE
B3: Macro has been activated
B12: Welland Hydro-Electric System Corp. | F12: X | G12: Welland Hydro-Electric System Corp._Start | H12: Welland Hydro-Electric System Corp. | J12: 9
B13: TARIFF OF RATES AND CHARGES
B14: Effective and Implementation Date May 1, 2016 | P14: 2016-05-01
B15: This schedule supersedes and replaces all previously
B16: approved schedules of Rates, Charges and Loss Factors
B17: EB-2015-0109 | H17: EB-2015-0109 | AS17: X
B18: RESIDENTIAL SERVICE CLASSIFICATION | H18: 1_RESIDENTIAL SERVICE CLASSIFICATION | AA18: RESIDENTIAL SERVICE CLASSIFICATION
B19: This classification refers to the supply of electrical energy to residential customers residing in detached or semi-detached units, as defined in the local zoning by-law. Further servicing details are available in the distributor's Conditions of Service. | H19: 1_RESIDENTIAL SERVICE CLASSIFICATION | AA19: This classification refers to the supply of electrical energy to residential customers residing in detached or semi-detached units, as defined in the local zoning by-law. Further servicing details are available in the distributor's Conditions of Service.
B21: APPLICATION | H21: 1_APPLICATION | AA21: APPLICATION
B23: The application of these rates and charges shall be in accordance with the Licence of the Distributor and any Code or Order of the Ontario Energy Board, and amendments thereto as approved by the Ontario Energy Board, which may be applicable to the administration of this schedule. | H23: 1_RESIDENTIAL SERVICE CLASSIFICATION | AA23: The application of these rates and charges shall be in accordance with the Licence of the Distributor and any Code or Order of the Ontario Energy Board, and amendments thereto as approved by the Ontario Energy Board, which may be applicable to the administration of this schedule.
B25: No rates and charges for the distribution of electricity and charges to meet the costs of any work or service done or furnished for the purpose of the distribution of electricity shall be made except as permitted by this schedule, unless required by the Distributor’s Licence or a Code or Order of the Ontario Energy Board, and amendments thereto as approved by the Ontario Energy Board, or as specified herein. | H25: 1_RESIDENTIAL SERVICE CLASSIFICATION | AA25: No rates and charges for the distribution of electricity and charges to meet the costs of any work or service done or furnished for the purpose of the distribution of electricity shall be made except as permitted by this schedule, unless required by the Distributor’s Licence or a Code or Order of the Ontario Energy Board, and amendments thereto as approved by the Ontario Energy Board, or as specified herein.
B27: Unless specifically noted, this schedule does not contain any charges for the electricity commodity, be it under the Regulated Price Plan, a contract with a retailer or the wholesale market price, as applicable. In addition, the charges in the MONTHLY RATES AND CHARGES - Regulatory Component of this schedule do not apply to a customer that is an embedded wholesale market participant. | H27: 1_RESIDENTIAL SERVICE CLASSIFICATION | AA27: Unless specifically noted, this schedule does not contain any charges for the electricity commodity, be it under the Regulated Price Plan, a contract with a retailer or the wholesale market price, as applicable. In addition, the charges in the MONTHLY RATES AND CHARGES - Regulatory Component of this schedule do not apply to a customer that is an embedded wholesale market participant.
B29: It should be noted that this schedule does not list any charges, assessments, or credits that are required by law to be invoiced by a distributor and that are not subject to Ontario Energy Board approval, such as the Debt Retirement Charge, the Global Adjustment and the HST. | H29: 1_RESIDENTIAL SERVICE CLASSIFICATION | AA29: It should be noted that this schedule does not list any charges, assessments, or credits that are required by law to be invoiced by a distributor and that are not subject to Ontario Energy Board approval, such as the Debt Retirement Charge, the Global Adjustment and the HST.
B31: MONTHLY RATES AND CHARGES - Delivery Component | H31: 1_MRC_Del | AA31: MONTHLY RATES AND CHARGES - Delivery Component
B33: Service Charge | D33: $ | E33: 18.7588 | H33: 1_RESIDENTIAL SERVICE CLASSIFICATION | I33: A | M33: 1_RESIDENTIAL SERVICE CLASSIFICATION_MSC | Z33: Service Charge
B34: Rate Rider for Recovery of Stranded Meter Assets - effective until April 30, 2017 | D34: $ | E34: 0.45 | H34: 1_RESIDENTIAL SERVICE CLASSIFICATION | I34: A | M34: 1_RESIDENTIAL SERVICE CLASSIFICATION_SMA | Q34: 2017-04-30 | R34: X | Z34: Rate Rider for Recovery of Stranded Meter Assets - effective until April 30, 2017
B35: Rate Rider for Application of Tax Change (2016) – effective until April 30, 2017 | D35: $ | E35: 0.05 | H35: 1_RESIDENTIAL SERVICE CLASSIFICATION | I35: A | M35: 1_RESIDENTIAL SERVICE CLASSIFICATION_STS | Q35: 2017-04-30 | R35: X | Z35: Rate Rider for Application of Tax Change (2016) – effective until April 30, 2017
B36: Rate Rider for Smart Metering Entity Charge - effective until October 31, 2018 | D36: $ | E36: 0.79 | H36: 1_RESIDENTIAL SERVICE CLASSIFICATION | I36: B | M36: 1_RESIDENTIAL SERVICE CLASSIFICATION_SME | Q36: 2018-10-31 | Z36: Rate Rider for Smart Metering Entity Charge - effective until October 31, 2018
B37: Distribution Volumetric Rate | D37: $/kWh | E37: 0.01050085 | H37: 1_RESIDENTIAL SERVICE CLASSIFICATION | I37: A | M37: 1_RESIDENTIAL SERVICE CLASSIFICATION_DVC | Z37: Distribution Volumetric Rate
B38: Rate Rider for Disposition of Deferral/Variance Accounts (2016) - effective until April 30, 2017 | D38: $/kWh | E38: -0.0019 | H38: 1_RESIDENTIAL SERVICE CLASSIFICATION | I38: B | M38: 1_RESIDENTIAL SERVICE CLASSIFICATION_DEFVAR_ALL | Q38: 2017-04-30 | R38: X | Z38: Rate Rider for Disposition of Deferral/Variance Accounts (2016) - effective until April 30, 2017
B39: Rate Rider for Disposition of Global Adjustment Account (2016) - effective until April 30, 2017 Applicable only for Non-RPP Customers | D39: $/kWh | E39: 0.001 | H39: 1_RESIDENTIAL SERVICE CLASSIFICATION | I39: B | M39: 1_RESIDENTIAL SERVICE CLASSIFICATION_GA_kwh | Q39: 2017-04-30 | R39: X | Z39: Rate Rider for Disposition of Global Adjustment Account (2016) - effective until April 30, 2017 Applicable only for Non-RPP Customers
B40: Retail Transmission Rate - Network Service Rate | D40: $/kWh | E40: 0.0078 | H40: 1_RESIDENTIAL SERVICE CLASSIFICATION | I40: C | M40: 1_RESIDENTIAL SERVICE CLASSIFICATION_Retail Transmission Rate - Network Service Rate | Z40: Retail Transmission Rate - Network Service Rate
B41: Retail Transmission Rate - Line and Transformation Connection Service Rate | D41: $/kWh | E41: 0.0061 | H41: 1_RESIDENTIAL SERVICE CLASSIFICATION | I41: C | M41: 1_RESIDENTIAL SERVICE CLASSIFICATION_Retail Transmission Rate - Line and Transformation Connection Service Rate | Z41: Retail Transmission Rate - Line and Transformation Connection Service Rate
B43: MONTHLY RATES AND CHARGES - Regulatory Component | H43: 1_MRC_Reg | Z43: MONTHLY RATES AND CHARGES - Regulatory Component
B45: Wholesale Market Service Rate | D45: $/kWh | E45: 0.0036 | H45: 1_RESIDENTIAL SERVICE CLASSIFICATION | I45: T | M45: 1_RESIDENTIAL SERVICE CLASSIFICATION_WMSR | Z45: Wholesale Market Service Rate
B46: Rural or Remote Electricity Rate Protection Charge (RRRP) | D46: $/kWh | E46: 0.0013 | H46: 1_RESIDENTIAL SERVICE CLASSIFICATION | I46: T | M46: 1_RESIDENTIAL SERVICE CLASSIFICATION_RRRP | Z46: Rural or Remote Electricity Rate Protection Charge (RRRP)
B47: Ontario Electricity Support Program Charge (OESP) | D47: $/kWh | E47: 0.0011 | H47: 1_RESIDENTIAL SERVICE CLASSIFICATION | I47: T | M47: 1_RESIDENTIAL SERVICE CLASSIFICATION_OESPR | Z47: Ontario Electricity Support Program Charge (OESP)
B48: Standard Supply Service - Administrative Charge (if applicable) | D48: $ | E48: 0.25 | H48: 1_RESIDENTIAL SERVICE CLASSIFICATION | I48: T | M48: 1_RESIDENTIAL SERVICE CLASSIFICATION_SSS | Z48: Standard Supply Service - Administrative Charge (if applicable) | AS48: X
B49: ONTARIO ELECTRICITY SUPPORT PROGRAM RECIPIENTS | H49: 2_ONTARIO ELECTRICITY SUPPORT PROGRAM RECIPIENTS | AA49: ONTARIO ELECTRICITY SUPPORT PROGRAM RECIPIENTS
B50: In addition to the charges specified on page 1 of this tariff of rates and charges, the following credits are to be applied to eligible residential customers. | H50: 2_ONTARIO ELECTRICITY SUPPORT PROGRAM RECIPIENTS | AA50: In addition to the charges specified on page 1 of this tariff of rates and charges, the following credits are to be applied to eligible residential customers.
B52: APPLICATION | H52: 2_APPLICATION | AA52: APPLICATION
B54: The application of the charges are in accordance with the Distribution System Code (Section 9) and subsection 79.2(4) of the Ontario Energy Board Act, 1998. | H54: 2_ONTARIO ELECTRICITY SUPPORT PROGRAM RECIPIENTS | AA54: The application of the charges are in accordance with the Distribution System Code (Section 9) and subsection 79.2(4) of the Ontario Energy Board Act, 1998.
B55: The application of these charges shall be in accordance with the Licence of the Distributor and any Code or Order of the Ontario Energy Board, and amendments thereto as approved by the Ontario Energy Board, which may be applicable to the administration of this schedule. | H55: 2_ONTARIO ELECTRICITY SUPPORT PROGRAM RECIPIENTS | AA55: The application of these charges shall be in accordance with the Licence of the Distributor and any Code or Order of the Ontario Energy Board, and amendments thereto as approved by the Ontario Energy Board, which may be applicable to the administration of this schedule.
B56: In this class: “Aboriginal person” includes a person who is a First Nations person, a Métis person or an Inuit person; “account-holder” means a consumer who has an account with a distributor that falls within a residential-rate classification as specified in a rate order made by the Ontario Energy Board under section 78 of the Act, and who lives at the service address to which the account relates for at least six months in a year; “electricity-intensive medical device” means an oxygen concentrator, a mechanical ventilator, or such other device as may be specified by the Ontario Energy Board; “household” means the account-holder and any other people living at the accountholder’s service address for at least six months in a year, including people other than the account-holder’s spouse, children or other relatives; “household income” means the combined annual after-tax income of all members of a household aged 16 or over; | H56: 2_ONTARIO ELECTRICITY SUPPORT PROGRAM RECIPIENTS | AA56: In this class: “Aboriginal person” includes a person who is a First Nations person, a Métis person or an Inuit person; “account-holder” means a consumer who has an account with a distributor that falls within a residential-rate classification as specified in a rate order made by the Ontario Energy Board under section 78 of the Act, and who lives at the service address to which the account relates for at least six months in a year; “electricity-intensive medical device” means an oxygen concentrator, a mechanical ventilator, or such other device as may be specified by the Ontario Energy Board; “household” means the account-holder and any other people living at the accountholder’s service address for at least six months in a year, including people other than the account-holder’s spouse, children or other relatives; “household income” means the combined annual after-tax income of all members of a household aged 16 or over;
B58: MONTHLY RATES AND CHARGES | H58: 2_MRC | AA58: MONTHLY RATES AND CHARGES
B61: Class A | H61: 2_ONTARIO ELECTRICITY SUPPORT PROGRAM RECIPIENTS | Z61: Class A
B62: (a) account-holders with a household income of $28,000 or less living in a household of one or two persons; (b) account-holders with a household income of between $28,001 and $39,000 living in a household of three persons; (c) account-holders with a household income of between $39,001 and $48,000 living in a household of five persons; and (d) account-holders with a household income of between $48,001 and $52,000 living in a household of seven or more persons; but does not include account-holders in Class E. | H62: 2_ONTARIO ELECTRICITY SUPPORT PROGRAM RECIPIENTS | AA62: (a) account-holders with a household income of $28,000 or less living in a household of one or two persons; (b) account-holders with a household income of between $28,001 and $39,000 living in a household of three persons; (c) account-holders with a household income of between $39,001 and $48,000 living in a household of five persons; and (d) account-holders with a household income of between $48,001 and $52,000 living in a household of seven or more persons; but does not include account-holders in Class E.
B63: OESP Credit | D63: $ | E63: -30 | H63: 2_ONTARIO ELECTRICITY SUPPORT PROGRAM RECIPIENTS | I63: T | M63: 2_ONTARIO ELECTRICITY SUPPORT PROGRAM RECIPIENTS_OESP CREDIT_CLASS A | Z63: OESP Credit
B65: Class B | H65: 2_ONTARIO ELECTRICITY SUPPORT PROGRAM RECIPIENTS | Z65: Class B
B66: (a) account-holders with a household income of $28,000 or less living in a household of three persons; (b) account-holders with a household income of between $28,001 and $39,000 living in a household of four persons; (c) account-holders with a household income of between $39,001 and $48,000 living in a household of six persons; but does not include account-holders in Class F. | H66: 2_ONTARIO ELECTRICITY SUPPORT PROGRAM RECIPIENTS | AA66: (a) account-holders with a household income of $28,000 or less living in a household of three persons; (b) account-holders with a household income of between $28,001 and $39,000 living in a household of four persons; (c) account-holders with a household income of between $39,001 and $48,000 living in a household of six persons; but does not include account-holders in Class F.
B67: OESP Credit | D67: $ | E67: -34 | H67: 2_ONTARIO ELECTRICITY SUPPORT PROGRAM RECIPIENTS | I67: T | M67: 2_ONTARIO ELECTRICITY SUPPORT PROGRAM RECIPIENTS_OESP CREDIT_CLASS B | Z67: OESP Credit
B69: Class C | H69: 2_ONTARIO ELECTRICITY SUPPORT PROGRAM RECIPIENTS | Z69: Class C
B70: (a) account-holders with a household income of $28,000 or less living in a household of four persons; (b) account-holders with a household income of between $28,001 and $39,000 living in a household of five persons; (c) account-holders with a household income of between $39,001 and $48,000 living in a household of seven or more persons; but does not include account-holders in Class G. | H70: 2_ONTARIO ELECTRICITY SUPPORT PROGRAM RECIPIENTS | AA70: (a) account-holders with a household income of $28,000 or less living in a household of four persons; (b) account-holders with a household income of between $28,001 and $39,000 living in a household of five persons; (c) account-holders with a household income of between $39,001 and $48,000 living in a household of seven or more persons; but does not include account-holders in Class G.
B71: OESP Credit | D71: $ | E71: -38 | H71: 2_ONTARIO ELECTRICITY SUPPORT PROGRAM RECIPIENTS | I71: T | M71: 2_ONTARIO ELECTRICITY SUPPORT PROGRAM RECIPIENTS_OESP CREDIT_CLASS C | Z71: OESP Credit
B73: Class D | H73: 2_ONTARIO ELECTRICITY SUPPORT PROGRAM RECIPIENTS | Z73: Class D
B74: (a) account-holders with a household income of $28,000 or less living in a household of five persons; and (b) account-holders with a household income of between $28,001 and $39,000 living in a household of six persons; but does not include account-holders in Class H. | H74: 2_ONTARIO ELECTRICITY SUPPORT PROGRAM RECIPIENTS | AA74: (a) account-holders with a household income of $28,000 or less living in a household of five persons; and (b) account-holders with a household income of between $28,001 and $39,000 living in a household of six persons; but does not include account-holders in Class H.
B75: OESP Credit | D75: $ | E75: -42 | H75: 2_ONTARIO ELECTRICITY SUPPORT PROGRAM RECIPIENTS | I75: T | M75: 2_ONTARIO ELECTRICITY SUPPORT PROGRAM RECIPIENTS_OESP CREDIT_CLASS D | Z75: OESP Credit
B77: Class E | H77: 2_ONTARIO ELECTRICITY SUPPORT PROGRAM RECIPIENTS | Z77: Class E
B78: Class E comprises account-holders with a household income and household size described under Class A who also meet any of the following conditions: (a) the dwelling to which the account relates is heated primarily by electricity; (b) the account-holder or any member of the account-holder’s household is an Aboriginal person; or (c) the account-holder or any member of the account-holder’s household regularly uses, for medical purposes, an electricity-intensive medical device at the dwelling to which the account relates. | H78: 2_ONTARIO ELECTRICITY SUPPORT PROGRAM RECIPIENTS | AA78: Class E comprises account-holders with a household income and household size described under Class A who also meet any of the following conditions: (a) the dwelling to which the account relates is heated primarily by electricity; (b) the account-holder or any member of the account-holder’s household is an Aboriginal person; or (c) the account-holder or any member of the account-holder’s household regularly uses, for medical purposes, an electricity-intensive medical device at the dwelling to which the account relates.
B79: OESP Credit | D79: $ | E79: -45 | H79: 2_ONTARIO ELECTRICITY SUPPORT PROGRAM RECIPIENTS | I79: T | M79: 2_ONTARIO ELECTRICITY SUPPORT PROGRAM RECIPIENTS_OESP CREDIT_CLASS E | Z79: OESP Credit
B81: Class F | H81: 2_ONTARIO ELECTRICITY SUPPORT PROGRAM RECIPIENTS | Z81: Class F
B82: (a) account-holders with a household income of $28,000 or less living in a household of six or more persons; (b) account-holders with a household income of between $28,001 and $39,000 living in a household of seven or more persons; or (c) account-holders with a household income and household size described under Class B who also meet any of the following conditions: | H82: 2_ONTARIO ELECTRICITY SUPPORT PROGRAM RECIPIENTS | AA82: (a) account-holders with a household income of $28,000 or less living in a household of six or more persons; (b) account-holders with a household income of between $28,001 and $39,000 living in a household of seven or more persons; or (c) account-holders with a household income and household size described under Class B who also meet any of the following conditions:
B83: i. the dwelling to which the account relates is heated primarily by electricity; ii. the account-holder or any member of the account-holder’s household is an Aboriginal person; or iii. the account-holder or any member of the account-holder’s household regularly uses, for medical purposes, an electricity-intensive medical device at the dwelling to which the account relates | H83: 2_ONTARIO ELECTRICITY SUPPORT PROGRAM RECIPIENTS | AA83: i. the dwelling to which the account relates is heated primarily by electricity; ii. the account-holder or any member of the account-holder’s household is an Aboriginal person; or iii. the account-holder or any member of the account-holder’s household regularly uses, for medical purposes, an electricity-intensive medical device at the dwelling to which the account relates
B84: OESP Credit | D84: $ | E84: -50 | H84: 2_ONTARIO ELECTRICITY SUPPORT PROGRAM RECIPIENTS | I84: T | M84: 2_ONTARIO ELECTRICITY SUPPORT PROGRAM RECIPIENTS_OESP CREDIT_CLASS F | Z84: OESP Credit
B86: Class G | H86: 2_ONTARIO ELECTRICITY SUPPORT PROGRAM RECIPIENTS | Z86: Class G
B87: Class G comprises account-holders with a household income and household size described under Class C who also meet any of the following conditions: (a) the dwelling to which the account relates is heated primarily by electricity; (b) the account-holder or any member of the account-holder’s household is an Aboriginal person; or (c) the account-holder or any member of the account-holder’s household regularly uses, for medical purposes, an electricity-intensive medical device at the dwelling to which the account relates. | H87: 2_ONTARIO ELECTRICITY SUPPORT PROGRAM RECIPIENTS | AA87: Class G comprises account-holders with a household income and household size described under Class C who also meet any of the following conditions: (a) the dwelling to which the account relates is heated primarily by electricity; (b) the account-holder or any member of the account-holder’s household is an Aboriginal person; or (c) the account-holder or any member of the account-holder’s household regularly uses, for medical purposes, an electricity-intensive medical device at the dwelling to which the account relates.
B88: OESP Credit | D88: $ | E88: -55 | H88: 2_ONTARIO ELECTRICITY SUPPORT PROGRAM RECIPIENTS | I88: T | M88: 2_ONTARIO ELECTRICITY SUPPORT PROGRAM RECIPIENTS_OESP CREDIT_CLASS G | Z88: OESP Credit
B90: Class H | H90: 2_ONTARIO ELECTRICITY SUPPORT PROGRAM RECIPIENTS | Z90: Class H
B91: Class H comprises account-holders with a household income and household size described under Class D who also meet any of the following conditions: (a) the dwelling to which the account relates is heated primarily by electricity; (b) the account-holder or any member of the account-holder’s household is an Aboriginal person ; or (c) the account-holder or any member of the account-holder’s household regularly uses, for medical purposes, an electricity-intensive medical device at the dwelling to which the account relates. | H91: 2_ONTARIO ELECTRICITY SUPPORT PROGRAM RECIPIENTS | AA91: Class H comprises account-holders with a household income and household size described under Class D who also meet any of the following conditions: (a) the dwelling to which the account relates is heated primarily by electricity; (b) the account-holder or any member of the account-holder’s household is an Aboriginal person ; or (c) the account-holder or any member of the account-holder’s household regularly uses, for medical purposes, an electricity-intensive medical device at the dwelling to which the account relates.
B92: OESP Credit | D92: $ | E92: -60 | H92: 2_ONTARIO ELECTRICITY SUPPORT PROGRAM RECIPIENTS | I92: T | M92: 2_ONTARIO ELECTRICITY SUPPORT PROGRAM RECIPIENTS_OESP CREDIT_CLASS H | Z92: OESP Credit
B94: Class I | H94: 2_ONTARIO ELECTRICITY SUPPORT PROGRAM RECIPIENTS | Z94: Class I
B95: Class I comprises account-holders with a household income and household size described under paragraphs (a) or (b) of Class F who also meet any of the following conditions: (a) the dwelling to which the account relates is heated primarily by electricity; (b) the account-holder or any member of the account-holder’s household is an Aboriginal person; or (c) the account-holder or any member of the account-holder’s household regularly uses, for medical purposes, an electricity-intensive medical device at the dwelling to which the account relates. | H95: 2_ONTARIO ELECTRICITY SUPPORT PROGRAM RECIPIENTS | AA95: Class I comprises account-holders with a household income and household size described under paragraphs (a) or (b) of Class F who also meet any of the following conditions: (a) the dwelling to which the account relates is heated primarily by electricity; (b) the account-holder or any member of the account-holder’s household is an Aboriginal person; or (c) the account-holder or any member of the account-holder’s household regularly uses, for medical purposes, an electricity-intensive medical device at the dwelling to which the account relates.
B96: OESP Credit | D96: $ | E96: -75 | H96: 2_ONTARIO ELECTRICITY SUPPORT PROGRAM RECIPIENTS | I96: T | M96: 2_ONTARIO ELECTRICITY SUPPORT PROGRAM RECIPIENTS_OESP CREDIT_CLASS I | Z96: OESP Credit | AS96: X
B97: GENERAL SERVICE LESS THAN 50 KW SERVICE CLASSIFICATION | H97: 3_GENERAL SERVICE LESS THAN 50 kW SERVICE CLASSIFICATION | AA97: GENERAL SERVICE LESS THAN 50 KW SERVICE CLASSIFICATION
B98: This classification refers to the supply of electrical energy to commercial buildings taking electricity at 750 volts or less whose monthly average peak demand is less than, or is forecast to be less than, 50 kW. Commercial buildings are defined as buildings, which are used for purposes other than resident dwellings. Further servicing details are available in the distributor's Conditions of Service. | H98: 3_GENERAL SERVICE LESS THAN 50 kW SERVICE CLASSIFICATION | AA98: This classification refers to the supply of electrical energy to commercial buildings taking electricity at 750 volts or less whose monthly average peak demand is less than, or is forecast to be less than, 50 kW. Commercial buildings are defined as buildings, which are used for purposes other than resident dwellings. Further servicing details are available in the distributor's Conditions of Service.
B100: APPLICATION | H100: 3_APPLICATION | AA100: APPLICATION
B102: The application of these rates and charges shall be in accordance with the Licence of the Distributor and any Code or Order of the Ontario Energy Board, and amendments thereto as approved by the Ontario Energy Board, which may be applicable to the administration of this schedule. | H102: 3_GENERAL SERVICE LESS THAN 50 kW SERVICE CLASSIFICATION | AA102: The application of these rates and charges shall be in accordance with the Licence of the Distributor and any Code or Order of the Ontario Energy Board, and amendments thereto as approved by the Ontario Energy Board, which may be applicable to the administration of this schedule.
B104: No rates and charges for the distribution of electricity and charges to meet the costs of any work or service done or furnished for the purpose of the distribution of electricity shall be made except as permitted by this schedule, unless required by the Distributor’s Licence or a Code or Order of the Ontario Energy Board, and amendments thereto as approved by the Ontario Energy Board, or as specified herein. | H104: 3_GENERAL SERVICE LESS THAN 50 kW SERVICE CLASSIFICATION | AA104: No rates and charges for the distribution of electricity and charges to meet the costs of any work or service done or furnished for the purpose of the distribution of electricity shall be made except as permitted by this schedule, unless required by the Distributor’s Licence or a Code or Order of the Ontario Energy Board, and amendments thereto as approved by the Ontario Energy Board, or as specified herein.
B106: Unless specifically noted, this schedule does not contain any charges for the electricity commodity, be it under the Regulated Price Plan, a contract with a retailer or the wholesale market price, as applicable. In addition, the charges in the MONTHLY RATES AND CHARGES - Regulatory Component of this schedule do not apply to a customer that is an embedded wholesale market participant. | H106: 3_GENERAL SERVICE LESS THAN 50 kW SERVICE CLASSIFICATION | AA106: Unless specifically noted, this schedule does not contain any charges for the electricity commodity, be it under the Regulated Price Plan, a contract with a retailer or the wholesale market price, as applicable. In addition, the charges in the MONTHLY RATES AND CHARGES - Regulatory Component of this schedule do not apply to a customer that is an embedded wholesale market participant.
B108: It should be noted that this schedule does not list any charges, assessments, or credits that are required by law to be invoiced by a distributor and that are not subject to Ontario Energy Board approval, such as the Debt Retirement Charge, the Global Adjustment and the HST. | H108: 3_GENERAL SERVICE LESS THAN 50 kW SERVICE CLASSIFICATION | AA108: It should be noted that this schedule does not list any charges, assessments, or credits that are required by law to be invoiced by a distributor and that are not subject to Ontario Energy Board approval, such as the Debt Retirement Charge, the Global Adjustment and the HST.
B110: MONTHLY RATES AND CHARGES - Delivery Component | H110: 3_MRC_Del | AA110: MONTHLY RATES AND CHARGES - Delivery Component
B112: Service Charge | D112: $ | E112: 29.229065 | H112: 3_GENERAL SERVICE LESS THAN 50 kW SERVICE CLASSIFICATION | I112: A | M112: 3_GENERAL SERVICE LESS THAN 50 kW SERVICE CLASSIFICATION_MSC | Z112: Service Charge
B113: Rate Rider for Recovery of Stranded Meter Assets - effective until April 30, 2017 | D113: $ | E113: 0.48 | H113: 3_GENERAL SERVICE LESS THAN 50 kW SERVICE CLASSIFICATION | I113: A | M113: 3_GENERAL SERVICE LESS THAN 50 kW SERVICE CLASSIFICATION_SMA | Q113: 2017-04-30 | R113: X | Z113: Rate Rider for Recovery of Stranded Meter Assets - effective until April 30, 2017
B114: Rate Rider for Smart Metering Entity Charge - effective until October 31, 2018 | D114: $ | E114: 0.79 | H114: 3_GENERAL SERVICE LESS THAN 50 kW SERVICE CLASSIFICATION | I114: B | M114: 3_GENERAL SERVICE LESS THAN 50 kW SERVICE CLASSIFICATION_SME | Q114: 2018-10-31 | Z114: Rate Rider for Smart Metering Entity Charge - effective until October 31, 2018
B115: Distribution Volumetric Rate | D115: $/kWh | E115: 0.0085638 | H115: 3_GENERAL SERVICE LESS THAN 50 kW SERVICE CLASSIFICATION | I115: A | M115: 3_GENERAL SERVICE LESS THAN 50 kW SERVICE CLASSIFICATION_DVC | Z115: Distribution Volumetric Rate
B116: Rate Rider for Disposition of Deferral/Variance Accounts (2016) - effective until April 30, 2017 | D116: $/kWh | E116: -0.0019 | H116: 3_GENERAL SERVICE LESS THAN 50 kW SERVICE CLASSIFICATION | I116: B | M116: 3_GENERAL SERVICE LESS THAN 50 kW SERVICE CLASSIFICATION_DEFVAR_ALL | Q116: 2017-04-30 | R116: X | Z116: Rate Rider for Disposition of Deferral/Variance Accounts (2016) - effective until April 30, 2017
B117: Rate Rider for Disposition of Global Adjustment Account (2016) - effective until April 30, 2017 Applicable only for Non-RPP Customers | D117: $/kWh | E117: 0.001 | H117: 3_GENERAL SERVICE LESS THAN 50 kW SERVICE CLASSIFICATION | I117: B | M117: 3_GENERAL SERVICE LESS THAN 50 kW SERVICE CLASSIFICATION_GA_kwh | Q117: 2017-04-30 | R117: X | Z117: Rate Rider for Disposition of Global Adjustment Account (2016) - effective until April 30, 2017 Applicable only for Non-RPP Customers
B118: Retail Transmission Rate - Network Service Rate | D118: $/kWh | E118: 0.0069 | H118: 3_GENERAL SERVICE LESS THAN 50 kW SERVICE CLASSIFICATION | I118: C | M118: 3_GENERAL SERVICE LESS THAN 50 kW SERVICE CLASSIFICATION_Retail Transmission Rate - Network Service Rate | Z118: Retail Transmission Rate - Network Service Rate
B119: Retail Transmission Rate - Line and Transformation Connection Service Rate | D119: $/kWh | E119: 0.0052 | H119: 3_GENERAL SERVICE LESS THAN 50 kW SERVICE CLASSIFICATION | I119: C | M119: 3_GENERAL SERVICE LESS THAN 50 kW SERVICE CLASSIFICATION_Retail Transmission Rate - Line and Transformation Connection Service Rate | Z119: Retail Transmission Rate - Line and Transformation Connection Service Rate
B121: MONTHLY RATES AND CHARGES - Regulatory Component | H121: 3_MRC_Reg | Z121: MONTHLY RATES AND CHARGES - Regulatory Component
B123: Wholesale Market Service Rate | D123: $/kWh | E123: 0.0036 | H123: 3_GENERAL SERVICE LESS THAN 50 kW SERVICE CLASSIFICATION | I123: T | M123: 3_GENERAL SERVICE LESS THAN 50 kW SERVICE CLASSIFICATION_WMSR | Z123: Wholesale Market Service Rate
B124: Rural or Remote Electricity Rate Protection Charge (RRRP) | D124: $/kWh | E124: 0.0013 | H124: 3_GENERAL SERVICE LESS THAN 50 kW SERVICE CLASSIFICATION | I124: T | M124: 3_GENERAL SERVICE LESS THAN 50 kW SERVICE CLASSIFICATION_RRRP | Z124: Rural or Remote Electricity Rate Protection Charge (RRRP)
B125: Ontario Electricity Support Program Charge (OESP) | D125: $/kWh | E125: 0.0011 | H125: 3_GENERAL SERVICE LESS THAN 50 kW SERVICE CLASSIFICATION | I125: T | M125: 3_GENERAL SERVICE LESS THAN 50 kW SERVICE CLASSIFICATION_OESPR | Z125: Ontario Electricity Support Program Charge (OESP)
B126: Standard Supply Service - Administrative Charge (if applicable) | D126: $ | E126: 0.25 | H126: 3_GENERAL SERVICE LESS THAN 50 kW SERVICE CLASSIFICATION | I126: T | M126: 3_GENERAL SERVICE LESS THAN 50 kW SERVICE CLASSIFICATION_SSS | Z126: Standard Supply Service - Administrative Charge (if applicable) | AS126: X
B127: GENERAL SERVICE 50 TO 4,999 KW SERVICE CLASSIFICATION | H127: 4_GENERAL SERVICE 50 TO 4,999 KW SERVICE CLASSIFICATION | AA127: GENERAL SERVICE 50 TO 4,999 KW SERVICE CLASSIFICATION
B128: This classification refers to the supply of electrical energy to commercial buildings whose monthly average peak demand is equal to or greater than, or is forecast to be equal to or greater than, 50 kW but less than 5,000 kW. Commercial buildings are defined as buildings, which are used for purposes other than resident dwellings. Further servicing details are available in the distributor's Conditions of Service. | H128: 4_GENERAL SERVICE 50 TO 4,999 KW SERVICE CLASSIFICATION | AA128: This classification refers to the supply of electrical energy to commercial buildings whose monthly average peak demand is equal to or greater than, or is forecast to be equal to or greater than, 50 kW but less than 5,000 kW. Commercial buildings are defined as buildings, which are used for purposes other than resident dwellings. Further servicing details are available in the distributor's Conditions of Service.
B130: APPLICATION | H130: 4_APPLICATION | AA130: APPLICATION
B132: The application of these rates and charges shall be in accordance with the Licence of the Distributor and any Code or Order of the Ontario Energy Board, and amendments thereto as approved by the Ontario Energy Board, which may be applicable to the administration of this schedule. | H132: 4_GENERAL SERVICE 50 TO 4,999 KW SERVICE CLASSIFICATION | AA132: The application of these rates and charges shall be in accordance with the Licence of the Distributor and any Code or Order of the Ontario Energy Board, and amendments thereto as approved by the Ontario Energy Board, which may be applicable to the administration of this schedule.
B134: No rates and charges for the distribution of electricity and charges to meet the costs of any work or service done or furnished for the purpose of the distribution of electricity shall be made except as permitted by this schedule, unless required by the Distributor’s Licence or a Code or Order of the Ontario Energy Board, and amendments thereto as approved by the Ontario Energy Board, or as specified herein. | H134: 4_GENERAL SERVICE 50 TO 4,999 KW SERVICE CLASSIFICATION | AA134: No rates and charges for the distribution of electricity and charges to meet the costs of any work or service done or furnished for the purpose of the distribution of electricity shall be made except as permitted by this schedule, unless required by the Distributor’s Licence or a Code or Order of the Ontario Energy Board, and amendments thereto as approved by the Ontario Energy Board, or as specified herein.
B136: Unless specifically noted, this schedule does not contain any charges for the electricity commodity, be it under the Regulated Price Plan, a contract with a retailer or the wholesale market price, as applicable. In addition, the charges in the MONTHLY RATES AND CHARGES - Regulatory Component of this schedule do not apply to a customer that is an embedded wholesale market participant. | H136: 4_GENERAL SERVICE 50 TO 4,999 KW SERVICE CLASSIFICATION | AA136: Unless specifically noted, this schedule does not contain any charges for the electricity commodity, be it under the Regulated Price Plan, a contract with a retailer or the wholesale market price, as applicable. In addition, the charges in the MONTHLY RATES AND CHARGES - Regulatory Component of this schedule do not apply to a customer that is an embedded wholesale market participant.
B138: It should be noted that this schedule does not list any charges, assessments, or credits that are required by law to be invoiced by a distributor and that are not subject to Ontario Energy Board approval, such as the Debt Retirement Charge, the Global Adjustment and the HST. | H138: 4_GENERAL SERVICE 50 TO 4,999 KW SERVICE CLASSIFICATION | AA138: It should be noted that this schedule does not list any charges, assessments, or credits that are required by law to be invoiced by a distributor and that are not subject to Ontario Energy Board approval, such as the Debt Retirement Charge, the Global Adjustment and the HST.
B140: MONTHLY RATES AND CHARGES - Delivery Component | H140: 4_MRC_Del | AA140: MONTHLY RATES AND CHARGES - Delivery Component
B142: Service Charge | D142: $ | E142: 281.42278 | H142: 4_GENERAL SERVICE 50 TO 4,999 KW SERVICE CLASSIFICATION | I142: A | M142: 4_GENERAL SERVICE 50 TO 4,999 KW SERVICE CLASSIFICATION_MSC | Z142: Service Charge
B143: Distribution Volumetric Rate | D143: $/kW | E143: 2.46137885 | H143: 4_GENERAL SERVICE 50 TO 4,999 KW SERVICE CLASSIFICATION | I143: A | M143: 4_GENERAL SERVICE 50 TO 4,999 KW SERVICE CLASSIFICATION_DVC | Z143: Distribution Volumetric Rate
B144: Rate Rider for Disposition of Deferral/Variance Accounts (2016) - effective until April 30, 2017 | D144: $/kW | E144: -0.1538 | H144: 4_GENERAL SERVICE 50 TO 4,999 KW SERVICE CLASSIFICATION | I144: B | M144: 4_GENERAL SERVICE 50 TO 4,999 KW SERVICE CLASSIFICATION_DEFVAR_ALL | Q144: 2017-04-30 | R144: X | Z144: Rate Rider for Disposition of Deferral/Variance Accounts (2016) - effective until April 30, 2017
B145: Rate Rider for Disposition of Deferral/Variance Accounts (2016) - effective until April 30, 2017 Applicable only for Non-Wholesale Market Participants | D145: $/kW | E145: -0.5468 | H145: 4_GENERAL SERVICE 50 TO 4,999 KW SERVICE CLASSIFICATION | I145: B | M145: 4_GENERAL SERVICE 50 TO 4,999 KW SERVICE CLASSIFICATION_DEFVAR_ALL | Q145: 2017-04-30 | R145: X | Z145: Rate Rider for Disposition of Deferral/Variance Accounts (2016) - effective until April 30, 2017 Applicable only for Non-Wholesale Market Participants
B146: Rate Rider for Disposition of Global Adjustment Account (2016) - effective until April 30, 2017 Applicable only for Non-RPP Customers | D146: $/kW | E146: 0.3888 | H146: 4_GENERAL SERVICE 50 TO 4,999 KW SERVICE CLASSIFICATION | I146: B | M146: 4_GENERAL SERVICE 50 TO 4,999 KW SERVICE CLASSIFICATION_GA_kw | Q146: 2017-04-30 | R146: X | Z146: Rate Rider for Disposition of Global Adjustment Account (2016) - effective until April 30, 2017 Applicable only for Non-RPP Customers
B147: Rate Rider for Application of Tax Change (2016) – effective until April 30, 2017 | D147: $/kW | E147: 0.0066 | H147: 4_GENERAL SERVICE 50 TO 4,999 KW SERVICE CLASSIFICATION | I147: A | M147: 4_GENERAL SERVICE 50 TO 4,999 KW SERVICE CLASSIFICATION_STS | Q147: 2017-04-30 | R147: X | Z147: Rate Rider for Application of Tax Change (2016) – effective until April 30, 2017
B148: Retail Transmission Rate - Network Service Rate | D148: $/kW | E148: 2.3625 | H148: 4_GENERAL SERVICE 50 TO 4,999 KW SERVICE CLASSIFICATION | I148: C | M148: 4_GENERAL SERVICE 50 TO 4,999 KW SERVICE CLASSIFICATION_Retail Transmission Rate - Network Service Rate | Z148: Retail Transmission Rate - Network Service Rate
B149: Retail Transmission Rate - Line and Transformation Connection Service Rate | D149: $/kW | E149: 1.8027 | H149: 4_GENERAL SERVICE 50 TO 4,999 KW SERVICE CLASSIFICATION | I149: C | M149: 4_GENERAL SERVICE 50 TO 4,999 KW SERVICE CLASSIFICATION_Retail Transmission Rate - Line and Transformation Connection Service Rate | Z149: Retail Transmission Rate - Line and Transformation Connection Service Rate
B150: Retail Transmission Rate - Network Service Rate - Interval Metered | D150: $/kW | E150: 2.3434 | H150: 4_GENERAL SERVICE 50 TO 4,999 KW SERVICE CLASSIFICATION | I150: C | M150: 4_GENERAL SERVICE 50 TO 4,999 KW SERVICE CLASSIFICATION_Retail Transmission Rate - Network Service Rate - Interval Metered | Z150: Retail Transmission Rate - Network Service Rate - Interval Metered
B151: Retail Transmission Rate - Line and Transformation Connection Service Rate - Interval Metered | D151: $/kW | E151: 2.1595 | H151: 4_GENERAL SERVICE 50 TO 4,999 KW SERVICE CLASSIFICATION | I151: C | M151: 4_GENERAL SERVICE 50 TO 4,999 KW SERVICE CLASSIFICATION_Retail Transmission Rate - Line and Transformation Connection Service Rate - Interval Metered | Z151: Retail Transmission Rate - Line and Transformation Connection Service Rate - Interval Metered
B153: MONTHLY RATES AND CHARGES - Regulatory Component | H153: 4_MRC_Reg | Z153: MONTHLY RATES AND CHARGES - Regulatory Component
B155: Wholesale Market Service Rate | D155: $/kWh | E155: 0.0036 | H155: 4_GENERAL SERVICE 50 TO 4,999 KW SERVICE CLASSIFICATION | I155: T | M155: 4_GENERAL SERVICE 50 TO 4,999 KW SERVICE CLASSIFICATION_WMSR | Z155: Wholesale Market Service Rate
B156: Rural or Remote Electricity Rate Protection Charge (RRRP) | D156: $/kWh | E156: 0.0013 | H156: 4_GENERAL SERVICE 50 TO 4,999 KW SERVICE CLASSIFICATION | I156: T | M156: 4_GENERAL SERVICE 50 TO 4,999 KW SERVICE CLASSIFICATION_RRRP | Z156: Rural or Remote Electricity Rate Protection Charge (RRRP)
B157: Ontario Electricity Support Program Charge (OESP) | D157: $/kWh | E157: 0.0011 | H157: 4_GENERAL SERVICE 50 TO 4,999 KW SERVICE CLASSIFICATION | I157: T | M157: 4_GENERAL SERVICE 50 TO 4,999 KW SERVICE CLASSIFICATION_OESPR | Z157: Ontario Electricity Support Program Charge (OESP)
B158: Standard Supply Service - Administrative Charge (if applicable) | D158: $ | E158: 0.25 | H158: 4_GENERAL SERVICE 50 TO 4,999 KW SERVICE CLASSIFICATION | I158: T | M158: 4_GENERAL SERVICE 50 TO 4,999 KW SERVICE CLASSIFICATION_SSS | Z158: Standard Supply Service - Administrative Charge (if applicable) | AS158: X
B159: LARGE USE SERVICE CLASSIFICATION | H159: 5_LARGE USE SERVICE CLASSIFICATION | AA159: LARGE USE SERVICE CLASSIFICATION
B160: This classification refers to an account whose monthly average peak demand is equal to or greater than, or is forecast to be equal to or greater than, 5,000 kW. Further servicing details are available in the distributor's Conditions of Service. | H160: 5_LARGE USE SERVICE CLASSIFICATION | AA160: This classification refers to an account whose monthly average peak demand is equal to or greater than, or is forecast to be equal to or greater than, 5,000 kW. Further servicing details are available in the distributor's Conditions of Service.
B162: APPLICATION | H162: 5_APPLICATION | AA162: APPLICATION
B164: The application of these rates and charges shall be in accordance with the Licence of the Distributor and any Code or Order of the Ontario Energy Board, and amendments thereto as approved by the Ontario Energy Board, which may be applicable to the administration of this schedule. | H164: 5_LARGE USE SERVICE CLASSIFICATION | AA164: The application of these rates and charges shall be in accordance with the Licence of the Distributor and any Code or Order of the Ontario Energy Board, and amendments thereto as approved by the Ontario Energy Board, which may be applicable to the administration of this schedule.
B166: No rates and charges for the distribution of electricity and charges to meet the costs of any work or service done or furnished for the purpose of the distribution of electricity shall be made except as permitted by this schedule, unless required by the Distributor’s Licence or a Code or Order of the Ontario Energy Board, and amendments thereto as approved by the Ontario Energy Board, or as specified herein. | H166: 5_LARGE USE SERVICE CLASSIFICATION | AA166: No rates and charges for the distribution of electricity and charges to meet the costs of any work or service done or furnished for the purpose of the distribution of electricity shall be made except as permitted by this schedule, unless required by the Distributor’s Licence or a Code or Order of the Ontario Energy Board, and amendments thereto as approved by the Ontario Energy Board, or as specified herein.
B168: Unless specifically noted, this schedule does not contain any charges for the electricity commodity, be it under the Regulated Price Plan, a contract with a retailer or the wholesale market price, as applicable. In addition, the charges in the MONTHLY RATES AND CHARGES - Regulatory Component of this schedule do not apply to a customer that is an embedded wholesale market participant. | H168: 5_LARGE USE SERVICE CLASSIFICATION | AA168: Unless specifically noted, this schedule does not contain any charges for the electricity commodity, be it under the Regulated Price Plan, a contract with a retailer or the wholesale market price, as applicable. In addition, the charges in the MONTHLY RATES AND CHARGES - Regulatory Component of this schedule do not apply to a customer that is an embedded wholesale market participant.
B170: It should be noted that this schedule does not list any charges, assessments, or credits that are required by law to be invoiced by a distributor and that are not subject to Ontario Energy Board approval, such as the Debt Retirement Charge, the Global Adjustment and the HST. | H170: 5_LARGE USE SERVICE CLASSIFICATION | AA170: It should be noted that this schedule does not list any charges, assessments, or credits that are required by law to be invoiced by a distributor and that are not subject to Ontario Energy Board approval, such as the Debt Retirement Charge, the Global Adjustment and the HST.
B172: MONTHLY RATES AND CHARGES - Delivery Component | H172: 5_MRC_Del | AA172: MONTHLY RATES AND CHARGES - Delivery Component
B174: Service Charge | D174: $ | E174: 8062.22639 | H174: 5_LARGE USE SERVICE CLASSIFICATION | I174: A | M174: 5_LARGE USE SERVICE CLASSIFICATION_MSC | Z174: Service Charge
B175: Distribution Volumetric Rate | D175: $/kW | E175: 0.8347666 | H175: 5_LARGE USE SERVICE CLASSIFICATION | I175: A | M175: 5_LARGE USE SERVICE CLASSIFICATION_DVC | Z175: Distribution Volumetric Rate
B176: Retail Transmission Rate - Network Service Rate | D176: $/kW | E176: 1.717 | H176: 5_LARGE USE SERVICE CLASSIFICATION | I176: C | M176: 5_LARGE USE SERVICE CLASSIFICATION_Retail Transmission Rate - Network Service Rate | Z176: Retail Transmission Rate - Network Service Rate
B177: Retail Transmission Rate - Line and Transformation Connection Service Rate | D177: $/kW | E177: 2.398 | H177: 5_LARGE USE SERVICE CLASSIFICATION | I177: C | M177: 5_LARGE USE SERVICE CLASSIFICATION_Retail Transmission Rate - Line and Transformation Connection Service Rate | Z177: Retail Transmission Rate - Line and Transformation Connection Service Rate
B179: MONTHLY RATES AND CHARGES - Regulatory Component | H179: 5_MRC_Reg | Z179: MONTHLY RATES AND CHARGES - Regulatory Component
B181: Wholesale Market Service Rate | D181: $/kWh | E181: 0.0036 | H181: 5_LARGE USE SERVICE CLASSIFICATION | I181: T | M181: 5_LARGE USE SERVICE CLASSIFICATION_WMSR | Z181: Wholesale Market Service Rate
B182: Rural or Remote Electricity Rate Protection Charge (RRRP) | D182: $/kWh | E182: 0.0013 | H182: 5_LARGE USE SERVICE CLASSIFICATION | I182: T | M182: 5_LARGE USE SERVICE CLASSIFICATION_RRRP | Z182: Rural or Remote Electricity Rate Protection Charge (RRRP)
B183: Ontario Electricity Support Program Charge (OESP) | D183: $/kWh | E183: 0.0011 | H183: 5_LARGE USE SERVICE CLASSIFICATION | I183: T | M183: 5_LARGE USE SERVICE CLASSIFICATION_OESPR | Z183: Ontario Electricity Support Program Charge (OESP)
B184: Standard Supply Service - Administrative Charge (if applicable) | D184: $ | E184: 0.25 | H184: 5_LARGE USE SERVICE CLASSIFICATION | I184: T | M184: 5_LARGE USE SERVICE CLASSIFICATION_SSS | Z184: Standard Supply Service - Administrative Charge (if applicable) | AS184: X
B185: UNMETERED SCATTERED LOAD SERVICE CLASSIFICATION | H185: 6_UNMETERED SCATTERED LOAD SERVICE CLASSIFICATION | AA185: UNMETERED SCATTERED LOAD SERVICE CLASSIFICATION
B186: This classification refers to an account taking electricity at 750 volts or less whose monthly average peak demand is less than, or is forecast to be less than, 50 kW and the consumption is unmetered. Unmetered or flat connections are permitted with the approval of Welland Hydro-Electric System Corp. Engineering Department. Flat rate connects may include, but are not limited to, Traffic Lights, Street Lights, Bus Shelters, and Signs. Energy consumption is determined by information provided by the customer and/or load measurement taken by Welland Hydro-Electric System Corp. following connection of the flat service. Further servicing details are available in the distributor's Conditions of Service. | H186: 6_UNMETERED SCATTERED LOAD SERVICE CLASSIFICATION | AA186: This classification refers to an account taking electricity at 750 volts or less whose monthly average peak demand is less than, or is forecast to be less than, 50 kW and the consumption is unmetered. Unmetered or flat connections are permitted with the approval of Welland Hydro-Electric System Corp. Engineering Department. Flat rate connects may include, but are not limited to, Traffic Lights, Street Lights, Bus Shelters, and Signs. Energy consumption is determined by information provided by the customer and/or load measurement taken by Welland Hydro-Electric System Corp. following connection of the flat service. Further servicing details are available in the distributor's Conditions of Service.
B188: APPLICATION | H188: 6_APPLICATION | AA188: APPLICATION
B190: The application of these rates and charges shall be in accordance with the Licence of the Distributor and any Code or Order of the Ontario Energy Board, and amendments thereto as approved by the Ontario Energy Board, which may be applicable to the administration of this schedule. | H190: 6_UNMETERED SCATTERED LOAD SERVICE CLASSIFICATION | AA190: The application of these rates and charges shall be in accordance with the Licence of the Distributor and any Code or Order of the Ontario Energy Board, and amendments thereto as approved by the Ontario Energy Board, which may be applicable to the administration of this schedule.
B192: No rates and charges for the distribution of electricity and charges to meet the costs of any work or service done or furnished for the purpose of the distribution of electricity shall be made except as permitted by this schedule, unless required by the Distributor’s Licence or a Code or Order of the Ontario Energy Board, and amendments thereto as approved by the Ontario Energy Board, or as specified herein. | H192: 6_UNMETERED SCATTERED LOAD SERVICE CLASSIFICATION | AA192: No rates and charges for the distribution of electricity and charges to meet the costs of any work or service done or furnished for the purpose of the distribution of electricity shall be made except as permitted by this schedule, unless required by the Distributor’s Licence or a Code or Order of the Ontario Energy Board, and amendments thereto as approved by the Ontario Energy Board, or as specified herein.
B194: Unless specifically noted, this schedule does not contain any charges for the electricity commodity, be it under the Regulated Price Plan, a contract with a retailer or the wholesale market price, as applicable. In addition, the charges in the MONTHLY RATES AND CHARGES - Regulatory Component of this schedule do not apply to a customer that is an embedded wholesale market participant. | H194: 6_UNMETERED SCATTERED LOAD SERVICE CLASSIFICATION | AA194: Unless specifically noted, this schedule does not contain any charges for the electricity commodity, be it under the Regulated Price Plan, a contract with a retailer or the wholesale market price, as applicable. In addition, the charges in the MONTHLY RATES AND CHARGES - Regulatory Component of this schedule do not apply to a customer that is an embedded wholesale market participant.
B196: It should be noted that this schedule does not list any charges, assessments, or credits that are required by law to be invoiced by a distributor and that are not subject to Ontario Energy Board approval, such as the Debt Retirement Charge, the Global Adjustment and the HST. | H196: 6_UNMETERED SCATTERED LOAD SERVICE CLASSIFICATION | AA196: It should be noted that this schedule does not list any charges, assessments, or credits that are required by law to be invoiced by a distributor and that are not subject to Ontario Energy Board approval, such as the Debt Retirement Charge, the Global Adjustment and the HST.
B198: MONTHLY RATES AND CHARGES - Delivery Component | H198: 6_MRC_Del | AA198: MONTHLY RATES AND CHARGES - Delivery Component
B200: Service Charge (per connection) | D200: $ | E200: 11.92815 | H200: 6_UNMETERED SCATTERED LOAD SERVICE CLASSIFICATION | I200: A | M200: 6_UNMETERED SCATTERED LOAD SERVICE CLASSIFICATION_MSC | Z200: Service Charge (per connection)
B201: Distribution Volumetric Rate | D201: $/kWh | E201: 0.00785015 | H201: 6_UNMETERED SCATTERED LOAD SERVICE CLASSIFICATION | I201: A | M201: 6_UNMETERED SCATTERED LOAD SERVICE CLASSIFICATION_DVC | Z201: Distribution Volumetric Rate
B202: Rate Rider for Disposition of Deferral/Variance Accounts (2016) - effective until April 30, 2017 | D202: $/kWh | E202: -0.0019 | H202: 6_UNMETERED SCATTERED LOAD SERVICE CLASSIFICATION | I202: B | M202: 6_UNMETERED SCATTERED LOAD SERVICE CLASSIFICATION_DEFVAR_ALL | Q202: 2017-04-30 | R202: X | Z202: Rate Rider for Disposition of Deferral/Variance Accounts (2016) - effective until April 30, 2017
B203: Rate Rider for Disposition of Global Adjustment Account (2016) - effective until April 30, 2017 Applicable only for Non-RPP Customers | D203: $/kWh | E203: 0.001 | H203: 6_UNMETERED SCATTERED LOAD SERVICE CLASSIFICATION | I203: B | M203: 6_UNMETERED SCATTERED LOAD SERVICE CLASSIFICATION_GA_kwh | Q203: 2017-04-30 | R203: X | Z203: Rate Rider for Disposition of Global Adjustment Account (2016) - effective until April 30, 2017 Applicable only for Non-RPP Customers
B204: Rate Rider for Application of Tax Change (2016) – effective until April 30, 2017 | D204: $/kWh | E204: 0.0001 | H204: 6_UNMETERED SCATTERED LOAD SERVICE CLASSIFICATION | I204: A | M204: 6_UNMETERED SCATTERED LOAD SERVICE CLASSIFICATION_STS | Q204: 2017-04-30 | R204: X | Z204: Rate Rider for Application of Tax Change (2016) – effective until April 30, 2017
B205: Retail Transmission Rate - Network Service Rate | D205: $/kWh | E205: 0.0069 | H205: 6_UNMETERED SCATTERED LOAD SERVICE CLASSIFICATION | I205: C | M205: 6_UNMETERED SCATTERED LOAD SERVICE CLASSIFICATION_Retail Transmission Rate - Network Service Rate | Z205: Retail Transmission Rate - Network Service Rate
B206: Retail Transmission Rate - Line and Transformation Connection Service Rate | D206: $/kWh | E206: 0.0052 | H206: 6_UNMETERED SCATTERED LOAD SERVICE CLASSIFICATION | I206: C | M206: 6_UNMETERED SCATTERED LOAD SERVICE CLASSIFICATION_Retail Transmission Rate - Line and Transformation Connection Service Rate | Z206: Retail Transmission Rate - Line and Transformation Connection Service Rate
B208: MONTHLY RATES AND CHARGES - Regulatory Component | H208: 6_MRC_Reg | Z208: MONTHLY RATES AND CHARGES - Regulatory Component
B210: Wholesale Market Service Rate | D210: $/kWh | E210: 0.0036 | H210: 6_UNMETERED SCATTERED LOAD SERVICE CLASSIFICATION | I210: T | M210: 6_UNMETERED SCATTERED LOAD SERVICE CLASSIFICATION_WMSR | Z210: Wholesale Market Service Rate
B211: Rural or Remote Electricity Rate Protection Charge (RRRP) | D211: $/kWh | E211: 0.0013 | H211: 6_UNMETERED SCATTERED LOAD SERVICE CLASSIFICATION | I211: T | M211: 6_UNMETERED SCATTERED LOAD SERVICE CLASSIFICATION_RRRP | Z211: Rural or Remote Electricity Rate Protection Charge (RRRP)
B212: Ontario Electricity Support Program Charge (OESP) | D212: $/kWh | E212: 0.0011 | H212: 6_UNMETERED SCATTERED LOAD SERVICE CLASSIFICATION | I212: T | M212: 6_UNMETERED SCATTERED LOAD SERVICE CLASSIFICATION_OESPR | Z212: Ontario Electricity Support Program Charge (OESP)
B213: Standard Supply Service - Administrative Charge (if applicable) | D213: $ | E213: 0.25 | H213: 6_UNMETERED SCATTERED LOAD SERVICE CLASSIFICATION | I213: T | M213: 6_UNMETERED SCATTERED LOAD SERVICE CLASSIFICATION_SSS | Z213: Standard Supply Service - Administrative Charge (if applicable) | AS213: X
B214: SENTINEL LIGHTING SERVICE CLASSIFICATION | H214: 7_SENTINEL LIGHTING SERVICE CLASSIFICATION | AA214: SENTINEL LIGHTING SERVICE CLASSIFICATION
B215: This classification refers to an account for roadway lighting not classified as unmetered or street lighting. The consumption for the customer will be based on the calculated connected load times a twelve hour day times the applicable billing period. Further servicing details are available in the distributor's Conditions of Service. | H215: 7_SENTINEL LIGHTING SERVICE CLASSIFICATION | AA215: This classification refers to an account for roadway lighting not classified as unmetered or street lighting. The consumption for the customer will be based on the calculated connected load times a twelve hour day times the applicable billing period. Further servicing details are available in the distributor's Conditions of Service.
B217: APPLICATION | H217: 7_APPLICATION | AA217: APPLICATION
B219: The application of these rates and charges shall be in accordance with the Licence of the Distributor and any Code or Order of the Ontario Energy Board, and amendments thereto as approved by the Ontario Energy Board, which may be applicable to the administration of this schedule. | H219: 7_SENTINEL LIGHTING SERVICE CLASSIFICATION | AA219: The application of these rates and charges shall be in accordance with the Licence of the Distributor and any Code or Order of the Ontario Energy Board, and amendments thereto as approved by the Ontario Energy Board, which may be applicable to the administration of this schedule.
B221: No rates and charges for the distribution of electricity and charges to meet the costs of any work or service done or furnished for the purpose of the distribution of electricity shall be made except as permitted by this schedule, unless required by the Distributor’s Licence or a Code or Order of the Ontario Energy Board, and amendments thereto as approved by the Ontario Energy Board, or as specified herein. | H221: 7_SENTINEL LIGHTING SERVICE CLASSIFICATION | AA221: No rates and charges for the distribution of electricity and charges to meet the costs of any work or service done or furnished for the purpose of the distribution of electricity shall be made except as permitted by this schedule, unless required by the Distributor’s Licence or a Code or Order of the Ontario Energy Board, and amendments thereto as approved by the Ontario Energy Board, or as specified herein.
B223: Unless specifically noted, this schedule does not contain any charges for the electricity commodity, be it under the Regulated Price Plan, a contract with a retailer or the wholesale market price, as applicable. In addition, the charges in the MONTHLY RATES AND CHARGES - Regulatory Component of this schedule do not apply to a customer that is an embedded wholesale market participant. | H223: 7_SENTINEL LIGHTING SERVICE CLASSIFICATION | AA223: Unless specifically noted, this schedule does not contain any charges for the electricity commodity, be it under the Regulated Price Plan, a contract with a retailer or the wholesale market price, as applicable. In addition, the charges in the MONTHLY RATES AND CHARGES - Regulatory Component of this schedule do not apply to a customer that is an embedded wholesale market participant.
B225: It should be noted that this schedule does not list any charges, assessments, or credits that are required by law to be invoiced by a distributor and that are not subject to Ontario Energy Board approval, such as the Debt Retirement Charge, the Global Adjustment and the HST. | H225: 7_SENTINEL LIGHTING SERVICE CLASSIFICATION | AA225: It should be noted that this schedule does not list any charges, assessments, or credits that are required by law to be invoiced by a distributor and that are not subject to Ontario Energy Board approval, such as the Debt Retirement Charge, the Global Adjustment and the HST.
B227: MONTHLY RATES AND CHARGES - Delivery Component | H227: 7_MRC_Del | AA227: MONTHLY RATES AND CHARGES - Delivery Component
B229: Service Charge (per connection) | D229: $ | E229: 2.69148 | H229: 7_SENTINEL LIGHTING SERVICE CLASSIFICATION | I229: A | M229: 7_SENTINEL LIGHTING SERVICE CLASSIFICATION_MSC | Z229: Service Charge (per connection)
B230: Distribution Volumetric Rate | D230: $/kW | E230: 6.02514305 | H230: 7_SENTINEL LIGHTING SERVICE CLASSIFICATION | I230: A | M230: 7_SENTINEL LIGHTING SERVICE CLASSIFICATION_DVC | Z230: Distribution Volumetric Rate
B231: Rate Rider for Disposition of Deferral/Variance Accounts (2016) - effective until April 30, 2017 | D231: $/kW | E231: -0.709 | H231: 7_SENTINEL LIGHTING SERVICE CLASSIFICATION | I231: B | M231: 7_SENTINEL LIGHTING SERVICE CLASSIFICATION_DEFVAR_ALL | Q231: 2017-04-30 | R231: X | Z231: Rate Rider for Disposition of Deferral/Variance Accounts (2016) - effective until April 30, 2017
B232: Rate Rider for Application of Tax Change (2016) – effective until April 30, 2017 | D232: $/kW | E232: 0.0297 | H232: 7_SENTINEL LIGHTING SERVICE CLASSIFICATION | I232: A | M232: 7_SENTINEL LIGHTING SERVICE CLASSIFICATION_STS | Q232: 2017-04-30 | R232: X | Z232: Rate Rider for Application of Tax Change (2016) – effective until April 30, 2017
B233: Retail Transmission Rate - Network Service Rate | D233: $/kW | E233: 2.2003 | H233: 7_SENTINEL LIGHTING SERVICE CLASSIFICATION | I233: C | M233: 7_SENTINEL LIGHTING SERVICE CLASSIFICATION_Retail Transmission Rate - Network Service Rate | Z233: Retail Transmission Rate - Network Service Rate
B234: Retail Transmission Rate - Line and Transformation Connection Service Rate | D234: $/kW | E234: 1.6792 | H234: 7_SENTINEL LIGHTING SERVICE CLASSIFICATION | I234: C | M234: 7_SENTINEL LIGHTING SERVICE CLASSIFICATION_Retail Transmission Rate - Line and Transformation Connection Service Rate | Z234: Retail Transmission Rate - Line and Transformation Connection Service Rate
B236: MONTHLY RATES AND CHARGES - Regulatory Component | H236: 7_MRC_Reg | Z236: MONTHLY RATES AND CHARGES - Regulatory Component
B238: Wholesale Market Service Rate | D238: $/kWh | E238: 0.0036 | H238: 7_SENTINEL LIGHTING SERVICE CLASSIFICATION | I238: T | M238: 7_SENTINEL LIGHTING SERVICE CLASSIFICATION_WMSR | Z238: Wholesale Market Service Rate
B239: Rural or Remote Electricity Rate Protection Charge (RRRP) | D239: $/kWh | E239: 0.0013 | H239: 7_SENTINEL LIGHTING SERVICE CLASSIFICATION | I239: T | M239: 7_SENTINEL LIGHTING SERVICE CLASSIFICATION_RRRP | Z239: Rural or Remote Electricity Rate Protection Charge (RRRP)
B240: Ontario Electricity Support Program Charge (OESP) | D240: $/kWh | E240: 0.0011 | H240: 7_SENTINEL LIGHTING SERVICE CLASSIFICATION | I240: T | M240: 7_SENTINEL LIGHTING SERVICE CLASSIFICATION_OESPR | Z240: Ontario Electricity Support Program Charge (OESP)
B241: Standard Supply Service - Administrative Charge (if applicable) | D241: $ | E241: 0.25 | H241: 7_SENTINEL LIGHTING SERVICE CLASSIFICATION | I241: T | M241: 7_SENTINEL LIGHTING SERVICE CLASSIFICATION_SSS | Z241: Standard Supply Service - Administrative Charge (if applicable) | AS241: X
B242: STREET LIGHTING SERVICE CLASSIFICATION | H242: 8_STREET LIGHTING SERVICE CLASSIFICATION | AA242: STREET LIGHTING SERVICE CLASSIFICATION
B243: This classification refers to the Street Lighting system owned by the City of Welland. Welland Hydro-Electric System Corp. provides new installations and maintenance of the street lighting system, as required by the City of Welland. Further servicing details are available in the distributor's Conditions of Service. | H243: 8_STREET LIGHTING SERVICE CLASSIFICATION | AA243: This classification refers to the Street Lighting system owned by the City of Welland. Welland Hydro-Electric System Corp. provides new installations and maintenance of the street lighting system, as required by the City of Welland. Further servicing details are available in the distributor's Conditions of Service.
B245: APPLICATION | H245: 8_APPLICATION | AA245: APPLICATION
B247: The application of these rates and charges shall be in accordance with the Licence of the Distributor and any Code or Order of the Ontario Energy Board, and amendments thereto as approved by the Ontario Energy Board, which may be applicable to the administration of this schedule. | H247: 8_STREET LIGHTING SERVICE CLASSIFICATION | AA247: The application of these rates and charges shall be in accordance with the Licence of the Distributor and any Code or Order of the Ontario Energy Board, and amendments thereto as approved by the Ontario Energy Board, which may be applicable to the administration of this schedule.
B249: No rates and charges for the distribution of electricity and charges to meet the costs of any work or service done or furnished for the purpose of the distribution of electricity shall be made except as permitted by this schedule, unless required by the Distributor’s Licence or a Code or Order of the Ontario Energy Board, and amendments thereto as approved by the Ontario Energy Board, or as specified herein. | H249: 8_STREET LIGHTING SERVICE CLASSIFICATION | AA249: No rates and charges for the distribution of electricity and charges to meet the costs of any work or service done or furnished for the purpose of the distribution of electricity shall be made except as permitted by this schedule, unless required by the Distributor’s Licence or a Code or Order of the Ontario Energy Board, and amendments thereto as approved by the Ontario Energy Board, or as specified herein.
B251: Unless specifically noted, this schedule does not contain any charges for the electricity commodity, be it under the Regulated Price Plan, a contract with a retailer or the wholesale market price, as applicable. In addition, the charges in the MONTHLY RATES AND CHARGES - Regulatory Component of this schedule do not apply to a customer that is an embedded wholesale market participant. | H251: 8_STREET LIGHTING SERVICE CLASSIFICATION | AA251: Unless specifically noted, this schedule does not contain any charges for the electricity commodity, be it under the Regulated Price Plan, a contract with a retailer or the wholesale market price, as applicable. In addition, the charges in the MONTHLY RATES AND CHARGES - Regulatory Component of this schedule do not apply to a customer that is an embedded wholesale market participant.
B253: It should be noted that this schedule does not list any charges, assessments, or credits that are required by law to be invoiced by a distributor and that are not subject to Ontario Energy Board approval, such as the Debt Retirement Charge, the Global Adjustment and the HST. | H253: 8_STREET LIGHTING SERVICE CLASSIFICATION | AA253: It should be noted that this schedule does not list any charges, assessments, or credits that are required by law to be invoiced by a distributor and that are not subject to Ontario Energy Board approval, such as the Debt Retirement Charge, the Global Adjustment and the HST.
B255: MONTHLY RATES AND CHARGES - Delivery Component | H255: 8_MRC_Del | AA255: MONTHLY RATES AND CHARGES - Delivery Component
B257: Service Charge (per device) | D257: $ | E257: 1.988025 | H257: 8_STREET LIGHTING SERVICE CLASSIFICATION | I257: A | M257: 8_STREET LIGHTING SERVICE CLASSIFICATION_MSC | Z257: Service Charge (per device)
B258: Distribution Volumetric Rate | D258: $/kW | E258: 8.35429275 | H258: 8_STREET LIGHTING SERVICE CLASSIFICATION | I258: A | M258: 8_STREET LIGHTING SERVICE CLASSIFICATION_DVC | Z258: Distribution Volumetric Rate
B259: Rate Rider for Disposition of Deferral/Variance Accounts (2016) - effective until April 30, 2017 | D259: $/kW | E259: -0.7829 | H259: 8_STREET LIGHTING SERVICE CLASSIFICATION | I259: B | M259: 8_STREET LIGHTING SERVICE CLASSIFICATION_DEFVAR_ALL | Q259: 2017-04-30 | R259: X | Z259: Rate Rider for Disposition of Deferral/Variance Accounts (2016) - effective until April 30, 2017
B260: Rate Rider for Disposition of Global Adjustment Account (2016) - effective until April 30, 2017 Applicable only for Non-RPP Customers | D260: $/kW | E260: 0.3725 | H260: 8_STREET LIGHTING SERVICE CLASSIFICATION | I260: B | M260: 8_STREET LIGHTING SERVICE CLASSIFICATION_GA_kw | Q260: 2017-04-30 | R260: X | Z260: Rate Rider for Disposition of Global Adjustment Account (2016) - effective until April 30, 2017 Applicable only for Non-RPP Customers
B261: Rate Rider for Application of Tax Change (2016) – effective until April 30, 2017 | D261: $/kW | E261: 0.0533 | H261: 8_STREET LIGHTING SERVICE CLASSIFICATION | I261: A | M261: 8_STREET LIGHTING SERVICE CLASSIFICATION_STS | Q261: 2017-04-30 | R261: X | Z261: Rate Rider for Application of Tax Change (2016) – effective until April 30, 2017
B262: Retail Transmission Rate - Network Service Rate | D262: $/kW | E262: 2.1955 | H262: 8_STREET LIGHTING SERVICE CLASSIFICATION | I262: C | M262: 8_STREET LIGHTING SERVICE CLASSIFICATION_Retail Transmission Rate - Network Service Rate | Z262: Retail Transmission Rate - Network Service Rate
B263: Retail Transmission Rate - Line and Transformation Connection Service Rate | D263: $/kW | E263: 1.6755 | H263: 8_STREET LIGHTING SERVICE CLASSIFICATION | I263: C | M263: 8_STREET LIGHTING SERVICE CLASSIFICATION_Retail Transmission Rate - Line and Transformation Connection Service Rate | Z263: Retail Transmission Rate - Line and Transformation Connection Service Rate
B265: MONTHLY RATES AND CHARGES - Regulatory Component | H265: 8_MRC_Reg | Z265: MONTHLY RATES AND CHARGES - Regulatory Component
B267: Wholesale Market Service Rate | D267: $/kWh | E267: 0.0036 | H267: 8_STREET LIGHTING SERVICE CLASSIFICATION | I267: T | M267: 8_STREET LIGHTING SERVICE CLASSIFICATION_WMSR | Z267: Wholesale Market Service Rate
B268: Rural or Remote Electricity Rate Protection Charge (RRRP) | D268: $/kWh | E268: 0.0013 | H268: 8_STREET LIGHTING SERVICE CLASSIFICATION | I268: T | M268: 8_STREET LIGHTING SERVICE CLASSIFICATION_RRRP | Z268: Rural or Remote Electricity Rate Protection Charge (RRRP)
B269: Ontario Electricity Support Program Charge (OESP) | D269: $/kWh | E269: 0.0011 | H269: 8_STREET LIGHTING SERVICE CLASSIFICATION | I269: T | M269: 8_STREET LIGHTING SERVICE CLASSIFICATION_OESPR | Z269: Ontario Electricity Support Program Charge (OESP)
B270: Standard Supply Service - Administrative Charge (if applicable) | D270: $ | E270: 0.25 | H270: 8_STREET LIGHTING SERVICE CLASSIFICATION | I270: T | M270: 8_STREET LIGHTING SERVICE CLASSIFICATION_SSS | Z270: Standard Supply Service - Administrative Charge (if applicable) | AS270: X
B271: microFIT SERVICE CLASSIFICATION | H271: 9_microFIT SERVICE CLASSIFICATION | AA271: microFIT SERVICE CLASSIFICATION
B272: This classification applies to an electricity generation facility contracted under the Independent Electricity System Operator's microFIT program and connected to the distributor's distribution system. Further servicing details are available in the distributor's Conditions of Service. | H272: 9_microFIT SERVICE CLASSIFICATION | AA272: This classification applies to an electricity generation facility contracted under the Independent Electricity System Operator's microFIT program and connected to the distributor's distribution system. Further servicing details are available in the distributor's Conditions of Service.
B274: APPLICATION | H274: 9_APPLICATION | AA274: APPLICATION
B276: The application of these rates and charges shall be in accordance with the Licence of the Distributor and any Code or Order of the Ontario Energy Board, and amendments thereto as approved by the Ontario Energy Board, which may be applicable to the administration of this schedule. | H276: 9_microFIT SERVICE CLASSIFICATION | AA276: The application of these rates and charges shall be in accordance with the Licence of the Distributor and any Code or Order of the Ontario Energy Board, and amendments thereto as approved by the Ontario Energy Board, which may be applicable to the administration of this schedule.
B278: No rates and charges for the distribution of electricity and charges to meet the costs of any work or service done or furnished for the purpose of the distribution of electricity shall be made except as permitted by this schedule, unless required by the Distributor’s Licence or a Code or Order of the Ontario Energy Board, and amendments thereto as approved by the Ontario Energy Board, or as specified herein. | H278: 9_microFIT SERVICE CLASSIFICATION | AA278: No rates and charges for the distribution of electricity and charges to meet the costs of any work or service done or furnished for the purpose of the distribution of electricity shall be made except as permitted by this schedule, unless required by the Distributor’s Licence or a Code or Order of the Ontario Energy Board, and amendments thereto as approved by the Ontario Energy Board, or as specified herein.
B280: Unless specifically noted, this schedule does not contain any charges for the electricity commodity, be it under the Regulated Price Plan, a contract with a retailer or the wholesale market price, as applicable. | H280: 9_microFIT SERVICE CLASSIFICATION | AA280: Unless specifically noted, this schedule does not contain any charges for the electricity commodity, be it under the Regulated Price Plan, a contract with a retailer or the wholesale market price, as applicable.
B282: It should be noted that this schedule does not list any charges, assessments, or credits that are required by law to be invoiced by a distributor and that are not subject to Ontario Energy Board approval, such as the Debt Retirement Charge, the Global Adjustment and the HST. | H282: 9_microFIT SERVICE CLASSIFICATION | AA282: It should be noted that this schedule does not list any charges, assessments, or credits that are required by law to be invoiced by a distributor and that are not subject to Ontario Energy Board approval, such as the Debt Retirement Charge, the Global Adjustment and the HST.
B284: MONTHLY RATES AND CHARGES - Delivery Component | H284: 9_MRC_Del | AA284: MONTHLY RATES AND CHARGES - Delivery Component
B286: Service Charge | D286: $ | E286: 5.4 | H286: 9_microFIT SERVICE CLASSIFICATION | I286: A | M286: 9_microFIT SERVICE CLASSIFICATION_MSC | Z286: Service Charge
AS287: X
B288: ALLOWANCES | H288: Welland Hydro-Electric System Corp._ALLOWANCES | Z288: ALLOWANCES
B289: Transformer Allowance for Ownership - per kW of billing demand/month | D289: $/kW | E289: -0.7 | Z289: Transformer Allowance for Ownership - per kW of billing demand/month
B290: Primary Metering Allowance for transformer losses - applied to measured demand and energy | D290: % | E290: -1 | I290: T | Z290: Primary Metering Allowance for transformer losses - applied to measured demand and energy | AS290: X
B291: SPECIFIC SERVICE CHARGES | H291: Welland Hydro-Electric System Corp._SSC | Z291: SPECIFIC SERVICE CHARGES
B292: The application of these rates and charges shall be in accordance with the Licence of the Distributor and any Code or Order of the Ontario Energy Board, and amendments thereto as approved by the Ontario Energy Board, which may be applicable to the administration of this schedule. | AA292: The application of these rates and charges shall be in accordance with the Licence of the Distributor and any Code or Order of the Ontario Energy Board, and amendments thereto as approved by the Ontario Energy Board, which may be applicable to the administration of this schedule.
... 49 more rows

Sheet 2016 List (hidden)
A1: Algoma Power Inc. | B1: HHPNS717 | C1: Fort Erie Service Area | D1: X | I1: RESIDENTIAL SERVICE CLASSIFICATION | Q1: RESIDENTIAL SERVICE CLASSIFICATION | X1: 9 | Y1: 0
A2: Atikokan Hydro Inc. | B2: WKBSV849 | C2: Eastern Ontario Power Service Area | D2: X | I2: GENERAL SERVICE LESS THAN 50 kW SERVICE CLASSIFICATION | Q2: GENERAL SERVICE LESS THAN 50 kW SERVICE CLASSIFICATION | AA2: Retail Transmission Rate - Line and Transformation Connection Service Rate
A3: Bluewater Power Distribution Corporation | B3: NJYBW716 | C3: Port Colborne Service Area | I3: GENERAL SERVICE 50 TO 4,999 KW SERVICE CLASSIFICATION | Q3: GENERAL SERVICE 50 TO 4,999 KW SERVICE CLASSIFICATION | AA3: Retail Transmission Rate - Line and Transformation Connection Service Rate - < 1,000 kW
A4: Brant County Power Inc. | B4: GQQHM388 | D4: X | I4: LARGE USE SERVICE CLASSIFICATION | Q4: LARGE USE SERVICE CLASSIFICATION | AA4: Retail Transmission Rate - Line and Transformation Connection Service Rate - Interval Metered
A5: Brantford Power Inc. | B5: SFXZP935 | C5: Former Chatham-Kent Hydro Service Area | D5: X | I5: UNMETERED SCATTERED LOAD SERVICE CLASSIFICATION | Q5: UNMETERED SCATTERED LOAD SERVICE CLASSIFICATION | AA5: Retail Transmission Rate - Line and Transformation Connection Service Rate - Interval Metered (1,000 to 4,999 kW)
A6: Burlington Hydro Inc. | B6: OARZC118 | C6: Strathroy, Mount Brydges & Parkhill Service Area | I6: SENTINEL LIGHTING SERVICE CLASSIFICATION | Q6: SENTINEL LIGHTING SERVICE CLASSIFICATION | AA6: Retail Transmission Rate - Line and Transformation Connection Service Rate - Interval Metered < 1,000 kW
A7: Cambridge and North Dumfries Hydro Inc. | B7: HJHBH994 | C7: Dutton Service Area | I7: STREET LIGHTING SERVICE CLASSIFICATION | Q7: STREET LIGHTING SERVICE CLASSIFICATION | AA7: Retail Transmission Rate - Line and Transformation Connection Service Rate - Interval Metered > 1,000 kW
A8: Canadian Niagara Power Inc. | B8: KQEEH473 | C8: Newbury Service Area | D8: X | I8: microFIT SERVICE CLASSIFICATION | AA8: Retail Transmission Rate - Line Connection Service Rate
A9: Centre Wellington Hydro Ltd. | B9: CPEFQ593 | AA9: Retail Transmission Rate - Transformation Connection Service Rate
A10: Chapleau Public Utilities Corporation | B10: QXHJU641 | C10: Former Lakeland Power Service Area
A11: Collus PowerStream Corp. | B11: AVXSO594 | C11: Former Parry Sound Service Area
A12: Cooperative Hydro Embrun Inc. | B12: JMNNR431
A13: E.L.K. Energy Inc. | B13: JKBZG525
A14: Enersource Hydro Mississauga Inc. | B14: YEOQG654
A15: Entegrus Powerlines Inc. | B15: PTLUC812
A16: EnWin Utilities Ltd. | B16: ADICB565
A17: Erie Thames Powerlines Corporation | B17: LRECV427
A18: Espanola Regional Hydro Distribution Corporation | B18: KTCNY552
A19: Essex Powerlines Corporation | B19: YEPCI143 | D19: X
A20: Festival Hydro Inc. | B20: GRHTW113 | D20: X | AA20: Retail Transmission Rate - Network Service Rate
A21: Fort Frances Power Corporation | B21: GMGHU415 | AA21: Retail Transmission Rate - Network Service Rate - < 1,000 kW
A22: Greater Sudbury Hydro Inc. | B22: YTPWF351 | AA22: Retail Transmission Rate - Network Service Rate - Interval Metered
A23: Grimsby Power Incorporated | B23: YCYKQ642 | AA23: Retail Transmission Rate - Network Service Rate - Interval Metered (1,000 to 4,999 kW)
A24: Guelph Hydro Electric Systems Inc. | B24: ADZFM459 | AA24: Retail Transmission Rate - Network Service Rate - Interval Metered < 1,000 kW
A25: Haldimand County Hydro Inc. | B25: RVWKN794 | AA25: Retail Transmission Rate - Network Service Rate - Interval Metered > 1,000 kW
A26: Halton Hills Hydro Inc. | B26: KESKM585
A27: Hearst Power Distribution Company Ltd. | B27: MQFNL784
A28: Horizon Utilities Corporation | B28: FNDHH648
A29: Hydro 2000 Inc. | B29: PTREM828
A30: Hydro Hawkesbury Inc. | B30: UBBYF452
A31: Hydro One Brampton Networks Inc. | B31: NSBED625
A32: Hydro One Networks Inc. (Norfolk Power Distribution Inc.) | B32: TXKTT167
A33: Hydro One Remote Communities Inc. | B33: ZHKLA874
A34: Hydro Ottawa Limited | B34: YLJHT264
A35: InnPower Corporation | B35: YLCEC559
A36: Kenora Hydro Electric Corporation Ltd. | B36: NHKJF259
A37: Kingston Hydro Corporation | B37: SLRXO177
A38: Kitchener-Wilmot Hydro Inc. | B38: UIFEM157 | D38: X
A39: Lakefront Utilities Inc. | B39: RUZIU984 | D39: X
A40: Lakeland Power Distribution Ltd. | B40: KSUYD122 | D40: X
A41: London Hydro Inc. | B41: QHCKN852 | D41: X
A42: Midland Power Utility Corporation | B42: FUIJX538
A43: Milton Hydro Distribution Inc. | B43: PWKJP953
A44: Newmarket - Tay Power Distribution Ltd. | B44: JEGGW178
A45: Niagara Peninsula Energy Inc. | B45: TVKSH414
A46: Niagara-on-the-Lake Hydro Inc. | B46: DUISI693 | D46: X
A47: North Bay Hydro Distribution Limited | B47: PQZCY963 | D47: X
A48: Northern Ontario Wires Inc. | B48: GTLBW445
A49: Oakville Hydro Electricity Distribution Inc. | B49: XCFPH269
A50: Orangeville Hydro Limited | B50: MLWYG784
A51: Orillia Power Distribution Corporation | B51: QDKIF127
A52: Oshawa PUC Networks Inc. | B52: AMZEN437 | D52: X
A53: Ottawa River Power Corporation | B53: ACEVX242
A54: Peterborough Distribution Incorporated | B54: DSPWZ318
A55: PowerStream Inc. | B55: OLIUU862
A56: PUC Distribution Inc. | B56: NIOJF461 | D56: X
A57: Renfrew Hydro Inc. | B57: ZYZFO848
A58: Rideau St. Lawrence Distribution Inc. | B58: ASEGZ471
A59: Sioux Lookout Hydro Inc. | B59: IOKHC383
A60: St. Thomas Energy Inc. | B60: SKVKJ649
A61: Thunder Bay Hydro Electricity Distribution Inc. | B61: TPFNQ593
A62: Tillsonburg Hydro Inc. | B62: AJHXR397
A63: Toronto Hydro-Electric System Limited | B63: UNGPP815
A64: Veridian Connections Inc. | B64: MSLBK499 | D64: X
A65: Wasaga Distribution Inc. | B65: ECPNP312
A66: Waterloo North Hydro Inc. | B66: BUOOK413
A67: Welland Hydro-Electric System Corp. | B67: XIPNP764 | D67: X
A68: Wellington North Power Inc. | B68: TGBET947
A69: West Coast Huron Energy Inc. | B69: FMUAU699
A70: Westario Power Inc. | B70: AZRAQ913
A71: Whitby Hydro Electric Corporation | B71: OBBVP345
A72: Woodstock Hydro Services Inc. | B72: KBILT676

Sheet 3. Regulatory Charges
B12: Update the following rates if an OEB Decision has been issued at the time of completing this application
D13: Proposed
B14: Wholesale Market Service Rate | C14: $/kWh | D14: 0.0036
B15: Rural or Remote Electricity Rate Protection Charge (RRRP) | C15: $/kWh | D15: 0.0021
B16: Standard Supply Service - Administrative Charge (if applicable) | C16: $ | D16: 0.25
B17: Ontario Electricity Support Program (OESP) | C17: $/kWh | D17: 0.0011

Sheet 4.2-TS Tariff Schedule
CP1: File Number: | CQ1: ='1. Information Sheet'!F18 -> EB-2016-0110 | DA1: TRUE
CP2: Exhibit:
B3: Macro has been activated
B9: For each class, Applicants are required to copy and paste the class descriptions (located directly under the class name) and the description of the applicability of those rates (description is found under the class name and directly under the word "APPLICATION"). By using the drop-down lists located under the column labeled "Rate Description", please select the descriptions of the rates and charges that BEST MATCHES the descriptions on your most recent OEB-Approved Tariff of Rates and Charges. If the description is not found in the drop-down list, please enter the description in the green shaded cells under the correct class exactly as it appears on the tariff. Please do not enter more than one "Service Charge" for each class for which a base monthly fixed charge applies. All rate rider descriptions should begin with "Rate Rider for...". A value must be entered in Column I for every tariff item. Available values are “A”, “B”, “C” and “T”. These correspond with sub-totals A, B, C and the total bill, and determine where specific rates and rate rider charges appear on the bill impacts page. Please see General Tip #8 starting on Page 5 of the instructions document for a brief explanation of the different sub-totals categories.
B10: Select the appropriate rate classes as they appear on your most recent OEB-Approved Tariff of Rates and Charges, including the microFIT Class. | CD10: Click this check box if all input is correct
B11: How many classes are listed on your most recent OEB-Approved Tariff of Rates and Charges? | E11: 8
F12: X | G12: Atikokan Hydro Inc._Start | H12: Atikokan Hydro Inc. | J12: 6
B14: Identify Your Rate Classes in the Blue Cells below. Rate class names can be selected from the pull-dwon menu. Please ensure that a rate class is assigned to each shaded cell.
B15: List of Rate Classes | CD15: Linked to: | CG15: Add before:
B16: RESIDENTIAL SERVICE CLASSIFICATION
B17: GENERAL SERVICE LESS THAN 50 kW SERVICE CLASSIFICATION | AS17: X
B18: GENERAL SERVICE 50 TO 4,999 KW SERVICE CLASSIFICATION | AA18: GENERAL SERVICE 50 TO 4,999 KW SERVICE CLASSIFICATION
AS19: X
B20: UNMETERED SCATTERED LOAD SERVICE CLASSIFICATION | AA20: UNMETERED SCATTERED LOAD SERVICE CLASSIFICATION | AS20: X
B21: SENTINEL LIGHTING SERVICE CLASSIFICATION | AA21: SENTINEL LIGHTING SERVICE CLASSIFICATION | AS21: X
B22: STREET LIGHTING SERVICE CLASSIFICATION | AA22: STREET LIGHTING SERVICE CLASSIFICATION | AS22: X
B23: microFIT SERVICE CLASSIFICATION | AA23: microFIT SERVICE CLASSIFICATION
B30: Welland Hydro-Electric System Corp. | F30: X | G30: Welland Hydro-Electric System Corp._Start | H30: WELLAND HYDRO-ELECTRIC SYSTEM CORP. | J30: 9 | V30: 35 | AA30: Welland Hydro-Electric System Corp.
B31: TARIFF OF RATES AND CHARGES | V31: 27 | AA31: TARIFF OF RATES AND CHARGES
B32: Effective and Implementation Date May 1, 2017 | P32: 2016-05-01 | V32: 45 | AA32: Effective and Implementation Date May 1, 2017
B33: This schedule supersedes and replaces all previously | V33: 52 | AA33: This schedule supersedes and replaces all previously
B34: approved schedules of Rates, Charges and Loss Factors | V34: 53 | AA34: approved schedules of Rates, Charges and Loss Factors
B35: ='1. Information Sheet'!F18 -> EB-2016-0110 | H35: EB-2016-0110 | V35: 12 | AA35: EB-2016-0110 | AS35: X
AS36: X
B37: RESIDENTIAL SERVICE CLASSIFICATION | H37: 1_RESIDENTIAL SERVICE CLASSIFICATION | V37: 34 | AA37: RESIDENTIAL SERVICE CLASSIFICATION
B38: This classification refers to the supply of electrical energy to residential customers residing in detached or semi-detached units, as defined in the local zoning by-law. Further servicing details are available in the distributor's Conditions of Service. | H38: 1_RESIDENTIAL SERVICE CLASSIFICATION | V38: 254 | AA38: This classification refers to the supply of electrical energy to residential customers residing in detached or semi-detached units, as defined in the local zoning by-law. Further servicing details are available in the distributor's Conditions of Service.
B40: APPLICATION | H40: 1_APPLICATION | V40: 11 | AA40: APPLICATION
B42: The application of these rates and charges shall be in accordance with the Licence of the Distributor and any Code or Order of the Ontario Energy Board, and amendments thereto as approved by the Ontario Energy Board, which may be applicable to the administration of this schedule. | H42: 1_RESIDENTIAL SERVICE CLASSIFICATION | V42: 280 | AA42: The application of these rates and charges shall be in accordance with the Licence of the Distributor and any Code or Order of the Ontario Energy Board, and amendments thereto as approved by the Ontario Energy Board, which may be applicable to the administration of this schedule.
B44: No rates and charges for the distribution of electricity and charges to meet the costs of any work or service done or furnished for the purpose of the distribution of electricity shall be made except as permitted by this schedule, unless required by the Distributor’s Licence or a Code or Order of the Ontario Energy Board, and amendments thereto as approved by the Ontario Energy Board, or as specified herein. | H44: 1_RESIDENTIAL SERVICE CLASSIFICATION | V44: 411 | AA44: No rates and charges for the distribution of electricity and charges to meet the costs of any work or service done or furnished for the purpose of the distribution of electricity shall be made except as permitted by this schedule, unless required by the Distributor’s Licence or a Code or Order of the Ontario Energy Board, and amendments thereto as approved by the Ontario Energy Board, or as specified herein.
B46: Unless specifically noted, this schedule does not contain any charges for the electricity commodity, be it under the Regulated Price Plan, a contract with a retailer or the wholesale market price, as applicable. In addition, the charges in the MONTHLY RATES AND CHARGES - Regulatory Component of this schedule do not apply to a customer that is an embedded wholesale market participant. | H46: 1_RESIDENTIAL SERVICE CLASSIFICATION | V46: 387 | AA46: Unless specifically noted, this schedule does not contain any charges for the electricity commodity, be it under the Regulated Price Plan, a contract with a retailer or the wholesale market price, as applicable. In addition, the charges in the MONTHLY RATES AND CHARGES - Regulatory Component of this schedule do not apply to a customer that is an embedded wholesale market participant.
B48: It should be noted that this schedule does not list any charges, assessments, or credits that are required by law to be invoiced by a distributor and that are not subject to Ontario Energy Board approval, such as the Debt Retirement Charge, the Global Adjustment and the HST. | H48: 1_RESIDENTIAL SERVICE CLASSIFICATION | V48: 275 | AA48: It should be noted that this schedule does not list any charges, assessments, or credits that are required by law to be invoiced by a distributor and that are not subject to Ontario Energy Board approval, such as the Debt Retirement Charge, the Global Adjustment and the HST.
B50: MONTHLY RATES AND CHARGES - Delivery Component | H50: 1_MRC_DEL | V50: 46 | AA50: MONTHLY RATES AND CHARGES - Delivery Component
B52: Service Charge | D52: $ | E52: 22.91 | H52: 1_RESIDENTIAL SERVICE CLASSIFICATION | I52: A | M52: 1_RESIDENTIAL SERVICE CLASSIFICATION_MSC | V52: 5 | Z52: Service Charge
B53: Rate Rider for Smart Metering Entity Charge - effective until October 31, 2018 | D53: $ | E53: 0.79 | H53: 1_RESIDENTIAL SERVICE CLASSIFICATION | I53: B | M53: 1_RESIDENTIAL SERVICE CLASSIFICATION_SME | Q53: 2018-10-31 | V53: 4 | Z53: Rate Rider for Smart Metering Entity Charge - effective until October 31, 2018
B54: Distribution Volumetric Rate | D54: $/kWh | E54: 0.0077 | H54: 1_RESIDENTIAL SERVICE CLASSIFICATION | I54: A | M54: 1_RESIDENTIAL SERVICE CLASSIFICATION_DVC | V54: 6 | Z54: Distribution Volumetric Rate
B55: Rate Rider for Disposition of Deferral/Variance Accounts (2017) - effective until April 30, 2018 | D55: $/kWh | E55: -0.0008 | H55: 1_RESIDENTIAL SERVICE CLASSIFICATION | I55: B | M55: 1_RESIDENTIAL SERVICE CLASSIFICATION_DEFVAR_ALL | V55: 7
B56: Rate Rider for Disposition of Deferral/Variance Accounts (2017) - effective until April 30, 2018 Applicable for only Non-WMP | D56: $/kWh | E56: -0.0007 | H56: 1_RESIDENTIAL SERVICE CLASSIFICATION | I56: B | M56: 1_RESIDENTIAL SERVICE CLASSIFICATION_DEFVAR_ALL | V56: 7
B57: Rate Rider for Disposition of Global Adjustment Account (2017) - effective until April 30, 2018 Applicable only for Non-RPP | D57: $/kWh | E57: 0.0014 | H57: 1_RESIDENTIAL SERVICE CLASSIFICATION | I57: B | M57: 1_RESIDENTIAL SERVICE CLASSIFICATION_GA_kwh | V57: 6
B58: Rate Rider for Disposition of Group 2 Deferral/Variance Accounts (2017) - effective until April 30, 2018 | D58: $ | E58: 0.09 | H58: 1_RESIDENTIAL SERVICE CLASSIFICATION | I58: A | M58: 1_RESIDENTIAL SERVICE CLASSIFICATION_DEFVAR_ALL | V58: 4
B59: Rate Rider for Disposition of Account 1575 Deferral/Variance Account (2017) - effective until April 30, 2018 | D59: $ | E59: 0.15 | H59: 1_RESIDENTIAL SERVICE CLASSIFICATION | I59: A | M59: 1_RESIDENTIAL SERVICE CLASSIFICATION_DEFVAR_ALL | V59: 4
B60: Rate Rider for Dispostion of LRAM 1568 Deferral/Variance Account (2017) - effective until April 30, 2018 | D60: $/kWh | E60: -0.0001 | H60: 1_RESIDENTIAL SERVICE CLASSIFICATION | I60: A | M60: 1_RESIDENTIAL SERVICE CLASSIFICATION_VR_RR_4 | V60: 7
B61: Retail Transmission Rate - Network Service Rate | D61: $/kWh | E61: 0.0077 | H61: 1_RESIDENTIAL SERVICE CLASSIFICATION | I61: C | M61: 1_RESIDENTIAL SERVICE CLASSIFICATION_Retail Transmission Rate - Network Service Rate | V61: 6 | Z61: Retail Transmission Rate - Network Service Rate
B62: Retail Transmission Rate - Line and Transformation Connection Service Rate | D62: $/kWh | E62: 0.006 | H62: 1_RESIDENTIAL SERVICE CLASSIFICATION | I62: C | M62: 1_RESIDENTIAL SERVICE CLASSIFICATION_Retail Transmission Rate - Line and Transformation Connection Service Rate | V62: 5 | Z62: Retail Transmission Rate - Line and Transformation Connection Service Rate
B64: MONTHLY RATES AND CHARGES - Regulatory Component | H64: 1_MRC_REG | V64: 48 | Z64: MONTHLY RATES AND CHARGES - Regulatory Component
B66: Wholesale Market Service Rate | D66: $/kWh | E66: 0.0036 | H66: 1_RESIDENTIAL SERVICE CLASSIFICATION | I66: T | M66: 1_RESIDENTIAL SERVICE CLASSIFICATION_WMSR | V66: 6 | Z66: Wholesale Market Service Rate
B67: Rural or Remote Electricity Rate Protection Charge (RRRP) | D67: $/kWh | E67: 0.0021 | H67: 1_RESIDENTIAL SERVICE CLASSIFICATION | I67: T | M67: 1_RESIDENTIAL SERVICE CLASSIFICATION_RRRP | V67: 6 | Z67: Rural or Remote Electricity Rate Protection Charge (RRRP)
B68: Ontario Electricity Support Program Charge (OESP) | D68: $/kWh | E68: 0.0011 | H68: 1_RESIDENTIAL SERVICE CLASSIFICATION | I68: T | M68: 1_RESIDENTIAL SERVICE CLASSIFICATION_OESPR | V68: 6 | Z68: Ontario Electricity Support Program Charge (OESP)
B69: Standard Supply Service - Administrative Charge (if applicable) | D69: $ | E69: 0.25 | H69: 1_RESIDENTIAL SERVICE CLASSIFICATION | I69: T | M69: 1_RESIDENTIAL SERVICE CLASSIFICATION_SSS | V69: 4 | Z69: Standard Supply Service - Administrative Charge (if applicable) | AS69: X
B70: ONTARIO ELECTRICITY SUPPORT PROGRAM RECIPIENTS | H70: 2_ONTARIO ELECTRICITY SUPPORT PROGRAM RECIPIENTS | V70: 46 | AA70: ONTARIO ELECTRICITY SUPPORT PROGRAM RECIPIENTS
B71: In addition to the charges specified on page 1 of this tariff of rates and charges, the following credits are to be applied to eligible residential customers. | H71: 2_ONTARIO ELECTRICITY SUPPORT PROGRAM RECIPIENTS | V71: 158 | AA71: In addition to the charges specified on page 1 of this tariff of rates and charges, the following credits are to be applied to eligible residential customers.
B73: APPLICATION | H73: 2_APPLICATION | V73: 11 | AA73: APPLICATION
B75: The application of the charges are in accordance with the Distribution System Code (Section 9) and subsection 79.2(4) of the Ontario Energy Board Act, 1998. | H75: 2_ONTARIO ELECTRICITY SUPPORT PROGRAM RECIPIENTS | V75: 156 | AA75: The application of the charges are in accordance with the Distribution System Code (Section 9) and subsection 79.2(4) of the Ontario Energy Board Act, 1998.
B76: The application of these charges shall be in accordance with the Licence of the Distributor and any Code or Order of the Ontario Energy Board, and amendments thereto as approved by the Ontario Energy Board, which may be applicable to the administration of this schedule. | H76: 2_ONTARIO ELECTRICITY SUPPORT PROGRAM RECIPIENTS | V76: 270 | AA76: The application of these charges shall be in accordance with the Licence of the Distributor and any Code or Order of the Ontario Energy Board, and amendments thereto as approved by the Ontario Energy Board, which may be applicable to the administration of this schedule.
B77: In this class: “Aboriginal person” includes a person who is a First Nations person, a Métis person or an Inuit person; “account-holder” means a consumer who has an account with a distributor that falls within a residential-rate classification as specified in a rate order made by the Ontario Energy Board under section 78 of the Act, and who lives at the service address to which the account relates for at least six months in a year; “electricity-intensive medical device” means an oxygen concentrator, a mechanical ventilator, or such other device as may be specified by the Ontario Energy Board; “household” means the account-holder and any other people living at the accountholder’s service address for at least six months in a year, including people other than the account-holder’s spouse, children or other relatives; “household income” means the combined annual after-tax income of all members of a household aged 16 or over; | H77: 2_ONTARIO ELECTRICITY SUPPORT PROGRAM RECIPIENTS | V77: 933 | AA77: In this class: “Aboriginal person” includes a person who is a First Nations person, a Métis person or an Inuit person; “account-holder” means a consumer who has an account with a distributor that falls within a residential-rate classification as specified in a rate order made by the Ontario Energy Board under section 78 of the Act, and who lives at the service address to which the account relates for at least six months in a year; “electricity-intensive medical device” means an oxygen concentrator, a mechanical ventilator, or such other device as may be specified by the Ontario Energy Board; “household” means the account-holder and any other people living at the accountholder’s service address for at least six months in a year, including people other than the account-holder’s spouse, children or other relatives; “household income” means the combined annual after-tax income of all members of a household aged 16 or over;
B79: MONTHLY RATES AND CHARGES | H79: 2_MRC | V79: 25 | AA79: MONTHLY RATES AND CHARGES
B82: Class A | H82: 2_ONTARIO ELECTRICITY SUPPORT PROGRAM RECIPIENTS | V82: 7 | Z82: Class A
B83: (a) account-holders with a household income of $28,000 or less living in a household of one or two persons; (b) account-holders with a household income of between $28,001 and $39,000 living in a household of three persons; (c) account-holders with a household income of between $39,001 and $48,000 living in a household of five persons; and (d) account-holders with a household income of between $48,001 and $52,000 living in a household of seven or more persons; but does not include account-holders in Class E. | H83: 2_ONTARIO ELECTRICITY SUPPORT PROGRAM RECIPIENTS | V83: 512 | AA83: (a) account-holders with a household income of $28,000 or less living in a household of one or two persons; (b) account-holders with a household income of between $28,001 and $39,000 living in a household of three persons; (c) account-holders with a household income of between $39,001 and $48,000 living in a household of five persons; and (d) account-holders with a household income of between $48,001 and $52,000 living in a household of seven or more persons; but does not include account-holders in Class E.
B84: OESP Credit | D84: $ | E84: -30 | H84: 2_ONTARIO ELECTRICITY SUPPORT PROGRAM RECIPIENTS | I84: T | M84: 2_ONTARIO ELECTRICITY SUPPORT PROGRAM RECIPIENTS_OESP CREDIT_CLASS A | V84: 3 | Z84: OESP Credit
B86: Class B | H86: 2_ONTARIO ELECTRICITY SUPPORT PROGRAM RECIPIENTS | V86: 7 | Z86: Class B
B87: (a) account-holders with a household income of $28,000 or less living in a household of three persons; (b) account-holders with a household income of between $28,001 and $39,000 living in a household of four persons; (c) account-holders with a household income of between $39,001 and $48,000 living in a household of six persons; but does not include account-holders in Class F. | H87: 2_ONTARIO ELECTRICITY SUPPORT PROGRAM RECIPIENTS | V87: 378 | AA87: (a) account-holders with a household income of $28,000 or less living in a household of three persons; (b) account-holders with a household income of between $28,001 and $39,000 living in a household of four persons; (c) account-holders with a household income of between $39,001 and $48,000 living in a household of six persons; but does not include account-holders in Class F.
B88: OESP Credit | D88: $ | E88: -34 | H88: 2_ONTARIO ELECTRICITY SUPPORT PROGRAM RECIPIENTS | I88: T | M88: 2_ONTARIO ELECTRICITY SUPPORT PROGRAM RECIPIENTS_OESP CREDIT_CLASS B | V88: 3 | Z88: OESP Credit
B90: Class C | H90: 2_ONTARIO ELECTRICITY SUPPORT PROGRAM RECIPIENTS | V90: 7 | Z90: Class C
B91: (a) account-holders with a household income of $28,000 or less living in a household of four persons; (b) account-holders with a household income of between $28,001 and $39,000 living in a household of five persons; (c) account-holders with a household income of between $39,001 and $48,000 living in a household of seven or more persons; but does not include account-holders in Class G. | H91: 2_ONTARIO ELECTRICITY SUPPORT PROGRAM RECIPIENTS | V91: 387 | AA91: (a) account-holders with a household income of $28,000 or less living in a household of four persons; (b) account-holders with a household income of between $28,001 and $39,000 living in a household of five persons; (c) account-holders with a household income of between $39,001 and $48,000 living in a household of seven or more persons; but does not include account-holders in Class G.
B92: OESP Credit | D92: $ | E92: -38 | H92: 2_ONTARIO ELECTRICITY SUPPORT PROGRAM RECIPIENTS | I92: T | M92: 2_ONTARIO ELECTRICITY SUPPORT PROGRAM RECIPIENTS_OESP CREDIT_CLASS C | V92: 3 | Z92: OESP Credit
B94: Class D | H94: 2_ONTARIO ELECTRICITY SUPPORT PROGRAM RECIPIENTS | V94: 7 | Z94: Class D
B95: (a) account-holders with a household income of $28,000 or less living in a household of five persons; and (b) account-holders with a household income of between $28,001 and $39,000 living in a household of six persons; but does not include account-holders in Class H. | H95: 2_ONTARIO ELECTRICITY SUPPORT PROGRAM RECIPIENTS | V95: 267 | AA95: (a) account-holders with a household income of $28,000 or less living in a household of five persons; and (b) account-holders with a household income of between $28,001 and $39,000 living in a household of six persons; but does not include account-holders in Class H.
B96: OESP Credit | D96: $ | E96: -42 | H96: 2_ONTARIO ELECTRICITY SUPPORT PROGRAM RECIPIENTS | I96: T | M96: 2_ONTARIO ELECTRICITY SUPPORT PROGRAM RECIPIENTS_OESP CREDIT_CLASS D | V96: 3 | Z96: OESP Credit
B98: Class E | H98: 2_ONTARIO ELECTRICITY SUPPORT PROGRAM RECIPIENTS | V98: 7 | Z98: Class E
B99: Class E comprises account-holders with a household income and household size described under Class A who also meet any of the following conditions: (a) the dwelling to which the account relates is heated primarily by electricity; (b) the account-holder or any member of the account-holder’s household is an Aboriginal person; or (c) the account-holder or any member of the account-holder’s household regularly uses, for medical purposes, an electricity-intensive medical device at the dwelling to which the account relates. | H99: 2_ONTARIO ELECTRICITY SUPPORT PROGRAM RECIPIENTS | V99: 523 | AA99: Class E comprises account-holders with a household income and household size described under Class A who also meet any of the following conditions: (a) the dwelling to which the account relates is heated primarily by electricity; (b) the account-holder or any member of the account-holder’s household is an Aboriginal person; or (c) the account-holder or any member of the account-holder’s household regularly uses, for medical purposes, an electricity-intensive medical device at the dwelling to which the account relates.
B100: OESP Credit | D100: $ | E100: -45 | H100: 2_ONTARIO ELECTRICITY SUPPORT PROGRAM RECIPIENTS | I100: T | M100: 2_ONTARIO ELECTRICITY SUPPORT PROGRAM RECIPIENTS_OESP CREDIT_CLASS E | V100: 3 | Z100: OESP Credit
B102: Class F | H102: 2_ONTARIO ELECTRICITY SUPPORT PROGRAM RECIPIENTS | V102: 7 | Z102: Class F
B103: (a) account-holders with a household income of $28,000 or less living in a household of six or more persons; (b) account-holders with a household income of between $28,001 and $39,000 living in a household of seven or more persons; or (c) account-holders with a household income and household size described under Class B who also meet any of the following conditions: | H103: 2_ONTARIO ELECTRICITY SUPPORT PROGRAM RECIPIENTS | V103: 368 | AA103: (a) account-holders with a household income of $28,000 or less living in a household of six or more persons; (b) account-holders with a household income of between $28,001 and $39,000 living in a household of seven or more persons; or (c) account-holders with a household income and household size described under Class B who also meet any of the following conditions:
B104: i. the dwelling to which the account relates is heated primarily by electricity; ii. the account-holder or any member of the account-holder’s household is an Aboriginal person; or iii. the account-holder or any member of the account-holder’s household regularly uses, for medical purposes, an electricity-intensive medical device at the dwelling to which the account relates | H104: 2_ONTARIO ELECTRICITY SUPPORT PROGRAM RECIPIENTS | V104: 374 | AA104: i. the dwelling to which the account relates is heated primarily by electricity; ii. the account-holder or any member of the account-holder’s household is an Aboriginal person; or iii. the account-holder or any member of the account-holder’s household regularly uses, for medical purposes, an electricity-intensive medical device at the dwelling to which the account relates
B105: OESP Credit | D105: $ | E105: -50 | H105: 2_ONTARIO ELECTRICITY SUPPORT PROGRAM RECIPIENTS | I105: T | M105: 2_ONTARIO ELECTRICITY SUPPORT PROGRAM RECIPIENTS_OESP CREDIT_CLASS F | V105: 3 | Z105: OESP Credit
B107: Class G | H107: 2_ONTARIO ELECTRICITY SUPPORT PROGRAM RECIPIENTS | V107: 7 | Z107: Class G
B108: Class G comprises account-holders with a household income and household size described under Class C who also meet any of the following conditions: (a) the dwelling to which the account relates is heated primarily by electricity; (b) the account-holder or any member of the account-holder’s household is an Aboriginal person; or (c) the account-holder or any member of the account-holder’s household regularly uses, for medical purposes, an electricity-intensive medical device at the dwelling to which the account relates. | H108: 2_ONTARIO ELECTRICITY SUPPORT PROGRAM RECIPIENTS | V108: 523 | AA108: Class G comprises account-holders with a household income and household size described under Class C who also meet any of the following conditions: (a) the dwelling to which the account relates is heated primarily by electricity; (b) the account-holder or any member of the account-holder’s household is an Aboriginal person; or (c) the account-holder or any member of the account-holder’s household regularly uses, for medical purposes, an electricity-intensive medical device at the dwelling to which the account relates.
B109: OESP Credit | D109: $ | E109: -55 | H109: 2_ONTARIO ELECTRICITY SUPPORT PROGRAM RECIPIENTS | I109: T | M109: 2_ONTARIO ELECTRICITY SUPPORT PROGRAM RECIPIENTS_OESP CREDIT_CLASS G | V109: 3 | Z109: OESP Credit
B111: Class H | H111: 2_ONTARIO ELECTRICITY SUPPORT PROGRAM RECIPIENTS | V111: 7 | Z111: Class H
B112: Class H comprises account-holders with a household income and household size described under Class D who also meet any of the following conditions: (a) the dwelling to which the account relates is heated primarily by electricity; (b) the account-holder or any member of the account-holder’s household is an Aboriginal person ; or (c) the account-holder or any member of the account-holder’s household regularly uses, for medical purposes, an electricity-intensive medical device at the dwelling to which the account relates. | H112: 2_ONTARIO ELECTRICITY SUPPORT PROGRAM RECIPIENTS | V112: 524 | AA112: Class H comprises account-holders with a household income and household size described under Class D who also meet any of the following conditions: (a) the dwelling to which the account relates is heated primarily by electricity; (b) the account-holder or any member of the account-holder’s household is an Aboriginal person ; or (c) the account-holder or any member of the account-holder’s household regularly uses, for medical purposes, an electricity-intensive medical device at the dwelling to which the account relates.
B113: OESP Credit | D113: $ | E113: -60 | H113: 2_ONTARIO ELECTRICITY SUPPORT PROGRAM RECIPIENTS | I113: T | M113: 2_ONTARIO ELECTRICITY SUPPORT PROGRAM RECIPIENTS_OESP CREDIT_CLASS H | V113: 3 | Z113: OESP Credit
B115: Class I | H115: 2_ONTARIO ELECTRICITY SUPPORT PROGRAM RECIPIENTS | V115: 7 | Z115: Class I
B116: Class I comprises account-holders with a household income and household size described under paragraphs (a) or (b) of Class F who also meet any of the following conditions: (a) the dwelling to which the account relates is heated primarily by electricity; (b) the account-holder or any member of the account-holder’s household is an Aboriginal person; or (c) the account-holder or any member of the account-holder’s household regularly uses, for medical purposes, an electricity-intensive medical device at the dwelling to which the account relates. | H116: 2_ONTARIO ELECTRICITY SUPPORT PROGRAM RECIPIENTS | V116: 548 | AA116: Class I comprises account-holders with a household income and household size described under paragraphs (a) or (b) of Class F who also meet any of the following conditions: (a) the dwelling to which the account relates is heated primarily by electricity; (b) the account-holder or any member of the account-holder’s household is an Aboriginal person; or (c) the account-holder or any member of the account-holder’s household regularly uses, for medical purposes, an electricity-intensive medical device at the dwelling to which the account relates.
B117: OESP Credit | D117: $ | E117: -75 | H117: 2_ONTARIO ELECTRICITY SUPPORT PROGRAM RECIPIENTS | I117: T | M117: 2_ONTARIO ELECTRICITY SUPPORT PROGRAM RECIPIENTS_OESP CREDIT_CLASS I | V117: 3 | Z117: OESP Credit | AS117: X
B118: GENERAL SERVICE LESS THAN 50 KW SERVICE CLASSIFICATION | H118: 3_GENERAL SERVICE LESS THAN 50 KW SERVICE CLASSIFICATION | V118: 54 | AA118: GENERAL SERVICE LESS THAN 50 KW SERVICE CLASSIFICATION
B119: This classification refers to the supply of electrical energy to commercial buildings taking electricity at 750 volts or less whose monthly average peak demand is less than, or is forecast to be less than, 50 kW. Commercial buildings are defined as buildings, which are used for purposes other than resident dwellings. Further servicing details are available in the distributor's Conditions of Service. | H119: 3_GENERAL SERVICE LESS THAN 50 KW SERVICE CLASSIFICATION | V119: 404 | AA119: This classification refers to the supply of electrical energy to commercial buildings taking electricity at 750 volts or less whose monthly average peak demand is less than, or is forecast to be less than, 50 kW. Commercial buildings are defined as buildings, which are used for purposes other than resident dwellings. Further servicing details are available in the distributor's Conditions of Service.
B121: APPLICATION | H121: 3_APPLICATION | V121: 11 | AA121: APPLICATION
B123: The application of these rates and charges shall be in accordance with the Licence of the Distributor and any Code or Order of the Ontario Energy Board, and amendments thereto as approved by the Ontario Energy Board, which may be applicable to the administration of this schedule. | H123: 3_GENERAL SERVICE LESS THAN 50 KW SERVICE CLASSIFICATION | V123: 280 | AA123: The application of these rates and charges shall be in accordance with the Licence of the Distributor and any Code or Order of the Ontario Energy Board, and amendments thereto as approved by the Ontario Energy Board, which may be applicable to the administration of this schedule.
B125: No rates and charges for the distribution of electricity and charges to meet the costs of any work or service done or furnished for the purpose of the distribution of electricity shall be made except as permitted by this schedule, unless required by the Distributor’s Licence or a Code or Order of the Ontario Energy Board, and amendments thereto as approved by the Ontario Energy Board, or as specified herein. | H125: 3_GENERAL SERVICE LESS THAN 50 KW SERVICE CLASSIFICATION | V125: 411 | AA125: No rates and charges for the distribution of electricity and charges to meet the costs of any work or service done or furnished for the purpose of the distribution of electricity shall be made except as permitted by this schedule, unless required by the Distributor’s Licence or a Code or Order of the Ontario Energy Board, and amendments thereto as approved by the Ontario Energy Board, or as specified herein.
B127: Unless specifically noted, this schedule does not contain any charges for the electricity commodity, be it under the Regulated Price Plan, a contract with a retailer or the wholesale market price, as applicable. In addition, the charges in the MONTHLY RATES AND CHARGES - Regulatory Component of this schedule do not apply to a customer that is an embedded wholesale market participant. | H127: 3_GENERAL SERVICE LESS THAN 50 KW SERVICE CLASSIFICATION | V127: 387 | AA127: Unless specifically noted, this schedule does not contain any charges for the electricity commodity, be it under the Regulated Price Plan, a contract with a retailer or the wholesale market price, as applicable. In addition, the charges in the MONTHLY RATES AND CHARGES - Regulatory Component of this schedule do not apply to a customer that is an embedded wholesale market participant.
B129: It should be noted that this schedule does not list any charges, assessments, or credits that are required by law to be invoiced by a distributor and that are not subject to Ontario Energy Board approval, such as the Debt Retirement Charge, the Global Adjustment and the HST. | H129: 3_GENERAL SERVICE LESS THAN 50 KW SERVICE CLASSIFICATION | V129: 275 | AA129: It should be noted that this schedule does not list any charges, assessments, or credits that are required by law to be invoiced by a distributor and that are not subject to Ontario Energy Board approval, such as the Debt Retirement Charge, the Global Adjustment and the HST.
B131: MONTHLY RATES AND CHARGES - Delivery Component | H131: 3_MRC_DEL | V131: 46 | AA131: MONTHLY RATES AND CHARGES - Delivery Component
B133: Service Charge | D133: $ | E133: 31.23 | H133: 3_GENERAL SERVICE LESS THAN 50 KW SERVICE CLASSIFICATION | I133: A | M133: 3_GENERAL SERVICE LESS THAN 50 KW SERVICE CLASSIFICATION_MSC | V133: 5 | Z133: Service Charge
B134: Rate Rider for Smart Metering Entity Charge - effective until October 31, 2018 | D134: $ | E134: 0.79 | H134: 3_GENERAL SERVICE LESS THAN 50 KW SERVICE CLASSIFICATION | I134: B | M134: 3_GENERAL SERVICE LESS THAN 50 KW SERVICE CLASSIFICATION_SME | Q134: 2018-10-31 | V134: 4 | Z134: Rate Rider for Smart Metering Entity Charge - effective until October 31, 2018
B135: Distribution Volumetric Rate | D135: $/kWh | E135: 0.0097 | H135: 3_GENERAL SERVICE LESS THAN 50 KW SERVICE CLASSIFICATION | I135: A | M135: 3_GENERAL SERVICE LESS THAN 50 KW SERVICE CLASSIFICATION_DVC | V135: 6 | Z135: Distribution Volumetric Rate
B136: Rate Rider for Disposition of Deferral/Variance Accounts (2017) - effective until April 30, 2018 | D136: $/kWh | E136: -0.0008 | H136: 3_GENERAL SERVICE LESS THAN 50 KW SERVICE CLASSIFICATION | I136: B | M136: 3_GENERAL SERVICE LESS THAN 50 KW SERVICE CLASSIFICATION_DEFVAR_ALL | V136: 7
B137: Rate Rider for Disposition of Deferral/Variance Accounts (2017) - effective until April 30, 2018 Applicable for only Non-WMP | D137: $/kWh | E137: -0.0007 | H137: 3_GENERAL SERVICE LESS THAN 50 KW SERVICE CLASSIFICATION | I137: B | M137: 3_GENERAL SERVICE LESS THAN 50 KW SERVICE CLASSIFICATION_DEFVAR_ALL | V137: 7
B138: Rate Rider for Disposition of Global Adjustment Account (2017) - effective until April 30, 2018 Applicable only for Non-RPP | D138: $/kWh | E138: 0.0014 | H138: 3_GENERAL SERVICE LESS THAN 50 KW SERVICE CLASSIFICATION | I138: B | M138: 3_GENERAL SERVICE LESS THAN 50 KW SERVICE CLASSIFICATION_GA_kwh | V138: 6
B139: Rate Rider for Disposition of Group 2 Deferral/Variance Accounts (2017) - effective until April 30, 2018 | D139: $/kWh | E139: 0.0001 | H139: 3_GENERAL SERVICE LESS THAN 50 KW SERVICE CLASSIFICATION | I139: B | M139: 3_GENERAL SERVICE LESS THAN 50 KW SERVICE CLASSIFICATION_DEFVAR_ALL | V139: 6
B140: Rate Rider for Disposition of Account 1575 Deferral/Variance Account (2017) - effective until April 30, 2018 | D140: $/kWh | E140: 0.0002 | H140: 3_GENERAL SERVICE LESS THAN 50 KW SERVICE CLASSIFICATION | I140: B | M140: 3_GENERAL SERVICE LESS THAN 50 KW SERVICE CLASSIFICATION_DEFVAR_ALL | V140: 6
B141: Rate Rider for Dispostion of LRAM 1568 Deferral/Variance Account (2017) - effective until April 30, 2018 | D141: $/kWh | E141: 0.0001 | H141: 3_GENERAL SERVICE LESS THAN 50 KW SERVICE CLASSIFICATION | I141: B | M141: 3_GENERAL SERVICE LESS THAN 50 KW SERVICE CLASSIFICATION_VR_RR_10 | V141: 6
B142: Retail Transmission Rate - Network Service Rate | D142: $/kWh | E142: 0.0068 | H142: 3_GENERAL SERVICE LESS THAN 50 KW SERVICE CLASSIFICATION | I142: C | M142: 3_GENERAL SERVICE LESS THAN 50 KW SERVICE CLASSIFICATION_Retail Transmission Rate - Network Service Rate | V142: 6 | Z142: Retail Transmission Rate - Network Service Rate
B143: Retail Transmission Rate - Line and Transformation Connection Service Rate | D143: $/kWh | E143: 0.0051 | H143: 3_GENERAL SERVICE LESS THAN 50 KW SERVICE CLASSIFICATION | I143: C | M143: 3_GENERAL SERVICE LESS THAN 50 KW SERVICE CLASSIFICATION_Retail Transmission Rate - Line and Transformation Connection Service Rate | V143: 6 | Z143: Retail Transmission Rate - Line and Transformation Connection Service Rate
B145: MONTHLY RATES AND CHARGES - Regulatory Component | H145: 3_MRC_REG | V145: 48 | Z145: MONTHLY RATES AND CHARGES - Regulatory Component
B147: Wholesale Market Service Rate | D147: $/kWh | E147: 0.0036 | H147: 3_GENERAL SERVICE LESS THAN 50 KW SERVICE CLASSIFICATION | I147: T | M147: 3_GENERAL SERVICE LESS THAN 50 KW SERVICE CLASSIFICATION_WMSR | V147: 6 | Z147: Wholesale Market Service Rate
B148: Rural or Remote Electricity Rate Protection Charge (RRRP) | D148: $/kWh | E148: 0.0021 | H148: 3_GENERAL SERVICE LESS THAN 50 KW SERVICE CLASSIFICATION | I148: T | M148: 3_GENERAL SERVICE LESS THAN 50 KW SERVICE CLASSIFICATION_RRRP | V148: 6 | Z148: Rural or Remote Electricity Rate Protection Charge (RRRP)
B149: Ontario Electricity Support Program Charge (OESP) | D149: $/kWh | E149: 0.0011 | H149: 3_GENERAL SERVICE LESS THAN 50 KW SERVICE CLASSIFICATION | I149: T | M149: 3_GENERAL SERVICE LESS THAN 50 KW SERVICE CLASSIFICATION_OESPR | V149: 6 | Z149: Ontario Electricity Support Program Charge (OESP)
B150: Standard Supply Service - Administrative Charge (if applicable) | D150: $ | E150: 0.25 | H150: 3_GENERAL SERVICE LESS THAN 50 KW SERVICE CLASSIFICATION | I150: T | M150: 3_GENERAL SERVICE LESS THAN 50 KW SERVICE CLASSIFICATION_SSS | V150: 4 | Z150: Standard Supply Service - Administrative Charge (if applicable) | AS150: X
B151: GENERAL SERVICE 50 TO 4,999 KW SERVICE CLASSIFICATION | H151: 4_GENERAL SERVICE 50 TO 4,999 KW SERVICE CLASSIFICATION | V151: 53 | AA151: GENERAL SERVICE 50 TO 4,999 KW SERVICE CLASSIFICATION
B152: This classification refers to the supply of electrical energy to commercial buildings whose monthly average peak demand is equal to or greater than, or is forecast to be equal to or greater than, 50 kW but less than 5,000 kW. Commercial buildings are defined as buildings, which are used for purposes other than resident dwellings. Further servicing details are available in the distributor's Conditions of Service. | H152: 4_GENERAL SERVICE 50 TO 4,999 KW SERVICE CLASSIFICATION | V152: 417 | AA152: This classification refers to the supply of electrical energy to commercial buildings whose monthly average peak demand is equal to or greater than, or is forecast to be equal to or greater than, 50 kW but less than 5,000 kW. Commercial buildings are defined as buildings, which are used for purposes other than resident dwellings. Further servicing details are available in the distributor's Conditions of Service.
B154: APPLICATION | H154: 4_APPLICATION | V154: 11 | AA154: APPLICATION
B156: The application of these rates and charges shall be in accordance with the Licence of the Distributor and any Code or Order of the Ontario Energy Board, and amendments thereto as approved by the Ontario Energy Board, which may be applicable to the administration of this schedule. | H156: 4_GENERAL SERVICE 50 TO 4,999 KW SERVICE CLASSIFICATION | V156: 280 | AA156: The application of these rates and charges shall be in accordance with the Licence of the Distributor and any Code or Order of the Ontario Energy Board, and amendments thereto as approved by the Ontario Energy Board, which may be applicable to the administration of this schedule.
B158: No rates and charges for the distribution of electricity and charges to meet the costs of any work or service done or furnished for the purpose of the distribution of electricity shall be made except as permitted by this schedule, unless required by the Distributor’s Licence or a Code or Order of the Ontario Energy Board, and amendments thereto as approved by the Ontario Energy Board, or as specified herein. | H158: 4_GENERAL SERVICE 50 TO 4,999 KW SERVICE CLASSIFICATION | V158: 411 | AA158: No rates and charges for the distribution of electricity and charges to meet the costs of any work or service done or furnished for the purpose of the distribution of electricity shall be made except as permitted by this schedule, unless required by the Distributor’s Licence or a Code or Order of the Ontario Energy Board, and amendments thereto as approved by the Ontario Energy Board, or as specified herein.
B160: Unless specifically noted, this schedule does not contain any charges for the electricity commodity, be it under the Regulated Price Plan, a contract with a retailer or the wholesale market price, as applicable. In addition, the charges in the MONTHLY RATES AND CHARGES - Regulatory Component of this schedule do not apply to a customer that is an embedded wholesale market participant. | H160: 4_GENERAL SERVICE 50 TO 4,999 KW SERVICE CLASSIFICATION | V160: 387 | AA160: Unless specifically noted, this schedule does not contain any charges for the electricity commodity, be it under the Regulated Price Plan, a contract with a retailer or the wholesale market price, as applicable. In addition, the charges in the MONTHLY RATES AND CHARGES - Regulatory Component of this schedule do not apply to a customer that is an embedded wholesale market participant.
B162: It should be noted that this schedule does not list any charges, assessments, or credits that are required by law to be invoiced by a distributor and that are not subject to Ontario Energy Board approval, such as the Debt Retirement Charge, the Global Adjustment and the HST. | H162: 4_GENERAL SERVICE 50 TO 4,999 KW SERVICE CLASSIFICATION | V162: 275 | AA162: It should be noted that this schedule does not list any charges, assessments, or credits that are required by law to be invoiced by a distributor and that are not subject to Ontario Energy Board approval, such as the Debt Retirement Charge, the Global Adjustment and the HST.
B164: MONTHLY RATES AND CHARGES - Delivery Component | H164: 4_MRC_DEL | V164: 46 | AA164: MONTHLY RATES AND CHARGES - Delivery Component
B166: Service Charge | D166: $ | E166: 341.55 | H166: 4_GENERAL SERVICE 50 TO 4,999 KW SERVICE CLASSIFICATION | I166: A | M166: 4_GENERAL SERVICE 50 TO 4,999 KW SERVICE CLASSIFICATION_MSC | V166: 6 | Z166: Service Charge
B167: Distribution Volumetric Rate | D167: $/kW | E167: 2.8791 | H167: 4_GENERAL SERVICE 50 TO 4,999 KW SERVICE CLASSIFICATION | I167: A | M167: 4_GENERAL SERVICE 50 TO 4,999 KW SERVICE CLASSIFICATION_DVC | V167: 6 | Z167: Distribution Volumetric Rate
B168: Rate Rider for Disposition of Deferral/Variance Accounts (2017) - effective until April 30, 2018 | D168: $/kW | E168: -0.2423 | H168: 4_GENERAL SERVICE 50 TO 4,999 KW SERVICE CLASSIFICATION | I168: B | M168: 4_GENERAL SERVICE 50 TO 4,999 KW SERVICE CLASSIFICATION_DEFVAR_ALL | V168: 7
B169: Rate Rider for Disposition of Deferral/Variance Accounts (2017) - effective until April 30, 2018 Applicable for only Non-WMP | D169: $/kW | E169: -0.2317 | H169: 4_GENERAL SERVICE 50 TO 4,999 KW SERVICE CLASSIFICATION | I169: B | M169: 4_GENERAL SERVICE 50 TO 4,999 KW SERVICE CLASSIFICATION_DEFVAR_ALL | V169: 7
B170: Rate Rider for Disposition of Global Adjustment Account (2017) - effective until April 30, 2018 Applicable only for Non-RPP | D170: $/kWh | E170: 0.0014 | H170: 4_GENERAL SERVICE 50 TO 4,999 KW SERVICE CLASSIFICATION | I170: B | M170: 4_GENERAL SERVICE 50 TO 4,999 KW SERVICE CLASSIFICATION_GA_kwh | V170: 6
B171: Rate Rider for Disposition of Group 2 Deferral/Variance Accounts (2017) - effective until April 30, 2018 | D171: $/kW | E171: 0.0503 | H171: 4_GENERAL SERVICE 50 TO 4,999 KW SERVICE CLASSIFICATION | I171: B | M171: 4_GENERAL SERVICE 50 TO 4,999 KW SERVICE CLASSIFICATION_DEFVAR_ALL | V171: 6
B172: Rate Rider for Disposition of Account 1575 Deferral/Variance Account (2017) - effective until April 30, 2018 | D172: $/kW | E172: 0.0837 | H172: 4_GENERAL SERVICE 50 TO 4,999 KW SERVICE CLASSIFICATION | I172: B | M172: 4_GENERAL SERVICE 50 TO 4,999 KW SERVICE CLASSIFICATION_DEFVAR_ALL | V172: 6
B173: Rate Rider for Dispostion of LRAM 1568 Deferral/Variance Account (2017) - effective until April 30, 2018 | D173: $/kW | E173: 0.0775 | H173: 4_GENERAL SERVICE 50 TO 4,999 KW SERVICE CLASSIFICATION | I173: B | M173: 4_GENERAL SERVICE 50 TO 4,999 KW SERVICE CLASSIFICATION_VR_RR_16 | V173: 6
B174: Retail Transmission Rate - Network Service Rate | D174: $/kW | E174: 2.3145 | H174: 4_GENERAL SERVICE 50 TO 4,999 KW SERVICE CLASSIFICATION | I174: C | M174: 4_GENERAL SERVICE 50 TO 4,999 KW SERVICE CLASSIFICATION_Retail Transmission Rate - Network Service Rate | V174: 6 | Z174: Retail Transmission Rate - Network Service Rate
B175: Retail Transmission Rate - Line and Transformation Connection Service Rate | D175: $/kW | E175: 1.9948 | H175: 4_GENERAL SERVICE 50 TO 4,999 KW SERVICE CLASSIFICATION | I175: C | M175: 4_GENERAL SERVICE 50 TO 4,999 KW SERVICE CLASSIFICATION_Retail Transmission Rate - Line and Transformation Connection Service Rate | V175: 6 | Z175: Retail Transmission Rate - Line and Transformation Connection Service Rate
B177: MONTHLY RATES AND CHARGES - Regulatory Component | H177: 4_MRC_REG | V177: 48 | Z177: MONTHLY RATES AND CHARGES - Regulatory Component
B179: Wholesale Market Service Rate | D179: $/kWh | E179: 0.0036 | H179: 4_GENERAL SERVICE 50 TO 4,999 KW SERVICE CLASSIFICATION | I179: T | M179: 4_GENERAL SERVICE 50 TO 4,999 KW SERVICE CLASSIFICATION_WMSR | V179: 6 | Z179: Wholesale Market Service Rate
B180: Rural or Remote Electricity Rate Protection Charge (RRRP) | D180: $/kWh | E180: 0.0021 | H180: 4_GENERAL SERVICE 50 TO 4,999 KW SERVICE CLASSIFICATION | I180: T | M180: 4_GENERAL SERVICE 50 TO 4,999 KW SERVICE CLASSIFICATION_RRRP | V180: 6 | Z180: Rural or Remote Electricity Rate Protection Charge (RRRP)
B181: Ontario Electricity Support Program Charge (OESP) | D181: $/kWh | E181: 0.0011 | H181: 4_GENERAL SERVICE 50 TO 4,999 KW SERVICE CLASSIFICATION | I181: T | M181: 4_GENERAL SERVICE 50 TO 4,999 KW SERVICE CLASSIFICATION_OESPR | V181: 6 | Z181: Ontario Electricity Support Program Charge (OESP)
B182: Standard Supply Service - Administrative Charge (if applicable) | D182: $ | E182: 0.25 | H182: 4_GENERAL SERVICE 50 TO 4,999 KW SERVICE CLASSIFICATION | I182: T | M182: 4_GENERAL SERVICE 50 TO 4,999 KW SERVICE CLASSIFICATION_SSS | V182: 4 | Z182: Standard Supply Service - Administrative Charge (if applicable) | AS182: X
B183: UNMETERED SCATTERED LOAD SERVICE CLASSIFICATION | H183: 5_UNMETERED SCATTERED LOAD SERVICE CLASSIFICATION | V183: 47 | AA183: UNMETERED SCATTERED LOAD SERVICE CLASSIFICATION
B184: This classification refers to an account taking electricity at 750 volts or less whose monthly average peak demand is less than, or is forecast to be less than, 50 kW and the consumption is unmetered. Unmetered or flat connections are permitted with the approval of Welland Hydro-Electric System Corp. Engineering Department. Flat rate connects may include, but are not limited to, Traffic Lights, Street Lights, Bus Shelters, and Signs. Energy consumption is determined by information provided by the customer and/or load measurement taken by Welland Hydro-Electric System Corp. following connection of the flat service. Further servicing details are available in the distributor's Conditions of Service. | H184: 5_UNMETERED SCATTERED LOAD SERVICE CLASSIFICATION | V184: 709 | AA184: This classification refers to an account taking electricity at 750 volts or less whose monthly average peak demand is less than, or is forecast to be less than, 50 kW and the consumption is unmetered. Unmetered or flat connections are permitted with the approval of Welland Hydro-Electric System Corp. Engineering Department. Flat rate connects may include, but are not limited to, Traffic Lights, Street Lights, Bus Shelters, and Signs. Energy consumption is determined by information provided by the customer and/or load measurement taken by Welland Hydro-Electric System Corp. following connection of the flat service. Further servicing details are available in the distributor's Conditions of Service.
B186: APPLICATION | H186: 5_APPLICATION | V186: 11 | AA186: APPLICATION
B188: The application of these rates and charges shall be in accordance with the Licence of the Distributor and any Code or Order of the Ontario Energy Board, and amendments thereto as approved by the Ontario Energy Board, which may be applicable to the administration of this schedule. | H188: 5_UNMETERED SCATTERED LOAD SERVICE CLASSIFICATION | V188: 280 | AA188: The application of these rates and charges shall be in accordance with the Licence of the Distributor and any Code or Order of the Ontario Energy Board, and amendments thereto as approved by the Ontario Energy Board, which may be applicable to the administration of this schedule.
B190: No rates and charges for the distribution of electricity and charges to meet the costs of any work or service done or furnished for the purpose of the distribution of electricity shall be made except as permitted by this schedule, unless required by the Distributor’s Licence or a Code or Order of the Ontario Energy Board, and amendments thereto as approved by the Ontario Energy Board, or as specified herein. | H190: 5_UNMETERED SCATTERED LOAD SERVICE CLASSIFICATION | V190: 411 | AA190: No rates and charges for the distribution of electricity and charges to meet the costs of any work or service done or furnished for the purpose of the distribution of electricity shall be made except as permitted by this schedule, unless required by the Distributor’s Licence or a Code or Order of the Ontario Energy Board, and amendments thereto as approved by the Ontario Energy Board, or as specified herein.
B192: Unless specifically noted, this schedule does not contain any charges for the electricity commodity, be it under the Regulated Price Plan, a contract with a retailer or the wholesale market price, as applicable. In addition, the charges in the MONTHLY RATES AND CHARGES - Regulatory Component of this schedule do not apply to a customer that is an embedded wholesale market participant. | H192: 5_UNMETERED SCATTERED LOAD SERVICE CLASSIFICATION | V192: 387 | AA192: Unless specifically noted, this schedule does not contain any charges for the electricity commodity, be it under the Regulated Price Plan, a contract with a retailer or the wholesale market price, as applicable. In addition, the charges in the MONTHLY RATES AND CHARGES - Regulatory Component of this schedule do not apply to a customer that is an embedded wholesale market participant.
B194: It should be noted that this schedule does not list any charges, assessments, or credits that are required by law to be invoiced by a distributor and that are not subject to Ontario Energy Board approval, such as the Debt Retirement Charge, the Global Adjustment and the HST. | H194: 5_UNMETERED SCATTERED LOAD SERVICE CLASSIFICATION | V194: 275 | AA194: It should be noted that this schedule does not list any charges, assessments, or credits that are required by law to be invoiced by a distributor and that are not subject to Ontario Energy Board approval, such as the Debt Retirement Charge, the Global Adjustment and the HST.
B196: MONTHLY RATES AND CHARGES - Delivery Component | H196: 5_MRC_DEL | V196: 46 | AA196: MONTHLY RATES AND CHARGES - Delivery Component
B198: Service Charge (per connection) | D198: $ | E198: 10.52 | H198: 5_UNMETERED SCATTERED LOAD SERVICE CLASSIFICATION | I198: A | M198: 5_UNMETERED SCATTERED LOAD SERVICE CLASSIFICATION_MSC | V198: 5 | Z198: Service Charge (per connection)
B199: Distribution Volumetric Rate | D199: $/kWh | E199: 0.0069 | H199: 5_UNMETERED SCATTERED LOAD SERVICE CLASSIFICATION | I199: A | M199: 5_UNMETERED SCATTERED LOAD SERVICE CLASSIFICATION_DVC | V199: 6 | Z199: Distribution Volumetric Rate
B200: Rate Rider for Disposition of Deferral/Variance Accounts (2017) - effective until April 30, 2018 | D200: $/kWh | E200: -0.0008 | H200: 5_UNMETERED SCATTERED LOAD SERVICE CLASSIFICATION | I200: B | M200: 5_UNMETERED SCATTERED LOAD SERVICE CLASSIFICATION_DEFVAR_ALL | V200: 7
B201: Rate Rider for Disposition of Deferral/Variance Accounts (2017) - effective until April 30, 2018 Applicable for only Non-WMP | D201: $/kWh | E201: -0.0007 | H201: 5_UNMETERED SCATTERED LOAD SERVICE CLASSIFICATION | I201: B | M201: 5_UNMETERED SCATTERED LOAD SERVICE CLASSIFICATION_DEFVAR_ALL | V201: 7
B202: Rate Rider for Disposition of Global Adjustment Account (2017) - effective until April 30, 2018 Applicable only for Non-RPP | D202: $/kWh | E202: 0.0014 | H202: 5_UNMETERED SCATTERED LOAD SERVICE CLASSIFICATION | I202: B | M202: 5_UNMETERED SCATTERED LOAD SERVICE CLASSIFICATION_GA_kwh | V202: 6
B203: Rate Rider for Disposition of Group 2 Deferral/Variance Accounts (2017) - effective until April 30, 2018 | D203: $/kWh | E203: 0.0001 | H203: 5_UNMETERED SCATTERED LOAD SERVICE CLASSIFICATION | I203: B | M203: 5_UNMETERED SCATTERED LOAD SERVICE CLASSIFICATION_DEFVAR_ALL | V203: 6
B204: Rate Rider for Disposition of Account 1575 Deferral/Variance Account (2017) - effective until April 30, 2018 | D204: $/kWh | E204: 0.0002 | H204: 5_UNMETERED SCATTERED LOAD SERVICE CLASSIFICATION | I204: B | M204: 5_UNMETERED SCATTERED LOAD SERVICE CLASSIFICATION_DEFVAR_ALL | V204: 6
B205: Rate Rider for Dispostion of LRAM 1568 Deferral/Variance Account (2017) - effective until April 30, 2018 | D205: $/kWh | E205: -0.0003 | H205: 5_UNMETERED SCATTERED LOAD SERVICE CLASSIFICATION | I205: B | M205: 5_UNMETERED SCATTERED LOAD SERVICE CLASSIFICATION_VR_RR_22 | V205: 7
B206: Retail Transmission Rate - Network Service Rate | D206: $/kWh | E206: 0.0068 | H206: 5_UNMETERED SCATTERED LOAD SERVICE CLASSIFICATION | I206: C | M206: 5_UNMETERED SCATTERED LOAD SERVICE CLASSIFICATION_Retail Transmission Rate - Network Service Rate | V206: 6 | Z206: Retail Transmission Rate - Network Service Rate
B207: Retail Transmission Rate - Line and Transformation Connection Service Rate | D207: $/kWh | E207: 0.0051 | H207: 5_UNMETERED SCATTERED LOAD SERVICE CLASSIFICATION | I207: C | M207: 5_UNMETERED SCATTERED LOAD SERVICE CLASSIFICATION_Retail Transmission Rate - Line and Transformation Connection Service Rate | V207: 6 | Z207: Retail Transmission Rate - Line and Transformation Connection Service Rate
B209: MONTHLY RATES AND CHARGES - Regulatory Component | H209: 5_MRC_REG | V209: 48 | Z209: MONTHLY RATES AND CHARGES - Regulatory Component
B211: Wholesale Market Service Rate | D211: $/kWh | E211: 0.0036 | H211: 5_UNMETERED SCATTERED LOAD SERVICE CLASSIFICATION | I211: T | M211: 5_UNMETERED SCATTERED LOAD SERVICE CLASSIFICATION_WMSR | V211: 6 | Z211: Wholesale Market Service Rate
B212: Rural or Remote Electricity Rate Protection Charge (RRRP) | D212: $/kWh | E212: 0.0021 | H212: 5_UNMETERED SCATTERED LOAD SERVICE CLASSIFICATION | I212: T | M212: 5_UNMETERED SCATTERED LOAD SERVICE CLASSIFICATION_RRRP | V212: 6 | Z212: Rural or Remote Electricity Rate Protection Charge (RRRP)
B213: Ontario Electricity Support Program Charge (OESP) | D213: $/kWh | E213: 0.0011 | H213: 5_UNMETERED SCATTERED LOAD SERVICE CLASSIFICATION | I213: T | M213: 5_UNMETERED SCATTERED LOAD SERVICE CLASSIFICATION_OESPR | V213: 6 | Z213: Ontario Electricity Support Program Charge (OESP)
B214: Standard Supply Service - Administrative Charge (if applicable) | D214: $ | E214: 0.25 | H214: 5_UNMETERED SCATTERED LOAD SERVICE CLASSIFICATION | I214: T | M214: 5_UNMETERED SCATTERED LOAD SERVICE CLASSIFICATION_SSS | V214: 4 | Z214: Standard Supply Service - Administrative Charge (if applicable) | AS214: X
B215: SENTINEL LIGHTING SERVICE CLASSIFICATION | H215: 6_SENTINEL LIGHTING SERVICE CLASSIFICATION | V215: 40 | AA215: SENTINEL LIGHTING SERVICE CLASSIFICATION
B216: This classification refers to an account for roadway lighting not classified as unmetered or street lighting. The consumption for the customer will be based on the calculated connected load times a twelve hour day times the applicable billing period. Further servicing details are available in the distributor's Conditions of Service. | H216: 6_SENTINEL LIGHTING SERVICE CLASSIFICATION | V216: 337 | AA216: This classification refers to an account for roadway lighting not classified as unmetered or street lighting. The consumption for the customer will be based on the calculated connected load times a twelve hour day times the applicable billing period. Further servicing details are available in the distributor's Conditions of Service.
B218: APPLICATION | H218: 6_APPLICATION | V218: 11 | AA218: APPLICATION
B220: The application of these rates and charges shall be in accordance with the Licence of the Distributor and any Code or Order of the Ontario Energy Board, and amendments thereto as approved by the Ontario Energy Board, which may be applicable to the administration of this schedule. | H220: 6_SENTINEL LIGHTING SERVICE CLASSIFICATION | V220: 280 | AA220: The application of these rates and charges shall be in accordance with the Licence of the Distributor and any Code or Order of the Ontario Energy Board, and amendments thereto as approved by the Ontario Energy Board, which may be applicable to the administration of this schedule.
B222: No rates and charges for the distribution of electricity and charges to meet the costs of any work or service done or furnished for the purpose of the distribution of electricity shall be made except as permitted by this schedule, unless required by the Distributor’s Licence or a Code or Order of the Ontario Energy Board, and amendments thereto as approved by the Ontario Energy Board, or as specified herein. | H222: 6_SENTINEL LIGHTING SERVICE CLASSIFICATION | V222: 411 | AA222: No rates and charges for the distribution of electricity and charges to meet the costs of any work or service done or furnished for the purpose of the distribution of electricity shall be made except as permitted by this schedule, unless required by the Distributor’s Licence or a Code or Order of the Ontario Energy Board, and amendments thereto as approved by the Ontario Energy Board, or as specified herein.
B224: Unless specifically noted, this schedule does not contain any charges for the electricity commodity, be it under the Regulated Price Plan, a contract with a retailer or the wholesale market price, as applicable. In addition, the charges in the MONTHLY RATES AND CHARGES - Regulatory Component of this schedule do not apply to a customer that is an embedded wholesale market participant. | H224: 6_SENTINEL LIGHTING SERVICE CLASSIFICATION | V224: 387 | AA224: Unless specifically noted, this schedule does not contain any charges for the electricity commodity, be it under the Regulated Price Plan, a contract with a retailer or the wholesale market price, as applicable. In addition, the charges in the MONTHLY RATES AND CHARGES - Regulatory Component of this schedule do not apply to a customer that is an embedded wholesale market participant.
B226: It should be noted that this schedule does not list any charges, assessments, or credits that are required by law to be invoiced by a distributor and that are not subject to Ontario Energy Board approval, such as the Debt Retirement Charge, the Global Adjustment and the HST. | H226: 6_SENTINEL LIGHTING SERVICE CLASSIFICATION | V226: 275 | AA226: It should be noted that this schedule does not list any charges, assessments, or credits that are required by law to be invoiced by a distributor and that are not subject to Ontario Energy Board approval, such as the Debt Retirement Charge, the Global Adjustment and the HST.
B228: MONTHLY RATES AND CHARGES - Delivery Component | H228: 6_MRC_DEL | V228: 46 | AA228: MONTHLY RATES AND CHARGES - Delivery Component
B230: Service Charge (per connection) | D230: $ | E230: 3.78 | H230: 6_SENTINEL LIGHTING SERVICE CLASSIFICATION | I230: A | M230: 6_SENTINEL LIGHTING SERVICE CLASSIFICATION_MSC | V230: 4 | Z230: Service Charge (per connection)
B231: Distribution Volumetric Rate | D231: $/kW | E231: 8.436 | H231: 6_SENTINEL LIGHTING SERVICE CLASSIFICATION | I231: A | M231: 6_SENTINEL LIGHTING SERVICE CLASSIFICATION_DVC | V231: 6 | Z231: Distribution Volumetric Rate
B232: Rate Rider for Disposition of Deferral/Variance Accounts (2017) - effective until April 30, 2018 | D232: $/kW | E232: -0.2918 | H232: 6_SENTINEL LIGHTING SERVICE CLASSIFICATION | I232: B | M232: 6_SENTINEL LIGHTING SERVICE CLASSIFICATION_DEFVAR_ALL | V232: 7
B233: Rate Rider for Disposition of Deferral/Variance Accounts (2017) - effective until April 30, 2018 Applicable for only Non-WMP | D233: $/kW | E233: -0.2394 | H233: 6_SENTINEL LIGHTING SERVICE CLASSIFICATION | I233: B | M233: 6_SENTINEL LIGHTING SERVICE CLASSIFICATION_DEFVAR_ALL | V233: 7
B234: Rate Rider for Disposition of Global Adjustment Account (2017) - effective until April 30, 2018 Applicable only for Non-RPP | D234: $/kWh | E234: 0.0014 | H234: 6_SENTINEL LIGHTING SERVICE CLASSIFICATION | I234: B | M234: 6_SENTINEL LIGHTING SERVICE CLASSIFICATION_GA_kwh | V234: 6
B235: Rate Rider for Disposition of Group 2 Deferral/Variance Accounts (2017) - effective until April 30, 2018 | D235: $/kW | E235: 0.0515 | H235: 6_SENTINEL LIGHTING SERVICE CLASSIFICATION | I235: B | M235: 6_SENTINEL LIGHTING SERVICE CLASSIFICATION_DEFVAR_ALL | V235: 6
B236: Rate Rider for Disposition of Account 1575 Deferral/Variance Account (2017) - effective until April 30, 2018 | D236: $/kW | E236: 0.0857 | H236: 6_SENTINEL LIGHTING SERVICE CLASSIFICATION | I236: B | M236: 6_SENTINEL LIGHTING SERVICE CLASSIFICATION_DEFVAR_ALL | V236: 6
B237: Rate Rider for Dispostion of LRAM 1568 Deferral/Variance Account (2017) - effective until April 30, 2018 | D237: $/kW | E237: -0.2295 | H237: 6_SENTINEL LIGHTING SERVICE CLASSIFICATION | I237: B | M237: 6_SENTINEL LIGHTING SERVICE CLASSIFICATION_VR_RR_28 | V237: 7
B238: Retail Transmission Rate - Network Service Rate | D238: $/kW | E238: 2.167 | H238: 6_SENTINEL LIGHTING SERVICE CLASSIFICATION | I238: C | M238: 6_SENTINEL LIGHTING SERVICE CLASSIFICATION_Retail Transmission Rate - Network Service Rate | V238: 5 | Z238: Retail Transmission Rate - Network Service Rate
B239: Retail Transmission Rate - Line and Transformation Connection Service Rate | D239: $/kW | E239: 1.6448 | H239: 6_SENTINEL LIGHTING SERVICE CLASSIFICATION | I239: C | M239: 6_SENTINEL LIGHTING SERVICE CLASSIFICATION_Retail Transmission Rate - Line and Transformation Connection Service Rate | V239: 6 | Z239: Retail Transmission Rate - Line and Transformation Connection Service Rate
B241: MONTHLY RATES AND CHARGES - Regulatory Component | H241: 6_MRC_REG | V241: 48 | Z241: MONTHLY RATES AND CHARGES - Regulatory Component
B243: Wholesale Market Service Rate | D243: $/kWh | E243: 0.0036 | H243: 6_SENTINEL LIGHTING SERVICE CLASSIFICATION | I243: T | M243: 6_SENTINEL LIGHTING SERVICE CLASSIFICATION_WMSR | V243: 6 | Z243: Wholesale Market Service Rate
B244: Rural or Remote Electricity Rate Protection Charge (RRRP) | D244: $/kWh | E244: 0.0021 | H244: 6_SENTINEL LIGHTING SERVICE CLASSIFICATION | I244: T | M244: 6_SENTINEL LIGHTING SERVICE CLASSIFICATION_RRRP | V244: 6 | Z244: Rural or Remote Electricity Rate Protection Charge (RRRP)
B245: Ontario Electricity Support Program Charge (OESP) | D245: $/kWh | E245: 0.0011 | H245: 6_SENTINEL LIGHTING SERVICE CLASSIFICATION | I245: T | M245: 6_SENTINEL LIGHTING SERVICE CLASSIFICATION_OESPR | V245: 6 | Z245: Ontario Electricity Support Program Charge (OESP)
B246: Standard Supply Service - Administrative Charge (if applicable) | D246: $ | E246: 0.25 | H246: 6_SENTINEL LIGHTING SERVICE CLASSIFICATION | I246: T | M246: 6_SENTINEL LIGHTING SERVICE CLASSIFICATION_SSS | V246: 4 | Z246: Standard Supply Service - Administrative Charge (if applicable) | AS246: X
B247: STREET LIGHTING SERVICE CLASSIFICATION | H247: 7_STREET LIGHTING SERVICE CLASSIFICATION | V247: 38 | AA247: STREET LIGHTING SERVICE CLASSIFICATION
B248: This classification refers to the Street Lighting system owned by the City of Welland. Welland Hydro-Electric System Corp. provides new installations and maintenance of the street lighting system, as required by the City of Welland. Further servicing details are available in the distributor's Conditions of Service. | H248: 7_STREET LIGHTING SERVICE CLASSIFICATION | V248: 318 | AA248: This classification refers to the Street Lighting system owned by the City of Welland. Welland Hydro-Electric System Corp. provides new installations and maintenance of the street lighting system, as required by the City of Welland. Further servicing details are available in the distributor's Conditions of Service.
B250: APPLICATION | H250: 7_APPLICATION | V250: 11 | AA250: APPLICATION
B252: The application of these rates and charges shall be in accordance with the Licence of the Distributor and any Code or Order of the Ontario Energy Board, and amendments thereto as approved by the Ontario Energy Board, which may be applicable to the administration of this schedule. | H252: 7_STREET LIGHTING SERVICE CLASSIFICATION | V252: 280 | AA252: The application of these rates and charges shall be in accordance with the Licence of the Distributor and any Code or Order of the Ontario Energy Board, and amendments thereto as approved by the Ontario Energy Board, which may be applicable to the administration of this schedule.
B254: No rates and charges for the distribution of electricity and charges to meet the costs of any work or service done or furnished for the purpose of the distribution of electricity shall be made except as permitted by this schedule, unless required by the Distributor’s Licence or a Code or Order of the Ontario Energy Board, and amendments thereto as approved by the Ontario Energy Board, or as specified herein. | H254: 7_STREET LIGHTING SERVICE CLASSIFICATION | V254: 411 | AA254: No rates and charges for the distribution of electricity and charges to meet the costs of any work or service done or furnished for the purpose of the distribution of electricity shall be made except as permitted by this schedule, unless required by the Distributor’s Licence or a Code or Order of the Ontario Energy Board, and amendments thereto as approved by the Ontario Energy Board, or as specified herein.
B256: Unless specifically noted, this schedule does not contain any charges for the electricity commodity, be it under the Regulated Price Plan, a contract with a retailer or the wholesale market price, as applicable. In addition, the charges in the MONTHLY RATES AND CHARGES - Regulatory Component of this schedule do not apply to a customer that is an embedded wholesale market participant. | H256: 7_STREET LIGHTING SERVICE CLASSIFICATION | V256: 387 | AA256: Unless specifically noted, this schedule does not contain any charges for the electricity commodity, be it under the Regulated Price Plan, a contract with a retailer or the wholesale market price, as applicable. In addition, the charges in the MONTHLY RATES AND CHARGES - Regulatory Component of this schedule do not apply to a customer that is an embedded wholesale market participant.
B258: It should be noted that this schedule does not list any charges, assessments, or credits that are required by law to be invoiced by a distributor and that are not subject to Ontario Energy Board approval, such as the Debt Retirement Charge, the Global Adjustment and the HST. | H258: 7_STREET LIGHTING SERVICE CLASSIFICATION | V258: 275 | AA258: It should be noted that this schedule does not list any charges, assessments, or credits that are required by law to be invoiced by a distributor and that are not subject to Ontario Energy Board approval, such as the Debt Retirement Charge, the Global Adjustment and the HST.
B260: MONTHLY RATES AND CHARGES - Delivery Component | H260: 7_MRC_DEL | V260: 46 | AA260: MONTHLY RATES AND CHARGES - Delivery Component
B262: Service Charge (per device) | D262: $ | E262: 0.62 | H262: 7_STREET LIGHTING SERVICE CLASSIFICATION | I262: A | M262: 7_STREET LIGHTING SERVICE CLASSIFICATION_MSC | V262: 4 | Z262: Service Charge (per device)
B263: Distribution Volumetric Rate | D263: $/kW | E263: 2.5797 | H263: 7_STREET LIGHTING SERVICE CLASSIFICATION | I263: A | M263: 7_STREET LIGHTING SERVICE CLASSIFICATION_DVC | V263: 6 | Z263: Distribution Volumetric Rate
B264: Rate Rider for Disposition of Deferral/Variance Accounts (2017) - effective until April 30, 2018 | D264: $/kW | E264: -0.2313 | H264: 7_STREET LIGHTING SERVICE CLASSIFICATION | I264: B | M264: 7_STREET LIGHTING SERVICE CLASSIFICATION_DEFVAR_ALL | V264: 6
B265: Rate Rider for Disposition of Deferral/Variance Accounts (2017) - effective until April 30, 2018 Applicable for only Non-WMP | D265: $/kW | E265: -0.2364 | H265: 7_STREET LIGHTING SERVICE CLASSIFICATION | I265: B | M265: 7_STREET LIGHTING SERVICE CLASSIFICATION_DEFVAR_ALL | V265: 7
B266: Rate Rider for Disposition of Global Adjustment Account (2017) - effective until April 30, 2018 Applicable only for Non-RPP | D266: $/kWh | E266: 0.0014 | H266: 7_STREET LIGHTING SERVICE CLASSIFICATION | I266: B | M266: 7_STREET LIGHTING SERVICE CLASSIFICATION_GA_kwh | V266: 6
B267: Rate Rider for Disposition of Group 2 Deferral/Variance Accounts (2017) - effective until April 30, 2018 | D267: $/kW | E267: 0.0508 | H267: 7_STREET LIGHTING SERVICE CLASSIFICATION | I267: B | M267: 7_STREET LIGHTING SERVICE CLASSIFICATION_DEFVAR_ALL | V267: 6
B268: Rate Rider for Disposition of Account 1575 Deferral/Variance Account (2017) - effective until April 30, 2018 | D268: $/kW | E268: 0.0847 | H268: 7_STREET LIGHTING SERVICE CLASSIFICATION | I268: B | M268: 7_STREET LIGHTING SERVICE CLASSIFICATION_DEFVAR_ALL | V268: 5
B269: Rate Rider for Dispostion of LRAM 1568 Deferral/Variance Account (2017) - effective until April 30, 2018 | D269: $/kW | E269: -0.261 | H269: 7_STREET LIGHTING SERVICE CLASSIFICATION | I269: B | M269: 7_STREET LIGHTING SERVICE CLASSIFICATION_VR_RR_34 | V269: 7
B270: Retail Transmission Rate - Network Service Rate | D270: $/kW | E270: 2.1623 | H270: 7_STREET LIGHTING SERVICE CLASSIFICATION | I270: C | M270: 7_STREET LIGHTING SERVICE CLASSIFICATION_Retail Transmission Rate - Network Service Rate | V270: 6 | Z270: Retail Transmission Rate - Network Service Rate
B271: Retail Transmission Rate - Line and Transformation Connection Service Rate | D271: $/kW | E271: 1.6411 | H271: 7_STREET LIGHTING SERVICE CLASSIFICATION | I271: C | M271: 7_STREET LIGHTING SERVICE CLASSIFICATION_Retail Transmission Rate - Line and Transformation Connection Service Rate | V271: 6 | Z271: Retail Transmission Rate - Line and Transformation Connection Service Rate
B273: MONTHLY RATES AND CHARGES - Regulatory Component | H273: 7_MRC_REG | V273: 48 | Z273: MONTHLY RATES AND CHARGES - Regulatory Component
B275: Wholesale Market Service Rate | D275: $/kWh | E275: 0.0036 | H275: 7_STREET LIGHTING SERVICE CLASSIFICATION | I275: T | M275: 7_STREET LIGHTING SERVICE CLASSIFICATION_WMSR | V275: 6 | Z275: Wholesale Market Service Rate
B276: Rural or Remote Electricity Rate Protection Charge (RRRP) | D276: $/kWh | E276: 0.0021 | H276: 7_STREET LIGHTING SERVICE CLASSIFICATION | I276: T | M276: 7_STREET LIGHTING SERVICE CLASSIFICATION_RRRP | V276: 6 | Z276: Rural or Remote Electricity Rate Protection Charge (RRRP)
B277: Ontario Electricity Support Program Charge (OESP) | D277: $/kWh | E277: 0.0011 | H277: 7_STREET LIGHTING SERVICE CLASSIFICATION | I277: T | M277: 7_STREET LIGHTING SERVICE CLASSIFICATION_OESPR | V277: 6 | Z277: Ontario Electricity Support Program Charge (OESP)
B278: Standard Supply Service - Administrative Charge (if applicable) | D278: $ | E278: 0.25 | H278: 7_STREET LIGHTING SERVICE CLASSIFICATION | I278: T | M278: 7_STREET LIGHTING SERVICE CLASSIFICATION_SSS | V278: 4 | Z278: Standard Supply Service - Administrative Charge (if applicable) | AS278: X
B279: microFIT SERVICE CLASSIFICATION | H279: 8_MICROFIT SERVICE CLASSIFICATION | V279: 31 | AA279: microFIT SERVICE CLASSIFICATION
... 63 more rows

Sheet 5. 2-W Bill Impacts
AZ1: YES | CA1: 1
D12: The bill comparisons below must be provided for typical customers and consumption levels. Bill impacts must be provided for residential customers consuming 750 kWh per month and general service customers consuming 2,000 kWh per month and having a monthly demand of less than 50 kW. Include bill comparisons for Non-RPP (retailer) as well. The OEB has established that, when assessing the combined effects of the shift to fixed rates and other bill impacts associated with changes in the cost of distribution service, a utility shall evaluate the total bill impact for a low volume residential customer consuming at the distributor’s 10th consumption percentile19, to a minimum of 50 kWh per month. Refer to page 62 of Chapter 2 Filing Requirements For Electricity Distribution Rate Applications issued July 14, 2016. For certain classes where one or more customers have unique consumption and demand patterns and which may be significantly impacted by the proposed rate changes, the distributor must show a typical comparison, and provide an explanation. Note: 1. For those classes that are not eligible for the RPP price, the weighted average price including Class B GA through end of May 2016 of $0.113/kWh (IESO's Monthly Market Report for May 2016, page 22) has been used to represent the cost of power. For those classes on a retailer contract, applicants should enter the contract price (plus GA) for a more accurate estimate. Changes to the cost of power can be made directly on the bill impact chart for the specific class. 2. Due to the change to energy consumption used in the calculation of GA rate riders for the 2017 rate year, the separate “GA Rate Riders” line is only applicable to the “Proposed” section of the bill impact tables. 3. Please enter the applicable billing determinant (e.g. number of connections or devices) to be applied to the monthly service charge for unmetered rate classes in column N. If the monthly service charge is applied on a per customer basis, enter the number “1”. Distributors should provide the number of connections or devices reflective of a typical customer in each class.
D13: Note that cells with the highlighted color shown to the left indicate quantities that are loss adjusted.
D28: Table 1
D29: RATE CLASSES / CATEGORIES (eg: Residential TOU, Residential Retailer) | G29: Units | H29: RPP? Non-RPP Retailer? Non-RPP Other? | I29: Current Loss Factor (eg: 1.0351) | J29: Proposed Loss Factor | K29: Consumption (kWh) | L29: Demand kW (if applicable) | M29: RTSR Demand or Demand-Interval? | N29: Billing Determinant Applied to Fixed Charge for Unmetered Classes (e.g. # of devices/connections).
B30: 1 | C30: 1 | D30: RESIDENTIAL SERVICE CLASSIFICATION | G30: kWh | H30: RPP | I30: 1.0532 | J30: 1.0476 | K30: 750 | M30: N/A | T30: =SUM(I30:L30) -> 752.1008 | U30: 78 | AS30: 1
B31: 2 | C31: 2 | D31: GENERAL SERVICE LESS THAN 50 kW SERVICE CLASSIFICATION | G31: kWh | H31: RPP | I31: 1.0532 | J31: 1.0476 | K31: 2000 | M31: N/A | T31: 2002.1008 | U31: =U30+68 -> 146 | AS31: 2
B32: 3 | C32: 3 | D32: GENERAL SERVICE 50 TO 4,999 KW SERVICE CLASSIFICATION | G32: kW | H32: Non-RPP (Other) | I32: 1.0532 | J32: 1.0476 | K32: 32400 | L32: 60 | M32: N/A | T32: 32462.1008 | U32: 214 | AS32: 3
B33: 4 | C33: 4 | D33: UNMETERED SCATTERED LOAD SERVICE CLASSIFICATION | G33: kWh | H33: RPP | I33: 1.0532 | J33: 1.0476 | K33: 150 | M33: N/A | N33: 1 | T33: 152.1008 | U33: 282 | AS33: 4
B34: 5 | C34: 5 | D34: SENTINEL LIGHTING SERVICE CLASSIFICATION | G34: kW | H34: RPP | I34: 1.0532 | J34: 1.0476 | K34: 120 | L34: 0.3 | M34: N/A | N34: 1 | T34: 122.4008 | U34: 350 | AS34: 5
B35: 6 | C35: 6 | D35: STREET LIGHTING SERVICE CLASSIFICATION | G35: kW | H35: Non-RPP (Other) | I35: 1.0532 | J35: 1.0476 | K35: 16 | L35: 0.044 | M35: N/A | N35: 1 | T35: 18.1448 | U35: 418 | AS35: 6
B36: 7 | C36: 7 | D36: STREET LIGHTING SERVICE CLASSIFICATION | J36: 1.0532 | T36: 1.0532 | U36: 486 | AS36: 7
B37: 8 | C37: 8 | D37: RESIDENTIAL SERVICE CLASSIFICATION | E37: 10th Percentile | G37: kWh | H37: RPP | I37: 1.0532 | J37: 1.0476 | K37: 308 | M37: N/A | T37: 310.1008 | AS37: 8
B38: 9 | C38: 9 | D38: GENERAL SERVICE 50 TO 4,999 KW SERVICE CLASSIFICATION | E38: ICE CLASSIFICATION Primary/Transformer | G38: kW | H38: Non-RPP (Other) | I38: 1.0427 | J38: 1.0371 | K38: 1091088 | L38: 3648 | M38: N/A | T38: 1094738.08 | AS38: 9
B39: 10 | C39: =IF(ISERROR(VLOOKUP(D39, D30:AS69, 42, FALSE)),"", VLOOKUP(D39, D30:AS69, 42, FALSE)) -> 0 | D39: Add additional scenarios if required | T39: 0
B40: 11 | C40: =IF(ISERROR(VLOOKUP(D40, D30:AS69, 42, FALSE)),"", VLOOKUP(D40, D30:AS69, 42, FALSE)) -> 0 | D40: Add additional scenarios if required | T40: 0
B41: 12 | C41: =IF(ISERROR(VLOOKUP(D41, D30:AS69, 42, FALSE)),"", VLOOKUP(D41, D30:AS69, 42, FALSE)) -> 0 | D41: Add additional scenarios if required | T41: 0
B42: 13 | C42: =IF(ISERROR(VLOOKUP(D42, D30:AS69, 42, FALSE)),"", VLOOKUP(D42, D30:AS69, 42, FALSE)) -> 0 | D42: Add additional scenarios if required | T42: 0
B43: 14 | C43: =IF(ISERROR(VLOOKUP(D43, D30:AS69, 42, FALSE)),"", VLOOKUP(D43, D30:AS69, 42, FALSE)) -> 0 | D43: Add additional scenarios if required | T43: 0
B44: 15 | C44: =IF(ISERROR(VLOOKUP(D44, D30:AS69, 42, FALSE)),"", VLOOKUP(D44, D30:AS69, 42, FALSE)) -> 0 | D44: Add additional scenarios if required | T44: 0
B45: 16 | C45: =IF(ISERROR(VLOOKUP(D45, D30:AS69, 42, FALSE)),"", VLOOKUP(D45, D30:AS69, 42, FALSE)) -> 0 | D45: Add additional scenarios if required | T45: 0
B46: 17 | C46: =IF(ISERROR(VLOOKUP(D46, D30:AS69, 42, FALSE)),"", VLOOKUP(D46, D30:AS69, 42, FALSE)) -> 0 | D46: Add additional scenarios if required | T46: 0
B47: 18 | C47: =IF(ISERROR(VLOOKUP(D47, D30:AS69, 42, FALSE)),"", VLOOKUP(D47, D30:AS69, 42, FALSE)) -> 0 | D47: Add additional scenarios if required | T47: 0
B48: 19 | C48: =IF(ISERROR(VLOOKUP(D48, D30:AS69, 42, FALSE)),"", VLOOKUP(D48, D30:AS69, 42, FALSE)) -> 0 | D48: Add additional scenarios if required | T48: 0
B49: 20 | C49: =IF(ISERROR(VLOOKUP(D49, D30:AS69, 42, FALSE)),"", VLOOKUP(D49, D30:AS69, 42, FALSE)) -> 0 | D49: Add additional scenarios if required | T49: 0
B50: 21 | C50: =IF(ISERROR(VLOOKUP(D50, D30:AS69, 42, FALSE)),"", VLOOKUP(D50, D30:AS69, 42, FALSE)) -> 0 | D50: Add additional scenarios if required | T50: 0
B51: 22 | C51: =IF(ISERROR(VLOOKUP(D51, D30:AS69, 42, FALSE)),"", VLOOKUP(D51, D30:AS69, 42, FALSE)) -> 0 | D51: Add additional scenarios if required | T51: 0
B52: 23 | C52: =IF(ISERROR(VLOOKUP(D52, D30:AS69, 42, FALSE)),"", VLOOKUP(D52, D30:AS69, 42, FALSE)) -> 0 | D52: Add additional scenarios if required | T52: 0
B53: 24 | C53: =IF(ISERROR(VLOOKUP(D53, D30:AS69, 42, FALSE)),"", VLOOKUP(D53, D30:AS69, 42, FALSE)) -> 0 | D53: Add additional scenarios if required | T53: 0
B54: 25 | C54: =IF(ISERROR(VLOOKUP(D54, D30:AS69, 42, FALSE)),"", VLOOKUP(D54, D30:AS69, 42, FALSE)) -> 0 | D54: Add additional scenarios if required | T54: 0
B55: 26 | C55: =IF(ISERROR(VLOOKUP(D55, D30:AS69, 42, FALSE)),"", VLOOKUP(D55, D30:AS69, 42, FALSE)) -> 0 | D55: Add additional scenarios if required | T55: 0
B56: 27 | C56: =IF(ISERROR(VLOOKUP(D56, D30:AS69, 42, FALSE)),"", VLOOKUP(D56, D30:AS69, 42, FALSE)) -> 0 | D56: Add additional scenarios if required | T56: 0
B57: 28 | C57: =IF(ISERROR(VLOOKUP(D57, D30:AS69, 42, FALSE)),"", VLOOKUP(D57, D30:AS69, 42, FALSE)) -> 0 | D57: Add additional scenarios if required | T57: 0 | U57: =U36+68 -> 554 | AS57: 8
B58: 29 | C58: =IF(ISERROR(VLOOKUP(D58, D30:AS69, 42, FALSE)),"", VLOOKUP(D58, D30:AS69, 42, FALSE)) -> 0 | D58: Add additional scenarios if required | T58: 0 | U58: =U57+68 -> 622 | AS58: 9
B59: 30 | C59: =IF(ISERROR(VLOOKUP(D59, D30:AS69, 42, FALSE)),"", VLOOKUP(D59, D30:AS69, 42, FALSE)) -> 0 | D59: Add additional scenarios if required | T59: 0 | U59: 690 | AS59: 10
B60: 31 | C60: =IF(ISERROR(VLOOKUP(D60, D30:AS69, 42, FALSE)),"", VLOOKUP(D60, D30:AS69, 42, FALSE)) -> 0 | D60: Add additional scenarios if required | T60: 0 | U60: 758
B61: 32 | C61: =IF(ISERROR(VLOOKUP(D61, D30:AS69, 42, FALSE)),"", VLOOKUP(D61, D30:AS69, 42, FALSE)) -> 0 | D61: Add additional scenarios if required | T61: 0 | U61: 826
B62: 33 | C62: =IF(ISERROR(VLOOKUP(D62, D30:AS69, 42, FALSE)),"", VLOOKUP(D62, D30:AS69, 42, FALSE)) -> 0 | D62: Add additional scenarios if required | T62: 0 | U62: 894
B63: 34 | C63: =IF(ISERROR(VLOOKUP(D63, D30:AS69, 42, FALSE)),"", VLOOKUP(D63, D30:AS69, 42, FALSE)) -> 0 | D63: Add additional scenarios if required | T63: 0 | U63: 962
B64: 35 | C64: =IF(ISERROR(VLOOKUP(D64, D30:AS69, 42, FALSE)),"", VLOOKUP(D64, D30:AS69, 42, FALSE)) -> 0 | D64: Add additional scenarios if required | T64: 0 | U64: 1030
B65: 36 | C65: =IF(ISERROR(VLOOKUP(D65, D30:AS69, 42, FALSE)),"", VLOOKUP(D65, D30:AS69, 42, FALSE)) -> 0 | D65: Add additional scenarios if required | T65: 0 | U65: 1098
B66: 37 | C66: =IF(ISERROR(VLOOKUP(D66, D30:AS69, 42, FALSE)),"", VLOOKUP(D66, D30:AS69, 42, FALSE)) -> 0 | D66: Add additional scenarios if required | T66: 0 | U66: 1166
B67: 38 | C67: =IF(ISERROR(VLOOKUP(D67, D30:AS69, 42, FALSE)),"", VLOOKUP(D67, D30:AS69, 42, FALSE)) -> 0 | D67: Add additional scenarios if required | T67: 0 | U67: 1234
B68: 39 | C68: =IF(ISERROR(VLOOKUP(D68, D30:AS69, 42, FALSE)),"", VLOOKUP(D68, D30:AS69, 42, FALSE)) -> 0 | D68: Add additional scenarios if required | T68: 0 | U68: 1302
B69: 40 | C69: =IF(ISERROR(VLOOKUP(D69, D30:AS69, 42, FALSE)),"", VLOOKUP(D69, D30:AS69, 42, FALSE)) -> 0 | D69: Add additional scenarios if required | T69: 0 | U69: 1370
D71: Table 2
D72: RATE CLASSES / CATEGORIES (eg: Residential TOU, Residential Retailer) | G72: Units | H72: Sub-Total | N72: Total
H73: A | J73: B | L73: C | N73: A + B + C
H74: $ | I74: % | J74: $ | K74: % | L74: $ | M74: % | N74: $ | O74: %
B75: =H30 -> RPP | C75: 1 | D75: =IF(ISBLANK(D30), "", IF(D30 = "Add additional scenarios if required", "", IF(M30="YES", D30 & " - " & H30 & " - Interval Customers", D30 & " - " &H30))) -> RESIDENTIAL SERVICE CLASSIFICATION - RPP | G75: =IF(ISBLANK(G30), "", G30) -> kWh | H75: =IF(LEN($G75)>1, (SUMPRODUCT(--($C$118:$C$1000=$B30), --($A$118:$A$1000=$D30), --($B$118:$B$1000="ST_A"), $L$118:$L$1000)), "") -> 1.715 | I75: =IF(LEN($G75)>1, (SUMPRODUCT(--($C$118:$C$1000=$B30), --($A$118:$A$1000=$D30), --($B$118:$B$1000="ST_A"), $M$118:$M$1000)), "") -> 0.06320250599 | J75: =IF(LEN($G75)>1, (SUMPRODUCT(--($C$118:$C$1000=$B30), --($A$118:$A$1000=$D30), --($B$118:$B$1000="ST_B"), $L$118:$L$1000)), "") -> 1.547162 | K75: =IF(LEN($G75)>1, (SUMPRODUCT(--($C$118:$C$1000=$B30), --($A$118:$A$1000=$D30), --($B$118:$B$1000="ST_B"), $M$118:$M$1000)), "") -> 0.04999802711 | L75: =IF(LEN($G75)>1, (SUMPRODUCT(--($C$118:$C$1000=$B30), --($A$118:$A$1000=$D30), --($B$118:$B$1000="ST_C"), $L$118:$L$1000)), "") -> 1.331642 | M75: =IF(LEN($G75)>1, (SUMPRODUCT(--($C$118:$C$1000=$B30), --($A$118:$A$1000=$D30), --($B$118:$B$1000="ST_C"), $M$118:$M$1000)), "") -> 0.03176318445 | N75: =IF(LEN($G75)>1, (SUMPRODUCT(--($C$118:$C$1000=$B30), --($A$118:$A$1000=$D30), --($B$118:$B$1000=$B75&"_TOTAL"), $L$118:$L$1000)), "") -> 1.47235836 | O75: =IF(LEN($G75)>1, (SUMPRODUCT(--($C$118:$C$1000=$B30), --($A$118:$A$1000=$D30), --($B$118:$B$1000=$B75&"_TOTAL"), $M$118:$M$1000)), "") -> 0.009939674036
B76: RPP | C76: 2 | D76: GENERAL SERVICE LESS THAN 50 kW SERVICE CLASSIFICATION - RPP | G76: kWh | H76: =IF(LEN($G76)>1, (SUMPRODUCT(--($C$118:$C$1000=$B31), --($A$118:$A$1000=$D31), --($B$118:$B$1000="ST_A"), $L$118:$L$1000)), "") -> 3.72 | I76: =IF(LEN($G76)>1, (SUMPRODUCT(--($C$118:$C$1000=$B31), --($A$118:$A$1000=$D31), --($B$118:$B$1000="ST_A"), $M$118:$M$1000)), "") -> 0.07930078874 | J76: =IF(LEN($G76)>1, (SUMPRODUCT(--($C$118:$C$1000=$B31), --($A$118:$A$1000=$D31), --($B$118:$B$1000="ST_B"), $L$118:$L$1000)), "") -> 4.072432 | K76: =IF(LEN($G76)>1, (SUMPRODUCT(--($C$118:$C$1000=$B31), --($A$118:$A$1000=$D31), --($B$118:$B$1000="ST_B"), $M$118:$M$1000)), "") -> 0.07304562342 | L76: =IF(LEN($G76)>1, (SUMPRODUCT(--($C$118:$C$1000=$B31), --($A$118:$A$1000=$D31), --($B$118:$B$1000="ST_C"), $L$118:$L$1000)), "") -> 3.517872 | M76: =IF(LEN($G76)>1, (SUMPRODUCT(--($C$118:$C$1000=$B31), --($A$118:$A$1000=$D31), --($B$118:$B$1000="ST_C"), $M$118:$M$1000)), "") -> 0.04330256958 | N76: =IF(LEN($G76)>1, (SUMPRODUCT(--($C$118:$C$1000=$B31), --($A$118:$A$1000=$D31), --($B$118:$B$1000=$B76&"_TOTAL"), $L$118:$L$1000)), "") -> 3.88963176 | O76: =IF(LEN($G76)>1, (SUMPRODUCT(--($C$118:$C$1000=$B31), --($A$118:$A$1000=$D31), --($B$118:$B$1000=$B76&"_TOTAL"), $M$118:$M$1000)), "") -> 0.01034946028
B77: Non-RPP (Other) | C77: 3 | D77: GENERAL SERVICE 50 TO 4,999 KW SERVICE CLASSIFICATION - Non-RPP (Other) | G77: kW | H77: 84.796 | I77: 0.1974295693 | J77: 133.114 | K77: 0.3240423377 | L77: 141.76 | M77: 0.2145590158 | N77: 136.8358042 | O77: 0.02536288944
B78: RPP | C78: 4 | D78: UNMETERED SCATTERED LOAD SERVICE CLASSIFICATION - RPP | G78: kWh | H78: -1.575 | I78: -0.1199543031 | J78: -1.6085676 | K78: -0.1171239425 | L78: -1.6501596 | M78: -0.1054721711 | N78: -1.871159768 | O78: -0.04768147713
B79: RPP | C79: 5 | D79: SENTINEL LIGHTING SERVICE CLASSIFICATION - RPP | G79: kW | H79: 1.80436 | I79: 0.4003958779 | J79: 1.75515592 | K79: 0.3506907503 | L79: 1.73484592 | M79: 0.2812334629 | N79: 1.956047538 | O79: 0.0805716514
B80: Non-RPP (Other) | C80: 6 | D80: STREET LIGHTING SERVICE CLASSIFICATION - Non-RPP (Other) | G80: kW | H80: -1.6264276 | I80: -0.6891833943 | J80: -1.62172072 | K80: -0.666400948 | L80: -1.62469512 | M80: -0.6239527992 | N80: -1.836482599 | O80: -0.3383332924
B81: 0 | C81: 7 | D81: STREET LIGHTING SERVICE CLASSIFICATION -
B82: =H37 -> RPP | C82: 8 | D82: RESIDENTIAL SERVICE CLASSIFICATION - RPP | G82: kWh | H82: 2.9968 | I82: 0.1332266382 | J82: 2.927874528 | K82: 0.1193881702 | L82: 2.839367648 | M82: 0.09779810421 | N82: 3.19571138 | O82: 0.04298198944
B83: Non-RPP (Other) | C83: 9 | D83: GENERAL SERVICE 50 TO 4,999 KW SERVICE CLASSIFICATION - Non-RPP (Other) | G83: kW | H83: 1545.0232 | I83: 0.2317267387 | J83: 3235.3426 | K83: 0.5838688718 | L83: 3755.8318 | M83: 0.1824466618 | N83: 3453.536146 | O83: 0.01929296279
B84: 0 | C84: 10
B85: 0 | C85: 11
B86: 0 | C86: 12
B87: 0 | C87: 13
B88: 0 | C88: 14
B89: 0 | C89: 15
B90: 0 | C90: 16
B91: 0 | C91: 17
B92: 0 | C92: 18
B93: 0 | C93: 19
B94: 0 | C94: 20
B95: 0 | C95: 21
B96: 0 | C96: 22
B97: 0 | C97: 23
B98: =H53 -> 0 | C98: 24
B99: 0 | C99: 25
B100: 0 | C100: 26
B101: 0 | C101: 27
B102: 0 | C102: 28
B103: 0 | C103: 29
B104: 0 | C104: 30
B105: 0 | C105: 31
B106: 0 | C106: 32
B107: 0 | C107: 33
B108: 0 | C108: 34
B109: 0 | C109: 35
B110: 0 | C110: 36
B111: 0 | C111: 37
B112: 0 | C112: 38
B113: 0 | C113: 39
B114: 0 | C114: 40
D118: Customer Class: | E118: =D30 -> RESIDENTIAL SERVICE CLASSIFICATION | K118: =IF(N30="DEMAND - INTERVAL","RTSR - INTERVAL METERED","") ->  | T118: X
D119: RPP / Non-RPP: | E119: =H30 -> RPP
D120: Consumption | E120: =K30 -> 750 | F120: kWh
D121: Demand | E121: =L30 -> 0 | F121: kW
D122: Current Loss Factor | E122: =I30 -> 1.0532
D123: Proposed/Approved Loss Factor | E123: =J30 -> 1.0476
F125: Current OEB-Approved | I125: Proposed | L125: Impact
F126: Rate | G126: Volume | H126: Charge | I126: Rate | J126: Volume | K126: Charge | L126: $ Change | M126: % Change
F127: ($) | H127: ($) | I127: ($) | K127: ($)
A128: =$E118 -> RESIDENTIAL SERVICE CLASSIFICATION | D128: Monthly Service Charge | F128: 18.76 | G128: 1 | H128: =G128*F128 -> 18.76 | I128: 22.91 | J128: =G128 -> 1 | K128: =J128*I128 -> 22.91 | L128: =K128-H128 -> 4.15 | M128: =IF(ISERROR(L128/H128), "", L128/H128) -> 0.2212153518
A129: =A128 -> RESIDENTIAL SERVICE CLASSIFICATION | D129: Distribution Volumetric Rate | F129: 0.0105 | G129: =IF($E121>0, $E121, $E120) -> 750 | H129: =G129*F129 -> 7.875 | I129: 0.0077 | J129: =IF($E121>0, $E121, $E120) -> 750 | K129: =J129*I129 -> 5.775 | L129: -2.1 | M129: =IF(ISERROR(L129/H129), "", L129/H129) -> -0.2666666667
A130: =A129 -> RESIDENTIAL SERVICE CLASSIFICATION | D130: Fixed Rate Riders | F130: 0.5 | G130: 1 | H130: 0.5 | I130: 0.24 | J130: =G130 -> 1 | K130: =J130*I130 -> 0.24 | L130: -0.26 | M130: -0.52
A131: RESIDENTIAL SERVICE CLASSIFICATION | D131: Volumetric Rate Riders | F131: 0 | G131: =IF($E121>0, $E121, $E120) -> 750 | H131: 0 | I131: -0.0001 | J131: =IF($E121>0, $E121, $E120) -> 750 | K131: -0.075 | L131: -0.075
A132: RESIDENTIAL SERVICE CLASSIFICATION | B132: ST_A | C132: =B30 -> 1 | D132: Sub-Total A (excluding pass through) | H132: =SUM(H128:H131) -> 27.135 | K132: =SUM(K128:K131) -> 28.85 | L132: 1.715 | M132: =IF((H132)=0,"",(L132/H132)) -> 0.06320250599
A133: RESIDENTIAL SERVICE CLASSIFICATION | D133: Line Losses on Cost of Power | F133: =IF((E120*12>=150000), 0, IF(E119="RPP",(F147*0.65+F148*0.17+F149*0.18),IF(E119="Non-RPP (Retailer)",F150,F151))) -> 0.11139 | G133: =IF(F133=0, 0, $E120*E122-E120) -> 39.9 | H133: =G133*F133 -> 4.444461 | I133: =IF((E120*12>=150000), 0, IF(E119="RPP",(I147*0.65+I148*0.17+I149*0.18),IF(E119="Non-RPP (Retailer)",I150,I151))) -> 0.11139 | J133: =IF(I133=0, 0, E120*E123-E120) -> 35.7 | K133: =J133*I133 -> 3.976623 | L133: =K133-H133 -> -0.467838 | M133: =IF(ISERROR(L133/H133), "", L133/H133) -> -0.1052631579
A134: RESIDENTIAL SERVICE CLASSIFICATION | D134: Total Deferral/Variance Account Rate Riders | F134: -0.0019 | G134: =IF($E121>0, $E121, $E120) -> 750 | H134: -1.425 | I134: -0.0015 | J134: =IF($E121>0, $E121, $E120) -> 750 | K134: -1.125 | L134: 0.3 | M134: -0.2105263158
A135: RESIDENTIAL SERVICE CLASSIFICATION | D135: GA Rate Riders | I135: 0 | J135: =E120 -> 750 | K135: 0 | L135: 0
A136: RESIDENTIAL SERVICE CLASSIFICATION | D136: Low Voltage Service Charge | F136: 0 | G136: =IF($E121>0, $E121, $E120) -> 750 | H136: 0 | J136: =IF($E121>0, $E121, $E120) -> 750 | K136: 0 | L136: 0
A137: RESIDENTIAL SERVICE CLASSIFICATION | D137: Smart Meter Entity Charge (if applicable) | F137: 0.79 | G137: 1 | H137: =G137*F137 -> 0.79 | I137: 0.79 | J137: 1 | K137: =J137*I137 -> 0.79 | L137: 0 | M137: =IF(ISERROR(L137/H137), "", L137/H137) -> 0
A138: RESIDENTIAL SERVICE CLASSIFICATION | B138: ST_B | C138: =B30 -> 1 | D138: Sub-Total B - Distribution (includes Sub-Total A) | H138: =SUM(H132:H137) -> 30.944461 | K138: =SUM(K132:K137) -> 32.491623 | L138: 1.547162 | M138: =IF((H138)=0,"",(L138/H138)) -> 0.04999802711
A139: RESIDENTIAL SERVICE CLASSIFICATION | D139: RTSR - Network | F139: 0.0078 | G139: =IF($E121>0, $E121, $E120*$E122) -> 789.9 | H139: =G139*F139 -> 6.16122 | I139: 0.0077 | J139: =IF($E121>0, $E121, $E120*$E123) -> 785.7 | K139: =J139*I139 -> 6.04989 | L139: -0.11133 | M139: =IF(ISERROR(L139/H139), "", L139/H139) -> -0.01806947325
A140: RESIDENTIAL SERVICE CLASSIFICATION | D140: RTSR - Connection and/or Line and Transformation Connection | F140: 0.0061 | G140: =IF($E121>0, $E121, $E120*$E122) -> 789.9 | H140: =G140*F140 -> 4.81839 | I140: 0.006 | J140: =IF($E121>0, $E121, $E120*$E123) -> 785.7 | K140: =J140*I140 -> 4.7142 | L140: -0.10419 | M140: =IF(ISERROR(L140/H140), "", L140/H140) -> -0.02162340533
A141: RESIDENTIAL SERVICE CLASSIFICATION | B141: ST_C | C141: =B30 -> 1 | D141: Sub-Total C - Delivery (including Sub-Total B) | H141: =SUM(H138:H140) -> 41.924071 | K141: =SUM(K138:K140) -> 43.255713 | L141: 1.331642 | M141: =IF((H141)=0,"",(L141/H141)) -> 0.03176318445
A142: RESIDENTIAL SERVICE CLASSIFICATION | D142: Wholesale Market Service Charge (WMSC) | F142: 0.0036 | G142: =E120*E122 -> 789.9 | H142: =G142*F142 -> 2.84364 | I142: 0.0036 | J142: =E120*E123 -> 785.7 | K142: =J142*I142 -> 2.82852 | L142: -0.01512 | M142: =IF(ISERROR(L142/H142), "", L142/H142) -> -0.00531712875
A143: RESIDENTIAL SERVICE CLASSIFICATION | D143: Rural and Remote Rate Protection (RRRP) | F143: 0.0021 | G143: =E120*E122 -> 789.9 | H143: 1.65879 | I143: 0.0021 | J143: =E120*E123 -> 785.7 | K143: 1.64997 | L143: -0.00882 | M143: -0.00531712875
A144: RESIDENTIAL SERVICE CLASSIFICATION | D144: Standard Supply Service Charge | F144: 0.25 | G144: 1 | H144: 0.25 | I144: 0.25 | J144: 1 | K144: 0.25 | L144: 0 | M144: 0
A145: RESIDENTIAL SERVICE CLASSIFICATION | D145: Debt Retirement Charge (DRC)
A146: RESIDENTIAL SERVICE CLASSIFICATION | D146: Ontario Electricity Support Program (OESP) | F146: =IF('3. Regulatory Charges'!$D$17= "N/A", 0, '3. Regulatory Charges'!$D$17) -> 0.0011 | G146: 790 | H146: 0.869 | I146: =IF('3. Regulatory Charges'!$D$17= "N/A", 0, '3. Regulatory Charges'!$D$17) -> 0.0011 | J146: =E120*E123 -> 785.7 | K146: 0.86427 | L146: -0.00473 | M146: -0.005443037975
A147: RESIDENTIAL SERVICE CLASSIFICATION | B147: RPP | D147: TOU - Off Peak | F147: 0.087 | G147: =IF(AND(E120*12>=150000),0.65*E120*E122,0.65*E120) -> 487.5 | H147: 42.4125 | I147: 0.087 | J147: =IF(AND(E120*12>=150000),0.65*E120*E123,0.65*E120) -> 487.5 | K147: 42.4125 | L147: 0 | M147: 0
A148: RESIDENTIAL SERVICE CLASSIFICATION | B148: RPP | D148: TOU - Mid Peak | F148: 0.132 | G148: =IF(AND(E120*12>=150000),0.17*E120*E122,0.17*E120) -> 127.5 | H148: 16.83 | I148: 0.132 | J148: =IF(AND(E120*12>=150000),0.17*E120*E123,0.17*E120) -> 127.5 | K148: 16.83 | L148: 0 | M148: 0
A149: RESIDENTIAL SERVICE CLASSIFICATION | B149: RPP | D149: TOU - On Peak | F149: 0.18 | G149: =IF(AND(E120*12>=150000),0.18*E120*E122,0.18*E120) -> 135 | H149: 24.3 | I149: 0.18 | J149: =IF(AND(E120*12>=150000),0.18*E120*E123,0.18*E120) -> 135 | K149: 24.3 | L149: 0 | M149: 0
A150: RESIDENTIAL SERVICE CLASSIFICATION | B150: Non-RPP (Retailer) | D150: Non-RPP Retailer Avg. Price | F150: =0.113 -> 0.113 | G150: =IF(AND(E120*12>=150000),E120*E122,E120) -> 750 | H150: =G150*F150 -> 84.75 | I150: =F150 -> 0.113 | J150: =IF(AND(E120*12>=150000),E120*E123,E120) -> 750 | K150: =J150*I150 -> 84.75 | L150: 0 | M150: 0
A151: RESIDENTIAL SERVICE CLASSIFICATION | B151: Non-RPP (Other) | D151: Average IESO Wholesale Market Price | F151: =0.113 -> 0.113 | G151: =IF(AND(E120*12>=150000),E120*E122,E120) -> 750 | H151: =G151*F151 -> 84.75 | I151: =F151 -> 0.113 | J151: =IF(AND(E120*12>=150000),E120*E123,E120) -> 750 | K151: =J151*I151 -> 84.75 | L151: 0 | M151: 0
A152: RESIDENTIAL SERVICE CLASSIFICATION
A153: RESIDENTIAL SERVICE CLASSIFICATION | B153: RPP | D153: Total Bill on TOU (before Taxes) | H153: =SUM(H142:H149,H141) -> 131.088001 | K153: =SUM(K142:K149,K141) -> 132.390973 | L153: =K153-H153 -> 1.302972 | M153: =IF((H153)=0,"",(L153/H153)) -> 0.009939674036
A154: RESIDENTIAL SERVICE CLASSIFICATION | B154: RPP | D154: HST | F154: 0.13 | H154: =H153*F154 -> 17.04144013 | I154: 0.13 | K154: =K153*I154 -> 17.21082649 | L154: =K154-H154 -> 0.16938636 | M154: =IF((H154)=0,"",(L154/H154)) -> 0.009939674036
A155: RESIDENTIAL SERVICE CLASSIFICATION | B155: RPP_TOTAL | C155: =B30 -> 1 | D155: Total Bill on TOU | H155: =SUM(H153,H154) -> 148.1294411 | K155: =K153+K154 -> 149.6017995 | L155: =K155-H155 -> 1.47235836 | M155: =IF((H155)=0,"",(L155/H155)) -> 0.009939674036
A156: RESIDENTIAL SERVICE CLASSIFICATION | B156: RPP
A157: RESIDENTIAL SERVICE CLASSIFICATION | B157: Non-RPP (Retailer) | D157: Total Bill on Non-RPP Avg. Price | H157: =SUM(H150,H142:H146,H141) -> 132.295501 | K157: =SUM(K150,K142:K146,K141) -> 133.598473 | L157: =K157-H157 -> 1.302972 | M157: =IF((H157)=0,"",(L157/H157)) -> 0.009848951704
A158: RESIDENTIAL SERVICE CLASSIFICATION | B158: Non-RPP (Retailer) | D158: HST | F158: 0.13 | H158: =H157*F158 -> 17.19841513 | I158: 0.13 | K158: =K157*I158 -> 17.36780149 | L158: =K158-H158 -> 0.16938636 | M158: =IF((H158)=0,"",(L158/H158)) -> 0.009848951704
A159: RESIDENTIAL SERVICE CLASSIFICATION | B159: Non-RPP (Retailer)_TOTAL | D159: Total Bill on Non-RPP Avg. Price | H159: =SUM(H157,H158) -> 149.4939161 | K159: =SUM(K157,K158) -> 150.9662745 | L159: =K159-H159 -> 1.47235836 | M159: =IF((H159)=0,"",(L159/H159)) -> 0.009848951704
A160: RESIDENTIAL SERVICE CLASSIFICATION | B160: Non-RPP (Retailer)
A161: RESIDENTIAL SERVICE CLASSIFICATION | B161: Non-RPP (Other) | D161: Total Bill on Average IESO Wholesale Market Price | H161: =SUM(H151,H142:H146,H141) -> 132.295501 | K161: =SUM(K151,K142:K146,K141) -> 133.598473 | L161: =K161-H161 -> 1.302972 | M161: =IF((H161)=0,"",(L161/H161)) -> 0.009848951704
A162: RESIDENTIAL SERVICE CLASSIFICATION | B162: Non-RPP (Other) | D162: HST | F162: 0.13 | H162: =H161*F162 -> 17.19841513 | I162: 0.13 | K162: =K161*I162 -> 17.36780149 | L162: =K162-H162 -> 0.16938636 | M162: =IF((H162)=0,"",(L162/H162)) -> 0.009848951704
A163: RESIDENTIAL SERVICE CLASSIFICATION | B163: Non-RPP (Other)_TOTAL | D163: Total Bill on Average IESO Wholesale Market Price | H163: =SUM(H161,H162) -> 149.4939161 | K163: =SUM(K161,K162) -> 150.9662745 | L163: =K163-H163 -> 1.47235836 | M163: =IF((H163)=0,"",(L163/H163)) -> 0.009848951704
A164: RESIDENTIAL SERVICE CLASSIFICATION | B164: Non-RPP (Other)
D172: Customer Class: | E172: =D31 -> GENERAL SERVICE LESS THAN 50 kW SERVICE CLASSIFICATION | K172: =IF(N31="DEMAND - INTERVAL","RTSR - INTERVAL METERED","") ->  | T172: X
D173: RPP / Non-RPP: | E173: =H31 -> RPP
D174: Consumption | E174: =K31 -> 2000 | F174: kWh
D175: Demand | E175: =L31 -> 0 | F175: kW
D176: Current Loss Factor | E176: =I31 -> 1.0532
D177: Proposed/Approved Loss Factor | E177: =J31 -> 1.0476
F179: Current OEB-Approved | I179: Proposed | L179: Impact
F180: Rate | G180: Volume | H180: Charge | I180: Rate | J180: Volume | K180: Charge | L180: $ Change | M180: % Change
F181: ($) | H181: ($) | I181: ($) | K181: ($)
A182: =$E172 -> GENERAL SERVICE LESS THAN 50 kW SERVICE CLASSIFICATION | D182: Monthly Service Charge | F182: 29.23 | G182: 1 | H182: =G182*F182 -> 29.23 | I182: 31.23 | J182: =G182 -> 1 | K182: =J182*I182 -> 31.23 | L182: =K182-H182 -> 2 | M182: =IF(ISERROR(L182/H182), "", L182/H182) -> 0.06842285323
A183: =A182 -> GENERAL SERVICE LESS THAN 50 kW SERVICE CLASSIFICATION | D183: Distribution Volumetric Rate | F183: 0.0086 | G183: =IF($E175>0, $E175, $E174) -> 2000 | H183: =G183*F183 -> 17.2 | I183: 0.0097 | J183: =IF($E175>0, $E175, $E174) -> 2000 | K183: =J183*I183 -> 19.4 | L183: 2.2 | M183: =IF(ISERROR(L183/H183), "", L183/H183) -> 0.1279069767
A184: =A183 -> GENERAL SERVICE LESS THAN 50 kW SERVICE CLASSIFICATION | D184: Fixed Rate Riders | F184: 0.48 | G184: 1 | H184: 0.48 | I184: 0 | J184: =G184 -> 1 | K184: =J184*I184 -> 0 | L184: -0.48 | M184: -1
A185: GENERAL SERVICE LESS THAN 50 kW SERVICE CLASSIFICATION | D185: Volumetric Rate Riders | F185: 0 | G185: =IF($E175>0, $E175, $E174) -> 2000 | H185: 0 | I185: 0 | J185: =IF($E175>0, $E175, $E174) -> 2000 | K185: 0 | L185: 0
A186: GENERAL SERVICE LESS THAN 50 kW SERVICE CLASSIFICATION | B186: ST_A | C186: =B31 -> 2 | D186: Sub-Total A (excluding pass through) | H186: =SUM(H182:H185) -> 46.91 | K186: =SUM(K182:K185) -> 50.63 | L186: 3.72 | M186: =IF((H186)=0,"",(L186/H186)) -> 0.07930078874
A187: GENERAL SERVICE LESS THAN 50 kW SERVICE CLASSIFICATION | D187: Line Losses on Cost of Power | F187: =IF((E174*12>=150000), 0, IF(E173="RPP",(F201*0.65+F202*0.17+F203*0.18),IF(E173="Non-RPP (Retailer)",F204,F205))) -> 0.11139 | G187: =IF(F187=0, 0, $E174*E176-E174) -> 106.4 | H187: =G187*F187 -> 11.851896 | I187: =IF((E174*12>=150000), 0, IF(E173="RPP",(I201*0.65+I202*0.17+I203*0.18),IF(E173="Non-RPP (Retailer)",I204,I205))) -> 0.11139 | J187: =IF(I187=0, 0, E174*E177-E174) -> 95.2 | K187: =J187*I187 -> 10.604328 | L187: =K187-H187 -> -1.247568 | M187: =IF(ISERROR(L187/H187), "", L187/H187) -> -0.1052631579
A188: GENERAL SERVICE LESS THAN 50 kW SERVICE CLASSIFICATION | D188: Total Deferral/Variance Account Rate Riders | F188: -0.0019 | G188: =IF($E175>0, $E175, $E174) -> 2000 | H188: -3.8 | I188: -0.0011 | J188: =IF($E175>0, $E175, $E174) -> 2000 | K188: -2.2 | L188: 1.6 | M188: -0.4210526316
A189: GENERAL SERVICE LESS THAN 50 kW SERVICE CLASSIFICATION | D189: GA Rate Riders | I189: 0 | J189: =E174 -> 2000 | K189: 0 | L189: 0
A190: GENERAL SERVICE LESS THAN 50 kW SERVICE CLASSIFICATION | D190: Low Voltage Service Charge | F190: 0 | G190: =IF($E175>0, $E175, $E174) -> 2000 | H190: 0 | J190: =IF($E175>0, $E175, $E174) -> 2000 | K190: 0 | L190: 0
A191: GENERAL SERVICE LESS THAN 50 kW SERVICE CLASSIFICATION | D191: Smart Meter Entity Charge (if applicable) | F191: 0.79 | G191: 1 | H191: =G191*F191 -> 0.79 | I191: 0.79 | J191: 1 | K191: =J191*I191 -> 0.79 | L191: 0 | M191: =IF(ISERROR(L191/H191), "", L191/H191) -> 0
A192: GENERAL SERVICE LESS THAN 50 kW SERVICE CLASSIFICATION | B192: ST_B | C192: =B31 -> 2 | D192: Sub-Total B - Distribution (includes Sub-Total A) | H192: =SUM(H186:H191) -> 55.751896 | K192: =SUM(K186:K191) -> 59.824328 | L192: 4.072432 | M192: =IF((H192)=0,"",(L192/H192)) -> 0.07304562342
A193: GENERAL SERVICE LESS THAN 50 kW SERVICE CLASSIFICATION | D193: RTSR - Network | F193: 0.0069 | G193: =IF($E175>0, $E175, $E174*$E176) -> 2106.4 | H193: =G193*F193 -> 14.53416 | I193: 0.0068 | J193: =IF($E175>0, $E175, $E174*$E177) -> 2095.2 | K193: =J193*I193 -> 14.24736 | L193: -0.2868 | M193: =IF(ISERROR(L193/H193), "", L193/H193) -> -0.01973282254
A194: GENERAL SERVICE LESS THAN 50 kW SERVICE CLASSIFICATION | D194: RTSR - Connection and/or Line and Transformation Connection | F194: 0.0052 | G194: =IF($E175>0, $E175, $E174*$E176) -> 2106.4 | H194: =G194*F194 -> 10.95328 | I194: 0.0051 | J194: =IF($E175>0, $E175, $E174*$E177) -> 2095.2 | K194: =J194*I194 -> 10.68552 | L194: -0.26776 | M194: =IF(ISERROR(L194/H194), "", L194/H194) -> -0.02444564551
A195: GENERAL SERVICE LESS THAN 50 kW SERVICE CLASSIFICATION | B195: ST_C | C195: =B31 -> 2 | D195: Sub-Total C - Delivery (including Sub-Total B) | H195: =SUM(H192:H194) -> 81.239336 | K195: =SUM(K192:K194) -> 84.757208 | L195: 3.517872 | M195: =IF((H195)=0,"",(L195/H195)) -> 0.04330256958
A196: GENERAL SERVICE LESS THAN 50 kW SERVICE CLASSIFICATION | D196: Wholesale Market Service Charge (WMSC) | F196: 0.0036 | G196: =E174*E176 -> 2106.4 | H196: =G196*F196 -> 7.58304 | I196: 0.0036 | J196: =E174*E177 -> 2095.2 | K196: =J196*I196 -> 7.54272 | L196: -0.04032 | M196: =IF(ISERROR(L196/H196), "", L196/H196) -> -0.00531712875
A197: GENERAL SERVICE LESS THAN 50 kW SERVICE CLASSIFICATION | D197: Rural and Remote Rate Protection (RRRP) | F197: 0.0021 | G197: =E174*E176 -> 2106.4 | H197: 4.42344 | I197: 0.0021 | J197: =E174*E177 -> 2095.2 | K197: 4.39992 | L197: -0.02352 | M197: -0.00531712875
A198: GENERAL SERVICE LESS THAN 50 kW SERVICE CLASSIFICATION | D198: Standard Supply Service Charge | F198: 0.25 | G198: 1 | H198: 0.25 | I198: 0.25 | J198: 1 | K198: 0.25 | L198: 0 | M198: 0
A199: GENERAL SERVICE LESS THAN 50 kW SERVICE CLASSIFICATION | D199: Debt Retirement Charge (DRC) | F199: =IF('1. Information Sheet'!F196 = DATE(2016, 5, 1), (IF(ISERROR(FIND("RESIDENTIAL", UPPER(E172))), 0.007, 0)), 0.007) -> 0.007 | G199: =E174 -> 2000 | H199: 14 | I199: =IF(ISERROR(FIND("RESIDENTIAL", UPPER(E172))), 0.007, 0) -> 0.007 | J199: =E174 -> 2000 | K199: 14 | L199: 0 | M199: 0
A200: GENERAL SERVICE LESS THAN 50 kW SERVICE CLASSIFICATION | D200: Ontario Electricity Support Program (OESP) | F200: =IF('3. Regulatory Charges'!$D$17= "N/A", 0, '3. Regulatory Charges'!$D$17) -> 0.0011 | G200: 2106 | H200: 2.3166 | I200: =IF('3. Regulatory Charges'!$D$17= "N/A", 0, '3. Regulatory Charges'!$D$17) -> 0.0011 | J200: =E174*E177 -> 2095.2 | K200: 2.30472 | L200: -0.01188 | M200: -0.005128205128
A201: GENERAL SERVICE LESS THAN 50 kW SERVICE CLASSIFICATION | B201: RPP | D201: TOU - Off Peak | F201: 0.087 | G201: =IF(AND(E174*12>=150000),0.65*E174*E176,0.65*E174) -> 1300 | H201: 113.1 | I201: 0.087 | J201: =IF(AND(E174*12>=150000),0.65*E174*E177,0.65*E174) -> 1300 | K201: 113.1 | L201: 0 | M201: 0
A202: GENERAL SERVICE LESS THAN 50 kW SERVICE CLASSIFICATION | B202: RPP | D202: TOU - Mid Peak | F202: 0.132 | G202: =IF(AND(E174*12>=150000),0.17*E174*E176,0.17*E174) -> 340 | H202: 44.88 | I202: 0.132 | J202: =IF(AND(E174*12>=150000),0.17*E174*E177,0.17*E174) -> 340 | K202: 44.88 | L202: 0 | M202: 0
A203: GENERAL SERVICE LESS THAN 50 kW SERVICE CLASSIFICATION | B203: RPP | D203: TOU - On Peak | F203: 0.18 | G203: =IF(AND(E174*12>=150000),0.18*E174*E176,0.18*E174) -> 360 | H203: 64.8 | I203: 0.18 | J203: =IF(AND(E174*12>=150000),0.18*E174*E177,0.18*E174) -> 360 | K203: 64.8 | L203: 0 | M203: 0
A204: GENERAL SERVICE LESS THAN 50 kW SERVICE CLASSIFICATION | B204: Non-RPP (Retailer) | D204: Non-RPP Retailer Avg. Price | F204: =0.113 -> 0.113 | G204: =IF(AND(E174*12>=150000),E174*E176,E174) -> 2000 | H204: =G204*F204 -> 226 | I204: =F204 -> 0.113 | J204: =IF(AND(E174*12>=150000),E174*E177,E174) -> 2000 | K204: =J204*I204 -> 226 | L204: 0 | M204: 0
A205: GENERAL SERVICE LESS THAN 50 kW SERVICE CLASSIFICATION | B205: Non-RPP (Other) | D205: Average IESO Wholesale Market Price | F205: =0.113 -> 0.113 | G205: =IF(AND(E174*12>=150000),E174*E176,E174) -> 2000 | H205: =G205*F205 -> 226 | I205: =F205 -> 0.113 | J205: =IF(AND(E174*12>=150000),E174*E177,E174) -> 2000 | K205: =J205*I205 -> 226 | L205: 0 | M205: 0
A206: GENERAL SERVICE LESS THAN 50 kW SERVICE CLASSIFICATION
A207: GENERAL SERVICE LESS THAN 50 kW SERVICE CLASSIFICATION | B207: RPP | D207: Total Bill on TOU (before Taxes) | H207: =SUM(H196:H203,H195) -> 332.592416 | K207: =SUM(K196:K203,K195) -> 336.034568 | L207: =K207-H207 -> 3.442152 | M207: =IF((H207)=0,"",(L207/H207)) -> 0.01034946028
A208: GENERAL SERVICE LESS THAN 50 kW SERVICE CLASSIFICATION | B208: RPP | D208: HST | F208: 0.13 | H208: =H207*F208 -> 43.23701408 | I208: 0.13 | K208: =K207*I208 -> 43.68449384 | L208: =K208-H208 -> 0.44747976 | M208: =IF((H208)=0,"",(L208/H208)) -> 0.01034946028
A209: GENERAL SERVICE LESS THAN 50 kW SERVICE CLASSIFICATION | B209: RPP_TOTAL | C209: =B31 -> 2 | D209: Total Bill on TOU | H209: =SUM(H207,H208) -> 375.8294301 | K209: =K207+K208 -> 379.7190618 | L209: =K209-H209 -> 3.88963176 | M209: =IF((H209)=0,"",(L209/H209)) -> 0.01034946028
A210: GENERAL SERVICE LESS THAN 50 kW SERVICE CLASSIFICATION | B210: RPP
A211: GENERAL SERVICE LESS THAN 50 kW SERVICE CLASSIFICATION | B211: Non-RPP (Retailer) | D211: Total Bill on Non-RPP Avg. Price | H211: =SUM(H204,H196:H200,H195) -> 335.812416 | K211: =SUM(K204,K196:K200,K195) -> 339.254568 | L211: =K211-H211 -> 3.442152 | M211: =IF((H211)=0,"",(L211/H211)) -> 0.01025022255
A212: GENERAL SERVICE LESS THAN 50 kW SERVICE CLASSIFICATION | B212: Non-RPP (Retailer) | D212: HST | F212: 0.13 | H212: =H211*F212 -> 43.65561408 | I212: 0.13 | K212: =K211*I212 -> 44.10309384 | L212: =K212-H212 -> 0.44747976 | M212: =IF((H212)=0,"",(L212/H212)) -> 0.01025022255
A213: GENERAL SERVICE LESS THAN 50 kW SERVICE CLASSIFICATION | B213: Non-RPP (Retailer)_TOTAL | D213: Total Bill on Non-RPP Avg. Price | H213: =SUM(H211,H212) -> 379.4680301 | K213: =SUM(K211,K212) -> 383.3576618 | L213: =K213-H213 -> 3.88963176 | M213: =IF((H213)=0,"",(L213/H213)) -> 0.01025022255
A214: GENERAL SERVICE LESS THAN 50 kW SERVICE CLASSIFICATION | B214: Non-RPP (Retailer)
A215: GENERAL SERVICE LESS THAN 50 kW SERVICE CLASSIFICATION | B215: Non-RPP (Other) | D215: Total Bill on Average IESO Wholesale Market Price | H215: =SUM(H205,H196:H200,H195) -> 335.812416 | K215: =SUM(K205,K196:K200,K195) -> 339.254568 | L215: =K215-H215 -> 3.442152 | M215: =IF((H215)=0,"",(L215/H215)) -> 0.01025022255
A216: GENERAL SERVICE LESS THAN 50 kW SERVICE CLASSIFICATION | B216: Non-RPP (Other) | D216: HST | F216: 0.13 | H216: =H215*F216 -> 43.65561408 | I216: 0.13 | K216: =K215*I216 -> 44.10309384 | L216: =K216-H216 -> 0.44747976 | M216: =IF((H216)=0,"",(L216/H216)) -> 0.01025022255
A217: GENERAL SERVICE LESS THAN 50 kW SERVICE CLASSIFICATION | B217: Non-RPP (Other)_TOTAL | D217: Total Bill on Average IESO Wholesale Market Price | H217: =SUM(H215,H216) -> 379.4680301 | K217: =SUM(K215,K216) -> 383.3576618 | L217: =K217-H217 -> 3.88963176 | M217: =IF((H217)=0,"",(L217/H217)) -> 0.01025022255
A218: GENERAL SERVICE LESS THAN 50 kW SERVICE CLASSIFICATION | B218: Non-RPP (Other)
D226: Customer Class: | E226: =D32 -> GENERAL SERVICE 50 TO 4,999 KW SERVICE CLASSIFICATION | K226: =IF(N32="DEMAND - INTERVAL","RTSR - INTERVAL METERED","") ->  | T226: X
D227: RPP / Non-RPP: | E227: =H32 -> Non-RPP (Other)
D228: Consumption | E228: =K32 -> 32400 | F228: kWh
D229: Demand | E229: =L32 -> 60 | F229: kW
D230: Current Loss Factor | E230: =I32 -> 1.0532
D231: Proposed/Approved Loss Factor | E231: =J32 -> 1.0476
F233: Current OEB-Approved | I233: Proposed | L233: Impact
F234: Rate | G234: Volume | H234: Charge | I234: Rate | J234: Volume | K234: Charge | L234: $ Change | M234: % Change
F235: ($) | H235: ($) | I235: ($) | K235: ($)
A236: =$E226 -> GENERAL SERVICE 50 TO 4,999 KW SERVICE CLASSIFICATION | D236: Monthly Service Charge | F236: 281.42 | G236: 1 | H236: =G236*F236 -> 281.42 | I236: 341.55 | J236: =G236 -> 1 | K236: =J236*I236 -> 341.55 | L236: =K236-H236 -> 60.13 | M236: =IF(ISERROR(L236/H236), "", L236/H236) -> 0.2136664061
A237: =A236 -> GENERAL SERVICE 50 TO 4,999 KW SERVICE CLASSIFICATION | D237: Distribution Volumetric Rate | F237: 2.4614 | G237: =IF($E229>0, $E229, $E228) -> 60 | H237: =G237*F237 -> 147.684 | I237: 2.8791 | J237: =IF($E229>0, $E229, $E228) -> 60 | K237: =J237*I237 -> 172.746 | L237: 25.062 | M237: =IF(ISERROR(L237/H237), "", L237/H237) -> 0.1697001706
A238: =A237 -> GENERAL SERVICE 50 TO 4,999 KW SERVICE CLASSIFICATION | D238: Fixed Rate Riders | F238: 0 | G238: 1 | H238: 0 | I238: 0 | J238: =G238 -> 1 | K238: =J238*I238 -> 0 | L238: 0
A239: GENERAL SERVICE 50 TO 4,999 KW SERVICE CLASSIFICATION | D239: Volumetric Rate Riders | F239: 0.0066 | G239: =IF($E229>0, $E229, $E228) -> 60 | H239: 0.396 | I239: 0 | J239: =IF($E229>0, $E229, $E228) -> 60 | K239: 0 | L239: -0.396 | M239: -1
A240: GENERAL SERVICE 50 TO 4,999 KW SERVICE CLASSIFICATION | B240: ST_A | C240: =B32 -> 3 | D240: Sub-Total A (excluding pass through) | H240: =SUM(H236:H239) -> 429.5 | K240: =SUM(K236:K239) -> 514.296 | L240: 84.796 | M240: =IF((H240)=0,"",(L240/H240)) -> 0.1974295693
A241: GENERAL SERVICE 50 TO 4,999 KW SERVICE CLASSIFICATION | D241: Line Losses on Cost of Power | F241: =IF((E228*12>=150000), 0, IF(E227="RPP",(F255*0.65+F256*0.17+F257*0.18),IF(E227="Non-RPP (Retailer)",F258,F259))) -> 0 | G241: =IF(F241=0, 0, $E228*E230-E228) -> 0 | H241: =G241*F241 -> 0 | I241: =IF((E228*12>=150000), 0, IF(E227="RPP",(I255*0.65+I256*0.17+I257*0.18),IF(E227="Non-RPP (Retailer)",I258,I259))) -> 0 | J241: =IF(I241=0, 0, E228*E231-E228) -> 0 | K241: =J241*I241 -> 0 | L241: =K241-H241 -> 0 | M241: =IF(ISERROR(L241/H241), "", L241/H241) -> 
A242: GENERAL SERVICE 50 TO 4,999 KW SERVICE CLASSIFICATION | D242: Total Deferral/Variance Account Rate Riders | F242: -0.3118 | G242: =IF($E229>0, $E229, $E228) -> 60 | H242: -18.708 | I242: -0.2625 | J242: =IF($E229>0, $E229, $E228) -> 60 | K242: -15.75 | L242: 2.958 | M242: -0.1581141758
A243: GENERAL SERVICE 50 TO 4,999 KW SERVICE CLASSIFICATION | D243: GA Rate Riders | I243: 0.0014 | J243: =E228 -> 32400 | K243: 45.36 | L243: 45.36
A244: GENERAL SERVICE 50 TO 4,999 KW SERVICE CLASSIFICATION | D244: Low Voltage Service Charge | F244: 0 | G244: =IF($E229>0, $E229, $E228) -> 60 | H244: 0 | J244: =IF($E229>0, $E229, $E228) -> 60 | K244: 0 | L244: 0
A245: GENERAL SERVICE 50 TO 4,999 KW SERVICE CLASSIFICATION | D245: Smart Meter Entity Charge (if applicable) | F245: 0 | G245: 1 | H245: =G245*F245 -> 0 | I245: 0 | J245: 1 | K245: =J245*I245 -> 0 | L245: 0 | M245: =IF(ISERROR(L245/H245), "", L245/H245) -> 
... 303 more rows

Sheet 20. HIDDEN (hidden)
D2: Customer Class: | O2: =FIND("RESIDENTIAL", E2) -> 
D3: RPP / Non-RPP:
D4: Consumption | F4: kWh
D5: Demand | F5: kW
D6: Current Loss Factor
D7: Proposed/Approved Loss Factor
F9: Current OEB-Approved | I9: Proposed | L9: Impact
F10: Rate | G10: Volume | H10: Charge | I10: Rate | J10: Volume | K10: Charge | L10: $ Change | M10: % Change
F11: ($) | H11: ($) | I11: ($) | K11: ($)
A12: =$E2 -> 0 | D12: Monthly Service Charge | G12: 1 | H12: =G12*F12 -> 0 | J12: =G12 -> 1 | K12: =J12*I12 -> 0 | L12: =K12-H12 -> 0 | M12: =IF(ISERROR(L12/H12), "", L12/H12) -> 
A13: =A12 -> 0 | D13: Distribution Volumetric Rate | G13: =IF($E5>0, $E5, $E4) -> 0 | H13: =G13*F13 -> 0 | J13: =IF($E5>0, $E5, $E4) -> 0 | K13: =J13*I13 -> 0 | L13: 0 | M13: =IF(ISERROR(L13/H13), "", L13/H13) -> 
A14: =A13 -> 0 | D14: Fixed Rate Riders | G14: 1 | H14: 0 | J14: =G14 -> 1 | K14: =J14*I14 -> 0 | L14: 0
A15: 0 | D15: Volumetric Rate Riders | G15: =IF($E5>0, $E5, $E4) -> 0 | H15: 0 | J15: =IF($E5>0, $E5, $E4) -> 0 | K15: 0 | L15: 0
A16: 0 | B16: ST_A | D16: Sub-Total A (excluding pass through) | H16: =SUM(H12:H15) -> 0 | K16: =SUM(K12:K15) -> 0 | L16: 0 | M16: =IF((H16)=0,"",(L16/H16)) -> 
A17: 0 | D17: Line Losses on Cost of Power | F17: =IF((E4*12>=150000), 0, IF(E3="RPP",(F31*0.65+F32*0.17+F33*0.18),IF(E3="Non-RPP (Retailer)",F34,F35))) -> 0.113 | G17: =IF(F17=0, 0, $E4*E6-E4) -> 0 | H17: =G17*F17 -> 0 | I17: =IF((E4*12>=150000), 0, IF(E3="RPP",(I31*0.65+I32*0.17+I33*0.18),IF(E3="Non-RPP (Retailer)",I34,I35))) -> 0.113 | J17: =IF(I17=0, 0, E4*E7-E4) -> 0 | K17: =J17*I17 -> 0 | L17: =K17-H17 -> 0 | M17: =IF(ISERROR(L17/H17), "", L17/H17) -> 
A18: 0 | D18: Total Deferral/Variance Account Rate Riders | G18: =IF($E5>0, $E5, $E4) -> 0 | H18: 0 | J18: =IF($E5>0, $E5, $E4) -> 0 | K18: 0 | L18: 0
A19: 0 | D19: GA Rate Riders | J19: =E4 -> 0 | K19: 0 | L19: 0
A20: 0 | D20: Low Voltage Service Charge | G20: =IF($E5>0, $E5, $E4) -> 0 | H20: 0 | J20: =IF($E5>0, $E5, $E4) -> 0 | K20: 0 | L20: 0
A21: 0 | D21: Smart Meter Entity Charge (if applicable) | F21: =IF(OR(ISNUMBER(SEARCH("RESIDENTIAL", E2))=TRUE, ISNUMBER(SEARCH("GENERAL SERVICE LESS THAN 50", E2))=TRUE), 0.79, 0) -> 0 | G21: 1 | H21: =G21*F21 -> 0 | I21: =IF(OR(ISNUMBER(SEARCH("RESIDENTIAL", E2))=TRUE, ISNUMBER(SEARCH("GENERAL SERVICE LESS THAN 50", E2))=TRUE), 0.79, 0) -> 0 | J21: 1 | K21: =J21*I21 -> 0 | L21: =K21-H21 -> 0 | M21: =IF(ISERROR(L21/H21), "", L21/H21) -> 
A22: 0 | B22: ST_B | D22: Sub-Total B - Distribution (includes Sub-Total A) | H22: =SUM(H16:H21) -> 0 | K22: =SUM(K16:K21) -> 0 | L22: 0 | M22: =IF((H22)=0,"",(L22/H22)) -> 
A23: 0 | D23: RTSR - Network | G23: =IF($E5>0, $E5, $E4*$E6) -> 0 | H23: =G23*F23 -> 0 | J23: =IF($E5>0, $E5, $E4*$E7) -> 0 | K23: =J23*I23 -> 0 | L23: 0 | M23: =IF(ISERROR(L23/H23), "", L23/H23) -> 
A24: 0 | D24: RTSR - Connection and/or Line and Transformation Connection | G24: =IF($E5>0, $E5, $E4*$E6) -> 0 | H24: =G24*F24 -> 0 | J24: =IF($E5>0, $E5, $E4*$E7) -> 0 | K24: =J24*I24 -> 0 | L24: 0 | M24: =IF(ISERROR(L24/H24), "", L24/H24) -> 
A25: 0 | B25: ST_C | D25: Sub-Total C - Delivery (including Sub-Total B) | H25: =SUM(H22:H24) -> 0 | K25: =SUM(K22:K24) -> 0 | L25: 0 | M25: =IF((H25)=0,"",(L25/H25)) -> 
A26: 0 | D26: Wholesale Market Service Charge (WMSC) | G26: =E4*E6 -> 0 | H26: =G26*F26 -> 0 | I26: ='3. Regulatory Charges'!$D$14 -> 0.0036 | J26: =E4*E7 -> 0 | K26: =J26*I26 -> 0 | L26: 0 | M26: =IF(ISERROR(L26/H26), "", L26/H26) -> 
A27: 0 | D27: Rural and Remote Rate Protection (RRRP) | G27: =E4*E6 -> 0 | H27: 0 | I27: ='3. Regulatory Charges'!$D$15 -> 0.0021 | J27: =E4*E7 -> 0 | K27: 0 | L27: 0
A28: 0 | D28: Standard Supply Service Charge | G28: 1 | H28: 0 | I28: ='3. Regulatory Charges'!$D$16 -> 0.25 | J28: 1 | K28: 0.25 | L28: 0.25
A29: 0 | D29: Debt Retirement Charge (DRC) | F29: =IF('1. Information Sheet'!F26 = DATE(2016, 5, 1), (IF(ISERROR(FIND("RESIDENTIAL", UPPER(E2))), 0.007, 0)), 0.007) -> 0.007 | G29: =E4 -> 0 | H29: 0 | I29: =IF(ISERROR(FIND("RESIDENTIAL", UPPER(E2))), 0.007, 0) -> 0.007 | J29: =E4 -> 0 | K29: 0 | L29: =K29-H29 -> 0
A30: 0 | D30: Ontario Electricity Support Program (OESP) | F30: =IF('3. Regulatory Charges'!$D$17= "N/A", 0, '3. Regulatory Charges'!$D$17) -> 0.0011 | G30: =E4*E7 -> 0 | H30: 0 | I30: =IF('3. Regulatory Charges'!$D$17= "N/A", 0, '3. Regulatory Charges'!$D$17) -> 0.0011 | J30: =E4*E7 -> 0 | K30: 0 | L30: 0
A31: 0 | B31: RPP | D31: TOU - Off Peak | F31: 0.087 | G31: =IF(AND(E4*12>=150000),0.65*E4*E6,0.65*E4) -> 0 | H31: 0 | I31: 0.087 | J31: =IF(AND(E4*12>=150000),0.65*E4*E7,0.65*E4) -> 0 | K31: 0 | L31: 0
A32: 0 | B32: RPP | D32: TOU - Mid Peak | F32: 0.132 | G32: =IF(AND(E4*12>=150000),0.17*E4*E6,0.17*E4) -> 0 | H32: 0 | I32: 0.132 | J32: =IF(AND(E4*12>=150000),0.17*E4*E7,0.17*E4) -> 0 | K32: 0 | L32: 0
A33: 0 | B33: RPP | D33: TOU - On Peak | F33: 0.18 | G33: =IF(AND(E4*12>=150000),0.18*E4*E6,0.18*E4) -> 0 | H33: 0 | I33: 0.18 | J33: =IF(AND(E4*12>=150000),0.18*E4*E7,0.18*E4) -> 0 | K33: 0 | L33: 0
A34: 0 | B34: Non-RPP (Retailer) | D34: Non-RPP Retailer Avg. Price | F34: =0.113 -> 0.113 | G34: =IF(AND(E4*12>=150000),E4*E6,E4) -> 0 | H34: =G34*F34 -> 0 | I34: =F34 -> 0.113 | J34: =IF(AND(E4*12>=150000),E4*E7,E4) -> 0 | K34: =J34*I34 -> 0 | L34: 0
A35: 0 | B35: Non-RPP (Other) | D35: Average IESO Wholesale Market Price | F35: =0.113 -> 0.113 | G35: =IF(AND(E4*12>=150000),E4*E6,E4) -> 0 | H35: =G35*F35 -> 0 | I35: =F35 -> 0.113 | J35: =IF(AND(E4*12>=150000),E4*E7,E4) -> 0 | K35: =J35*I35 -> 0 | L35: 0
A36: 0
A37: 0 | B37: RPP | D37: Total Bill on TOU (before Taxes) | H37: =SUM(H26:H33,H25) -> 0 | K37: =SUM(K26:K33,K25) -> 0.25 | L37: =K37-H37 -> 0.25 | M37: =IF((H37)=0,"",(L37/H37)) -> 
A38: 0 | B38: RPP | D38: HST | F38: 0.13 | H38: =H37*F38 -> 0 | I38: 0.13 | K38: =K37*I38 -> 0.0325 | L38: =K38-H38 -> 0.0325 | M38: =IF((H38)=0,"",(L38/H38)) -> 
A39: 0 | B39: RPP_TOTAL | D39: Total Bill on TOU | H39: =SUM(H37,H38) -> 0 | K39: =K37+K38 -> 0.2825 | L39: =K39-H39 -> 0.2825 | M39: =IF((H39)=0,"",(L39/H39)) -> 
A40: 0 | B40: RPP
A41: 0 | B41: Non-RPP (Retailer) | D41: Total Bill on Non-RPP Avg. Price | H41: =SUM(H34,H26:H30,H25) -> 0 | K41: =SUM(K34,K26:K30,K25) -> 0.25 | L41: =K41-H41 -> 0.25 | M41: =IF((H41)=0,"",(L41/H41)) -> 
A42: 0 | B42: Non-RPP (Retailer) | D42: HST | F42: 0.13 | H42: =H41*F42 -> 0 | I42: 0.13 | K42: =K41*I42 -> 0.0325 | L42: =K42-H42 -> 0.0325 | M42: =IF((H42)=0,"",(L42/H42)) -> 
A43: 0 | B43: Non-RPP (Retailer)_TOTAL | D43: Total Bill on Non-RPP Avg. Price | H43: =SUM(H41,H42) -> 0 | K43: =SUM(K41,K42) -> 0.2825 | L43: =K43-H43 -> 0.2825 | M43: =IF((H43)=0,"",(L43/H43)) -> 
A44: 0 | B44: Non-RPP (Retailer)
A45: 0 | B45: Non-RPP (Other) | D45: Total Bill on Average IESO Wholesale Market Price | H45: =SUM(H35,H26:H30,H25) -> 0 | K45: =SUM(K35,K26:K30,K25) -> 0.25 | L45: =K45-H45 -> 0.25 | M45: =IF((H45)=0,"",(L45/H45)) -> 
A46: 0 | B46: Non-RPP (Other) | D46: HST | F46: 0.13 | H46: =H45*F46 -> 0 | I46: 0.13 | K46: =K45*I46 -> 0.0325 | L46: =K46-H46 -> 0.0325 | M46: =IF((H46)=0,"",(L46/H46)) -> 
A47: 0 | B47: Non-RPP (Other)_TOTAL | D47: Total Bill on Average IESO Wholesale Market Price | H47: =SUM(H45,H46) -> 0 | K47: =SUM(K45,K46) -> 0.2825 | L47: =K47-H47 -> 0.2825 | M47: =IF((H47)=0,"",(L47/H47)) -> 
A48: 0 | B48: Non-RPP (Other)

Sheet 2016 Database (hidden)
A2: Algoma Power Inc. | C2: EFF_DATE | E2: Algoma Power Inc. | I2: X | J2: Algoma Power Inc._Start | K2: Algoma Power Inc. | M2: 6 | V2: 17
A3: Algoma Power Inc. | C3: IMP_DATE | E3: TARIFF OF RATES AND CHARGES | V3: 27
A4: Algoma Power Inc. | C4: EBNUMBER | E4: Effective and Implementation Date January 1, 2016 | S4: 2016-01-01 | V4: 49
A5: Algoma Power Inc. | C5: NUMBER OF RATE CLASSES | E5: This schedule supersedes and replaces all previously | V5: 52
A6: Algoma Power Inc. | E6: approved schedules of Rates, Charges and Loss Factors | V6: 53
A7: Algoma Power Inc. | E7: EB-2015-0051 | K7: EB-2015-0051 | V7: 12
A8: Algoma Power Inc. | E8: RESIDENTIAL – R1 SERVICE CLASSIFICATION | K8: 1_RESIDENTIAL – R1 SERVICE CLASSIFICATION | V8: 39
A9: Algoma Power Inc. | E9: For the purposes of rates and charges, a residential service is defined in two ways: i) a dwelling occupied as a residence continuously for at least eight months of the year and, where the residential premises is located on a farm, includes other farm premises associated with the residential electricity meter, and ii) consumers who are treated as residential-rate class customers under Ontario Regulation 445/07 (Reclassifying Certain Classes of Consumers as Residential-Rate Class Customers: Section 78 of the Ontario Energy Board Act, 1998) made under the Ontario Energy Board Act, 1998. | K9: 1_RESIDENTIAL – R1 SERVICE CLASSIFICATION | V9: 591
A10: Algoma Power Inc. | E10: This classification refers to a Residential service with a demand of less than, or is forecast to be less than, 50 kilowatts, and which is billed on an energy basis. Further servicing details are available in the distributor’s Conditions of Service. | K10: 1_RESIDENTIAL – R1 SERVICE CLASSIFICATION | V10: 250
A11: Algoma Power Inc. | E11: APPLICATION | K11: 1_APPLICATION | V11: 11
A12: Algoma Power Inc. | E12: The application of these rates and charges shall be in accordance with the Licence of the Distributor and any Code or Order of the Ontario Energy Board, and amendments thereto as approved by the Ontario Energy Board, which may be applicable to the administration of this schedule. | K12: 1_RESIDENTIAL – R1 SERVICE CLASSIFICATION | V12: 280
A13: Algoma Power Inc. | E13: No rates and charges for the distribution of electricity and charges to meet the costs of any work or service done or furnished for the purpose of the distribution of electricity shall be made except as permitted by this schedule, unless required by the Distributor’s Licence or a Code or Order of the Ontario Energy Board, and amendments thereto as approved by the Ontario Energy Board, or as specified herein. | K13: 1_RESIDENTIAL – R1 SERVICE CLASSIFICATION | V13: 411
A14: Algoma Power Inc. | E14: Unless specifically noted, this schedule does not contain any charges for the electricity commodity, be it under the Regulated Price Plan, a contract with a retailer or the wholesale market price, as applicable. In addition, the charges in the MONTHLY RATES AND CHARGES – Regulatory Component of this schedule do not apply to a customer that is an embedded wholesale market participant. | K14: 1_RESIDENTIAL – R1 SERVICE CLASSIFICATION | V14: 387
A15: Algoma Power Inc. | E15: It should be noted that this schedule does not list any charges, assessments or credits that are required by law to be invoiced by a distributor and that are not subject to Ontario Energy Board approval, such as the Debt Retirement Charge, the Global Adjustment, and the HST. | K15: 1_RESIDENTIAL – R1 SERVICE CLASSIFICATION | V15: 275
A16: Algoma Power Inc. | E16: MONTHLY RATES AND CHARGES – Delivery Component | K16: 1_MRC_Del | V16: 46
A17: Algoma Power Inc. | E17: Service Charge - summary of (I) and (ii) above | G17: $ | H17: 51.52 | K17: 1_RESIDENTIAL – R1 SERVICE CLASSIFICATION | P17: 1_RESIDENTIAL – R1 SERVICE CLASSIFICATION_MSC | V17: 47
A18: Algoma Power Inc. | E18: Rate Rider for Smart Metering Entity Change – effective until October 31, 2018 | G18: $ | H18: 0.79 | K18: 1_RESIDENTIAL – R1 SERVICE CLASSIFICATION | L18: B | P18: 1_RESIDENTIAL – R1 SERVICE CLASSIFICATION_FX_RR_1 | T18: 2018-10-31 | V18: 78
A19: Algoma Power Inc. | E19: Distribution Volumetric Rate – Applicable only to customers that meet criteria (i) above | G19: $/kWh | H19: 0.0288 | K19: 1_RESIDENTIAL – R1 SERVICE CLASSIFICATION | P19: 1_RESIDENTIAL – R1 SERVICE CLASSIFICATION_DVC | V19: 88
A20: Algoma Power Inc. | E20: Distribution Volumetric Rate – Applicable only to customers that meet criteria (ii) above | G20: $/kWh | H20: 0.0334 | K20: 1_RESIDENTIAL – R1 SERVICE CLASSIFICATION | P20: 1_RESIDENTIAL – R1 SERVICE CLASSIFICATION_DVC | V20: 89
A21: Algoma Power Inc. | E21: Rate Rider for Disposition of Accounts 1575 & 1576 - effective until December 31, 2019 | G21: $/kWh | H21: -0.0019 | K21: 1_RESIDENTIAL – R1 SERVICE CLASSIFICATION | L21: A | P21: 1_RESIDENTIAL – R1 SERVICE CLASSIFICATION_VR_RR_1 | T21: 2019-12-31 | V21: 86
A22: Algoma Power Inc. | E22: Retail Transmission Rate – Network Service Rate | G22: $/kWh | H22: 0.007 | K22: 1_RESIDENTIAL – R1 SERVICE CLASSIFICATION | L22: C | P22: 1_RESIDENTIAL – R1 SERVICE CLASSIFICATION_Retail Transmission Rate – Network Service Rate | V22: 47
A23: Algoma Power Inc. | E23: Retail Transmission Rate – Line and Transformation Connection Service Rate | G23: $/kWh | H23: 0.0051 | K23: 1_RESIDENTIAL – R1 SERVICE CLASSIFICATION | L23: C | P23: 1_RESIDENTIAL – R1 SERVICE CLASSIFICATION_Retail Transmission Rate – Line and Transformation Connection Service Rate | V23: 74
A24: Algoma Power Inc. | E24: MONTHLY RATES AND CHARGES – Regulatory Component | K24: 1_MRC_Reg | V24: 48
A25: Algoma Power Inc. | E25: Wholesale Market Service Rate | G25: $/kWh | H25: 0.0036 | K25: 1_RESIDENTIAL – R1 SERVICE CLASSIFICATION | L25: T | P25: 1_RESIDENTIAL – R1 SERVICE CLASSIFICATION_WMSR | V25: 30
A26: Algoma Power Inc. | E26: Rural or Remote Electricity Rate Protection Charge (RRRP) | G26: $/kWh | H26: 0.0013 | K26: 1_RESIDENTIAL – R1 SERVICE CLASSIFICATION | L26: T | P26: 1_RESIDENTIAL – R1 SERVICE CLASSIFICATION_RRRP | V26: 57
A27: Algoma Power Inc. | E27: Ontario Electricity Support Program Charge (OESP) | G27: $/kWh | H27: 0.0011 | K27: 1_RESIDENTIAL – R1 SERVICE CLASSIFICATION | L27: T | P27: 1_RESIDENTIAL – R1 SERVICE CLASSIFICATION_OESPR | V27: 49
A28: Algoma Power Inc. | E28: Standard Supply Service – Administration Charge (if applicable) | G28: $ | H28: 0.25 | K28: 1_RESIDENTIAL – R1 SERVICE CLASSIFICATION | L28: T | P28: 1_RESIDENTIAL – R1 SERVICE CLASSIFICATION_SSS | V28: 64
A29: Algoma Power Inc. | E29: RESIDENTIAL – R2 SERVICE CLASSIFICATION | K29: 2_RESIDENTIAL – R2 SERVICE CLASSIFICATION | V29: 39
A30: Algoma Power Inc. | E30: This classification refers to a Residential service with a demand equal to or greater than, or is forecast to be equal to or greater than, 50 kilowatts, and which is billed on a demand basis. Further servicing details are available in the distributor’s Conditions of Service. | K30: 2_RESIDENTIAL – R2 SERVICE CLASSIFICATION | V30: 276
A31: Algoma Power Inc. | E31: APPLICATION | K31: 2_APPLICATION | V31: 11
A32: Algoma Power Inc. | E32: The application of these rates and charges shall be in accordance with the Licence of the Distributor and any Code or Order of the Ontario Energy Board, and amendments thereto as approved by the Ontario Energy Board, which may be applicable to the administration of this schedule. | K32: 2_RESIDENTIAL – R2 SERVICE CLASSIFICATION | V32: 280
A33: Algoma Power Inc. | E33: No rates and charges for the distribution of electricity and charges to meet the costs of any work or service done or furnished for the purpose of the distribution of electricity shall be made except as permitted by this schedule, unless required by the Distributor’s Licence or a Code or Order of the Ontario Energy Board, and amendments thereto as approved by the Ontario Energy Board, or as specified herein. | K33: 2_RESIDENTIAL – R2 SERVICE CLASSIFICATION | V33: 411
A34: Algoma Power Inc. | E34: Unless specifically noted, this schedule does not contain any charges for the electricity commodity, be it under the Regulated Price Plan, a contract with a retailer or the wholesale market price, as applicable. In addition, the charges in the MONTHLY RATES AND CHARGES – Regulatory Component of this schedule do not apply to a customer that is an embedded wholesale market participant. | K34: 2_RESIDENTIAL – R2 SERVICE CLASSIFICATION | V34: 387
A35: Algoma Power Inc. | E35: It should be noted that this schedule does not list any charges, assessments or credits that are required by law to be invoiced by a distributor and that are not subject to Ontario Energy Board approval, such as the Debt Retirement Charge, the Global Adjustment, and the HST. | K35: 2_RESIDENTIAL – R2 SERVICE CLASSIFICATION | V35: 275
A36: Algoma Power Inc. | E36: MONTHLY RATES AND CHARGES – Delivery Component | K36: 2_MRC_Del | V36: 46
A37: Algoma Power Inc. | E37: Service Charge | G37: $ | H37: 611.64 | K37: 2_RESIDENTIAL – R2 SERVICE CLASSIFICATION | L37: A | P37: 2_RESIDENTIAL – R2 SERVICE CLASSIFICATION_MSC | V37: 15
A38: Algoma Power Inc. | E38: Distribution Volumetric Rate | G38: $/kW | H38: 3.1691 | K38: 2_RESIDENTIAL – R2 SERVICE CLASSIFICATION | L38: A | P38: 2_RESIDENTIAL – R2 SERVICE CLASSIFICATION_DVC | V38: 29
A39: Algoma Power Inc. | E39: Rate Rider for Disposition of Accounts 1575 & 1576 – effective until December 31, 2019 | G39: $/kW | H39: -0.801 | K39: 2_RESIDENTIAL – R2 SERVICE CLASSIFICATION | L39: A | P39: 2_RESIDENTIAL – R2 SERVICE CLASSIFICATION_DEFVAR_ALL | T39: 2019-12-31 | V39: 86
A40: Algoma Power Inc. | E40: Retail Transmission Rate – Network Service Rate | G40: $/kW | H40: 2.6924 | K40: 2_RESIDENTIAL – R2 SERVICE CLASSIFICATION | L40: C | P40: 2_RESIDENTIAL – R2 SERVICE CLASSIFICATION_Retail Transmission Rate – Network Service Rate | V40: 48
A41: Algoma Power Inc. | E41: Retail Transmission Rate – Line and Transformation Connection Service Rate | G41: $/kW | H41: 1.9084 | K41: 2_RESIDENTIAL – R2 SERVICE CLASSIFICATION | L41: C | P41: 2_RESIDENTIAL – R2 SERVICE CLASSIFICATION_Retail Transmission Rate – Line and Transformation Connection Service Rate | V41: 75
A42: Algoma Power Inc. | E42: MONTHLY RATES AND CHARGES – Regulatory Component | K42: 2_MRC_Reg | V42: 48
A43: Algoma Power Inc. | E43: Wholesale Market Service Rate | G43: $/kWh | H43: 0.0036 | K43: 2_RESIDENTIAL – R2 SERVICE CLASSIFICATION | L43: T | P43: 2_RESIDENTIAL – R2 SERVICE CLASSIFICATION_WMSR | V43: 30
A44: Algoma Power Inc. | E44: Rural or Remote Electricity Rate Protection Charge (RRRP) | G44: $/kWh | H44: 0.0013 | K44: 2_RESIDENTIAL – R2 SERVICE CLASSIFICATION | L44: T | P44: 2_RESIDENTIAL – R2 SERVICE CLASSIFICATION_RRRP | V44: 57
A45: Algoma Power Inc. | E45: Ontario Electricity Support Program Charge (OESP) | G45: $/kWh | H45: 0.0011 | K45: 2_RESIDENTIAL – R2 SERVICE CLASSIFICATION | L45: T | P45: 2_RESIDENTIAL – R2 SERVICE CLASSIFICATION_OESPR | V45: 49
A46: Algoma Power Inc. | E46: Standard Supply Service – Administration Charge (if applicable) | G46: $ | H46: 0.25 | K46: 2_RESIDENTIAL – R2 SERVICE CLASSIFICATION | L46: T | P46: 2_RESIDENTIAL – R2 SERVICE CLASSIFICATION_SSS | V46: 64
A47: Algoma Power Inc. | E47: ONTARIO ELECTRICITY SUPPORT PROGRAM RECIPIENTS | K47: 3_ONTARIO ELECTRICITY SUPPORT PROGRAM RECIPIENTS | V47: 46
A48: Algoma Power Inc. | E48: In addition to the charges specified on page 1 of this tariff of rates and charges, the following credits are to be applied to eligible residential customers. | K48: 3_ONTARIO ELECTRICITY SUPPORT PROGRAM RECIPIENTS | V48: 158
A49: Algoma Power Inc. | E49: APPLICATION | K49: 3_APPLICATION | V49: 11
A50: Algoma Power Inc. | E50: The application of the credits is in accordance with the Distribution System Code (Section 9) and subsection 79.2 of the Ontario Energy Board Act, 1998. | K50: 3_ONTARIO ELECTRICITY SUPPORT PROGRAM RECIPIENTS | V50: 152
A51: Algoma Power Inc. | E51: The application of these credits shall be in accordance with the Licence of the Distributor and any Code or Order of the Ontario Energy Board, and amendments thereto as approved by the Ontario Energy Board, which may be applicable to the administration of this schedule. | K51: 3_ONTARIO ELECTRICITY SUPPORT PROGRAM RECIPIENTS | V51: 270
A52: Algoma Power Inc. | E52: In this class: “Aboriginal person” includes a person who is a First Nations person, a Métis person or an Inuit person; “account-holder” means a consumer who has an account with a distributor that falls within a residential-rate classification as specified in a rate order made by the Ontario Energy Board under section 78 of the Act, and who lives at the service address to which the account relates for at least six months in a year; “electricity-intensive medical device” means an oxygen concentrator, a mechanical ventilator, or such other device as may be specified by the Ontario Energy Board; “household” means the account-holder and any other people living at the accountholder’s service address for at least six months in a year, including people other than the account-holder’s spouse, children or other relatives; “household income” means the combined annual after-tax income of all members of a household aged 16 or over; | K52: 3_ONTARIO ELECTRICITY SUPPORT PROGRAM RECIPIENTS | V52: 933
A53: Algoma Power Inc. | E53: MONTHLY RATES AND CHARGES | K53: 3_MRC | V53: 25
A54: Algoma Power Inc. | E54: Class A | K54: 3_ONTARIO ELECTRICITY SUPPORT PROGRAM RECIPIENTS | V54: 8
A55: Algoma Power Inc. | E55: (a) account-holders with a household income of $28,000 or less living in a household of one or two persons; | K55: 3_ONTARIO ELECTRICITY SUPPORT PROGRAM RECIPIENTS | V55: 107
A56: Algoma Power Inc. | E56: (b) account-holders with a household income of between $28,001 and $39,000 living in a household of three persons; | K56: 3_ONTARIO ELECTRICITY SUPPORT PROGRAM RECIPIENTS | V56: 114
A57: Algoma Power Inc. | E57: (c) account-holders with a household income of between $39,001 and $48,000 living in a household of five persons; | K57: 3_ONTARIO ELECTRICITY SUPPORT PROGRAM RECIPIENTS | V57: 114
A58: Algoma Power Inc. | E58: (d) account-holders with a household income of between $48,001 and $52,000 living in a household of seven or more persons; | K58: 3_ONTARIO ELECTRICITY SUPPORT PROGRAM RECIPIENTS | V58: 122
A59: Algoma Power Inc. | E59: but does not include account-holders in Class E. | K59: 3_ONTARIO ELECTRICITY SUPPORT PROGRAM RECIPIENTS | V59: 48
A60: Algoma Power Inc. | E60: OESP Credit | G60: $ | H60: -30 | K60: 3_ONTARIO ELECTRICITY SUPPORT PROGRAM RECIPIENTS | L60: T | P60: 3_ONTARIO ELECTRICITY SUPPORT PROGRAM RECIPIENTS_OESP CREDIT_CLASS A | V60: 12
A61: Algoma Power Inc. | E61: Class B | K61: 3_ONTARIO ELECTRICITY SUPPORT PROGRAM RECIPIENTS | V61: 8
A62: Algoma Power Inc. | E62: (a) account-holders with a household income of $28,000 or less living in a household of three persons; | K62: 3_ONTARIO ELECTRICITY SUPPORT PROGRAM RECIPIENTS | V62: 102
A63: Algoma Power Inc. | E63: (b) account-holders with a household income of between $28,001 and $39,000 living in a household of four persons; | K63: 3_ONTARIO ELECTRICITY SUPPORT PROGRAM RECIPIENTS | V63: 113
A64: Algoma Power Inc. | E64: (c) account-holders with a household income of between $39,001 and $48,000 living in a household of six persons; | K64: 3_ONTARIO ELECTRICITY SUPPORT PROGRAM RECIPIENTS | V64: 113
A65: Algoma Power Inc. | E65: but does not include account-holders in Class F. | K65: 3_ONTARIO ELECTRICITY SUPPORT PROGRAM RECIPIENTS | V65: 48
A66: Algoma Power Inc. | E66: OESP Credit | G66: $ | H66: -34 | K66: 3_ONTARIO ELECTRICITY SUPPORT PROGRAM RECIPIENTS | L66: T | P66: 3_ONTARIO ELECTRICITY SUPPORT PROGRAM RECIPIENTS_OESP CREDIT_CLASS B | V66: 12
A67: Algoma Power Inc. | E67: Class C | K67: 3_ONTARIO ELECTRICITY SUPPORT PROGRAM RECIPIENTS | V67: 8
A68: Algoma Power Inc. | E68: (a) account-holders with a household income of $28,000 or less living in a household of four persons; | K68: 3_ONTARIO ELECTRICITY SUPPORT PROGRAM RECIPIENTS | V68: 101
A69: Algoma Power Inc. | E69: (b) account-holders with a household income of between $28,001 and $39,000 living in a household of five persons; | K69: 3_ONTARIO ELECTRICITY SUPPORT PROGRAM RECIPIENTS | V69: 113
A70: Algoma Power Inc. | E70: (c) account-holders with a household income of between $39,001 and $48,000 living in a household of seven or more persons; | K70: 3_ONTARIO ELECTRICITY SUPPORT PROGRAM RECIPIENTS | V70: 123
A71: Algoma Power Inc. | E71: but does not include account-holders in Class G. | K71: 3_ONTARIO ELECTRICITY SUPPORT PROGRAM RECIPIENTS | V71: 48
A72: Algoma Power Inc. | E72: OESP Credit | G72: $ | H72: -38 | K72: 3_ONTARIO ELECTRICITY SUPPORT PROGRAM RECIPIENTS | L72: T | P72: 3_ONTARIO ELECTRICITY SUPPORT PROGRAM RECIPIENTS_OESP CREDIT_CLASS C | V72: 12
A73: Algoma Power Inc. | E73: Class D | K73: 3_ONTARIO ELECTRICITY SUPPORT PROGRAM RECIPIENTS | V73: 8
A74: Algoma Power Inc. | E74: (a) account-holders with a household income of $28,000 or less living in a household of five persons; | K74: 3_ONTARIO ELECTRICITY SUPPORT PROGRAM RECIPIENTS | V74: 101
A75: Algoma Power Inc. | E75: (b) account-holders with a household income of between $28,001 and $39,000 living in a household of six persons; | K75: 3_ONTARIO ELECTRICITY SUPPORT PROGRAM RECIPIENTS | V75: 112
A76: Algoma Power Inc. | E76: but does not include account-holders in Class H. | K76: 3_ONTARIO ELECTRICITY SUPPORT PROGRAM RECIPIENTS | V76: 48
A77: Algoma Power Inc. | E77: OESP Credit | G77: $ | H77: -42 | K77: 3_ONTARIO ELECTRICITY SUPPORT PROGRAM RECIPIENTS | L77: T | P77: 3_ONTARIO ELECTRICITY SUPPORT PROGRAM RECIPIENTS_OESP CREDIT_CLASS D | V77: 12
A78: Algoma Power Inc. | E78: Class E | K78: 3_ONTARIO ELECTRICITY SUPPORT PROGRAM RECIPIENTS | V78: 8
A79: Algoma Power Inc. | E79: Class E comprises account-holders with a household income and household size described under Class A | K79: 3_ONTARIO ELECTRICITY SUPPORT PROGRAM RECIPIENTS | V79: 101
A80: Algoma Power Inc. | E80: who also meet any of the following conditions: | K80: 3_ONTARIO ELECTRICITY SUPPORT PROGRAM RECIPIENTS | V80: 46
A81: Algoma Power Inc. | E81: (a) the dwelling to which the account relates is heated primarily by electricity; | K81: 3_ONTARIO ELECTRICITY SUPPORT PROGRAM RECIPIENTS | V81: 82
A82: Algoma Power Inc. | E82: (b) the account-holder or any member of the account-holder’s household is an Aboriginal person; or | K82: 3_ONTARIO ELECTRICITY SUPPORT PROGRAM RECIPIENTS | V82: 99
A83: Algoma Power Inc. | E83: (c) the account-holder or any member of the account-holder’s household regularly uses, for medical purposes, | K83: 3_ONTARIO ELECTRICITY SUPPORT PROGRAM RECIPIENTS | V83: 109
A84: Algoma Power Inc. | E84: an electricity-intensive medical device at the dwelling to which the account relates. | K84: 3_ONTARIO ELECTRICITY SUPPORT PROGRAM RECIPIENTS | V84: 85
A85: Algoma Power Inc. | E85: OESP Credit | G85: $ | H85: -45 | K85: 3_ONTARIO ELECTRICITY SUPPORT PROGRAM RECIPIENTS | L85: T | P85: 3_ONTARIO ELECTRICITY SUPPORT PROGRAM RECIPIENTS_OESP CREDIT_CLASS E | V85: 12
A86: Algoma Power Inc. | E86: Class F | K86: 3_ONTARIO ELECTRICITY SUPPORT PROGRAM RECIPIENTS | V86: 8
A87: Algoma Power Inc. | E87: (a) account-holders with a household income of $28,000 or less living in a household of six or more persons; | K87: 3_ONTARIO ELECTRICITY SUPPORT PROGRAM RECIPIENTS | V87: 108
A88: Algoma Power Inc. | E88: (b) account-holders with a household income of between $28,001 and $39,000 living in a household of seven | K88: 3_ONTARIO ELECTRICITY SUPPORT PROGRAM RECIPIENTS | V88: 106
A89: Algoma Power Inc. | E89: or more persons; or | K89: 3_ONTARIO ELECTRICITY SUPPORT PROGRAM RECIPIENTS | V89: 19
A90: Algoma Power Inc. | E90: (c) account-holders with a household income and household size described under Class B who also meet any | K90: 3_ONTARIO ELECTRICITY SUPPORT PROGRAM RECIPIENTS | V90: 105
A91: Algoma Power Inc. | E91: of the following conditions: | K91: 3_ONTARIO ELECTRICITY SUPPORT PROGRAM RECIPIENTS | V91: 28
A92: Algoma Power Inc. | E92: i. the dwelling to which the account relates is heated primarily by electricity; | K92: 3_ONTARIO ELECTRICITY SUPPORT PROGRAM RECIPIENTS | V92: 80
A93: Algoma Power Inc. | E93: ii. the account-holder or any member of the account-holder’s household is an Aboriginal person; or | K93: 3_ONTARIO ELECTRICITY SUPPORT PROGRAM RECIPIENTS | V93: 98
A94: Algoma Power Inc. | E94: iii. the account-holder or any member of the account-holder’s household regularly uses, for medical purposes, | K94: 3_ONTARIO ELECTRICITY SUPPORT PROGRAM RECIPIENTS | V94: 110
A95: Algoma Power Inc. | E95: an electricity-intensive medical device at the dwelling to which the account relates. | K95: 3_ONTARIO ELECTRICITY SUPPORT PROGRAM RECIPIENTS | V95: 85
A96: Algoma Power Inc. | E96: OESP Credit | G96: $ | H96: -50 | K96: 3_ONTARIO ELECTRICITY SUPPORT PROGRAM RECIPIENTS | L96: T | P96: 3_ONTARIO ELECTRICITY SUPPORT PROGRAM RECIPIENTS_OESP CREDIT_CLASS F | V96: 12
A97: Algoma Power Inc. | E97: Class G | K97: 3_ONTARIO ELECTRICITY SUPPORT PROGRAM RECIPIENTS | V97: 8
A98: Algoma Power Inc. | E98: Class G comprises account-holders with a household income and household size described under Class C | K98: 3_ONTARIO ELECTRICITY SUPPORT PROGRAM RECIPIENTS | V98: 101
A99: Algoma Power Inc. | E99: who also meet any of the following conditions: | K99: 3_ONTARIO ELECTRICITY SUPPORT PROGRAM RECIPIENTS | V99: 46
A100: Algoma Power Inc. | E100: (a) the dwelling to which the account relates is heated primarily by electricity; | K100: 3_ONTARIO ELECTRICITY SUPPORT PROGRAM RECIPIENTS | V100: 82
A101: Algoma Power Inc. | E101: (b) the account-holder or any member of the account-holder’s household is an Aboriginal person; or | K101: 3_ONTARIO ELECTRICITY SUPPORT PROGRAM RECIPIENTS | V101: 99
A102: Algoma Power Inc. | E102: (c) the account-holder or any member of the account-holder’s household regularly uses, for medical purposes, | K102: 3_ONTARIO ELECTRICITY SUPPORT PROGRAM RECIPIENTS | V102: 109
A103: Algoma Power Inc. | E103: an electricity-intensive medical device at the dwelling to which the account relates. | K103: 3_ONTARIO ELECTRICITY SUPPORT PROGRAM RECIPIENTS | V103: 85
A104: Algoma Power Inc. | E104: OESP Credit | G104: $ | H104: -55 | K104: 3_ONTARIO ELECTRICITY SUPPORT PROGRAM RECIPIENTS | L104: T | P104: 3_ONTARIO ELECTRICITY SUPPORT PROGRAM RECIPIENTS_OESP CREDIT_CLASS G | V104: 12
A105: Algoma Power Inc. | E105: Class H | K105: 3_ONTARIO ELECTRICITY SUPPORT PROGRAM RECIPIENTS | V105: 8
A106: Algoma Power Inc. | E106: Class H comprises account-holders with a household income and household size described under Class D | K106: 3_ONTARIO ELECTRICITY SUPPORT PROGRAM RECIPIENTS | V106: 101
A107: Algoma Power Inc. | E107: who also meet any of the following conditions: | K107: 3_ONTARIO ELECTRICITY SUPPORT PROGRAM RECIPIENTS | V107: 46
A108: Algoma Power Inc. | E108: (a) the dwelling to which the account relates is heated primarily by electricity; | K108: 3_ONTARIO ELECTRICITY SUPPORT PROGRAM RECIPIENTS | V108: 82
A109: Algoma Power Inc. | E109: (b) the account-holder or any member of the account-holder’s household is an Aboriginal person; or | K109: 3_ONTARIO ELECTRICITY SUPPORT PROGRAM RECIPIENTS | V109: 99
A110: Algoma Power Inc. | E110: (c) the account-holder or any member of the account-holder’s household regularly uses, for medical purposes, | K110: 3_ONTARIO ELECTRICITY SUPPORT PROGRAM RECIPIENTS | V110: 109
A111: Algoma Power Inc. | E111: an electricity-intensive medical device at the dwelling to which the account relates. | K111: 3_ONTARIO ELECTRICITY SUPPORT PROGRAM RECIPIENTS | V111: 85
A112: Algoma Power Inc. | E112: OESP Credit | G112: $ | H112: -60 | K112: 3_ONTARIO ELECTRICITY SUPPORT PROGRAM RECIPIENTS | L112: T | P112: 3_ONTARIO ELECTRICITY SUPPORT PROGRAM RECIPIENTS_OESP CREDIT_CLASS H | V112: 12
A113: Algoma Power Inc. | E113: Class I | K113: 3_ONTARIO ELECTRICITY SUPPORT PROGRAM RECIPIENTS | V113: 8
A114: Algoma Power Inc. | E114: Class I comprises account-holders with a household income and household size described under | K114: 3_ONTARIO ELECTRICITY SUPPORT PROGRAM RECIPIENTS | V114: 93
A115: Algoma Power Inc. | E115: paragraphs (a) or (b) of Class F who also meet any of the following conditions: | K115: 3_ONTARIO ELECTRICITY SUPPORT PROGRAM RECIPIENTS | V115: 79
A116: Algoma Power Inc. | E116: (a) the dwelling to which the account relates is heated primarily by electricity; | K116: 3_ONTARIO ELECTRICITY SUPPORT PROGRAM RECIPIENTS | V116: 82
A117: Algoma Power Inc. | E117: (b) the account-holder or any member of the account-holder’s household is an Aboriginal person; or | K117: 3_ONTARIO ELECTRICITY SUPPORT PROGRAM RECIPIENTS | V117: 99
A118: Algoma Power Inc. | E118: (c) the account-holder or any member of the account-holder’s household regularly uses, for medical purposes, | K118: 3_ONTARIO ELECTRICITY SUPPORT PROGRAM RECIPIENTS | V118: 109
A119: Algoma Power Inc. | E119: an electricity-intensive medical device at the dwelling to which the account relates. | K119: 3_ONTARIO ELECTRICITY SUPPORT PROGRAM RECIPIENTS | V119: 85
A120: Algoma Power Inc. | E120: OESP Credit | G120: $ | H120: -75 | K120: 3_ONTARIO ELECTRICITY SUPPORT PROGRAM RECIPIENTS | L120: T | P120: 3_ONTARIO ELECTRICITY SUPPORT PROGRAM RECIPIENTS_OESP CREDIT_CLASS I | V120: 12
A121: Algoma Power Inc. | E121: SEASONAL CUSTOMERS SERVICE CLASSIFICATION | K121: 4_SEASONAL CUSTOMERS SERVICE CLASSIFICATION | V121: 41
A122: Algoma Power Inc. | E122: This classification includes all services supplied to single-family dwelling units for domestic purposes, which are occupied on a seasonal/intermittent basis. A service is defined as Seasonal if occupancy is for a period of less than eight months of the year. Further servicing details are available in the distributor’s Conditions of Service. | K122: 4_SEASONAL CUSTOMERS SERVICE CLASSIFICATION | V122: 345
A123: Algoma Power Inc. | E123: APPLICATION | K123: 4_APPLICATION | V123: 11
A124: Algoma Power Inc. | E124: The application of these rates and charges shall be in accordance with the Licence of the Distributor and any Code or Order of the Ontario Energy Board, and amendments thereto as approved by the Ontario Energy Board, which may be applicable to the administration of this schedule. | K124: 4_SEASONAL CUSTOMERS SERVICE CLASSIFICATION | V124: 280
A125: Algoma Power Inc. | E125: No rates and charges for the distribution of electricity and charges to meet the costs of any work or service done or furnished for the purpose of the distribution of electricity shall be made except as permitted by this schedule, unless required by the Distributor’s Licence or a Code or Order of the Ontario Energy Board, and amendments thereto as approved by the Ontario Energy Board, or as specified herein. | K125: 4_SEASONAL CUSTOMERS SERVICE CLASSIFICATION | V125: 411
A126: Algoma Power Inc. | E126: Unless specifically noted, this schedule does not contain any charges for the electricity commodity, be it under the Regulated Price Plan, a contract with a retailer or the wholesale market price, as applicable. In addition, the charges in the MONTHLY RATES AND CHARGES – Regulatory Component of this schedule do not apply to a customer that is an embedded wholesale market participant. | K126: 4_SEASONAL CUSTOMERS SERVICE CLASSIFICATION | V126: 387
A127: Algoma Power Inc. | E127: It should be noted that this schedule does not list any charges, assessments or credits that are required by law to be invoiced by a distributor and that are not subject to Ontario Energy Board approval, such as the Debt Retirement Charge, the Global Adjustment, and the HST. | K127: 4_SEASONAL CUSTOMERS SERVICE CLASSIFICATION | V127: 275
A128: Algoma Power Inc. | E128: MONTHLY RATES AND CHARGES – Delivery Component | K128: 4_MRC_Del | V128: 46
A129: Algoma Power Inc. | E129: Service Charge | G129: $ | H129: 34.27 | K129: 4_SEASONAL CUSTOMERS SERVICE CLASSIFICATION | L129: A | P129: 4_SEASONAL CUSTOMERS SERVICE CLASSIFICATION_MSC | V129: 15
A130: Algoma Power Inc. | E130: Rate Rider for Smart Metering Entity Charge – effective until October 31, 2018 | G130: $ | H130: 0.79 | K130: 4_SEASONAL CUSTOMERS SERVICE CLASSIFICATION | L130: B | P130: 4_SEASONAL CUSTOMERS SERVICE CLASSIFICATION_FX_RR_2 | T130: 2018-10-31 | V130: 78
A131: Algoma Power Inc. | E131: Rate Rider for Recovery of Smart Meter Deferred Revenue – effective until December 31, 2016 | G131: $ | H131: 3.57 | K131: 4_SEASONAL CUSTOMERS SERVICE CLASSIFICATION | L131: A | P131: 4_SEASONAL CUSTOMERS SERVICE CLASSIFICATION_FX_RR_3 | T131: 2016-12-31 | V131: 91
A132: Algoma Power Inc. | E132: Distribution Volumetric Rate | G132: $/kWh | H132: 0.1435 | K132: 4_SEASONAL CUSTOMERS SERVICE CLASSIFICATION | L132: A | P132: 4_SEASONAL CUSTOMERS SERVICE CLASSIFICATION_DVC | V132: 29
A133: Algoma Power Inc. | E133: Rate Rider for Disposition of Account 1574 – effective until June 30, 2019 | G133: $/kWh | H133: 0.0307 | K133: 4_SEASONAL CUSTOMERS SERVICE CLASSIFICATION | L133: A | T133: 2019-06-30 | V133: 74
A134: Algoma Power Inc. | E134: Rate Rider for Disposition of Accounts 1575 & 1576 – effective until December 31, 2019 | G134: $/kWh | H134: -0.0019 | K134: 4_SEASONAL CUSTOMERS SERVICE CLASSIFICATION | L134: A | P134: 4_SEASONAL CUSTOMERS SERVICE CLASSIFICATION_VR_RR_2 | T134: 2019-12-31 | V134: 86
A135: Algoma Power Inc. | E135: Retail Transmission Rate – Network Service Rate | G135: $/kWh | H135: 0.007 | K135: 4_SEASONAL CUSTOMERS SERVICE CLASSIFICATION | L135: C | P135: 4_SEASONAL CUSTOMERS SERVICE CLASSIFICATION_Retail Transmission Rate – Network Service Rate | V135: 48
A136: Algoma Power Inc. | E136: Retail Transmission Rate – Line and Transformation Connection Service Rate | G136: $/kWh | H136: 0.0051 | K136: 4_SEASONAL CUSTOMERS SERVICE CLASSIFICATION | L136: C | P136: 4_SEASONAL CUSTOMERS SERVICE CLASSIFICATION_Retail Transmission Rate – Line and Transformation Connection Service Rate | V136: 75
A137: Algoma Power Inc. | E137: MONTHLY RATES AND CHARGES – Regulatory Component | K137: 4_MRC_Reg | V137: 48
A138: Algoma Power Inc. | E138: Wholesale Market Service Rate | G138: $/kWh | H138: 0.0036 | K138: 4_SEASONAL CUSTOMERS SERVICE CLASSIFICATION | L138: T | P138: 4_SEASONAL CUSTOMERS SERVICE CLASSIFICATION_WMSR | V138: 30
A139: Algoma Power Inc. | E139: Rural or Remote Electricity Rate Protection Charge (RRRP) | G139: $/kWh | H139: 0.0013 | K139: 4_SEASONAL CUSTOMERS SERVICE CLASSIFICATION | L139: T | P139: 4_SEASONAL CUSTOMERS SERVICE CLASSIFICATION_RRRP | V139: 57
A140: Algoma Power Inc. | E140: Ontario Electricity Support Program Charge (OESP) | G140: $/kWh | H140: 0.0011 | K140: 4_SEASONAL CUSTOMERS SERVICE CLASSIFICATION | L140: T | P140: 4_SEASONAL CUSTOMERS SERVICE CLASSIFICATION_OESPR | V140: 49
A141: Algoma Power Inc. | E141: Standard Supply Service – Administration Charge (if applicable) | G141: $ | H141: 0.25 | K141: 4_SEASONAL CUSTOMERS SERVICE CLASSIFICATION | L141: T | P141: 4_SEASONAL CUSTOMERS SERVICE CLASSIFICATION_SSS | V141: 64
A142: Algoma Power Inc. | E142: STREET LIGHTING SERVICE CLASSIFICATION | K142: 5_STREET LIGHTING SERVICE CLASSIFICATION | V142: 38
A143: Algoma Power Inc. | E143: This classification refers to an account for roadway lighting. The consumption for these unmetered accounts will be based on the calculated connection load times the calculated hours of use established in the approved Ontario Energy Board street lighting load shape template. Further servicing details are available in the distributor’s Conditions of Service. | K143: 5_STREET LIGHTING SERVICE CLASSIFICATION | V143: 361
A144: Algoma Power Inc. | E144: APPLICATION | K144: 5_APPLICATION | V144: 11
A145: Algoma Power Inc. | E145: The application of these rates and charges shall be in accordance with the Licence of the Distributor and any Code or Order of the Ontario Energy Board, and amendments thereto as approved by the Ontario Energy Board, which may be applicable to the administration of this schedule. | K145: 5_STREET LIGHTING SERVICE CLASSIFICATION | V145: 280
A146: Algoma Power Inc. | E146: No rates and charges for the distribution of electricity and charges to meet the costs of any work or service done or furnished for the purpose of the distribution of electricity shall be made except as permitted by this schedule, unless required by the Distributor’s Licence or a Code or Order of the Ontario Energy Board, and amendments thereto as approved by the Ontario Energy Board, or as specified herein. | K146: 5_STREET LIGHTING SERVICE CLASSIFICATION | V146: 411
A147: Algoma Power Inc. | E147: Unless specifically noted, this schedule does not contain any charges for the electricity commodity, be it under the Regulated Price Plan, a contract with a retailer or the wholesale market price, as applicable. In addition, the charges in the MONTHLY RATES AND CHARGES – Regulatory Component of this schedule do not apply to a customer that is an embedded wholesale market participant. | K147: 5_STREET LIGHTING SERVICE CLASSIFICATION | V147: 387
A148: Algoma Power Inc. | E148: It should be noted that this schedule does not list any charges, assessments or credits that are required by law to be invoiced by a distributor and that are not subject to Ontario Energy Board approval, such as the Debt Retirement Charge, the Global Adjustment, and the HST. | K148: 5_STREET LIGHTING SERVICE CLASSIFICATION | V148: 275
A149: Algoma Power Inc. | E149: MONTHLY RATES AND CHARGES – Delivery Component | K149: 5_MRC_Del | V149: 46
A150: Algoma Power Inc. | E150: Service Charge (per connection) | G150: $ | H150: 1.34 | K150: 5_STREET LIGHTING SERVICE CLASSIFICATION | L150: A | P150: 5_STREET LIGHTING SERVICE CLASSIFICATION_MSC | V150: 31
A151: Algoma Power Inc. | E151: Distribution Volumetric Rate | G151: $/kWh | H151: 0.2164 | K151: 5_STREET LIGHTING SERVICE CLASSIFICATION | L151: A | P151: 5_STREET LIGHTING SERVICE CLASSIFICATION_DVC | V151: 29
A152: Algoma Power Inc. | E152: Rate Rider for Disposition of Accounts 1575 & 1576 – effective until December 31, 2019 | G152: $/kWh | H152: -0.0019 | K152: 5_STREET LIGHTING SERVICE CLASSIFICATION | L152: A | P152: 5_STREET LIGHTING SERVICE CLASSIFICATION_VR_RR_3 | T152: 2019-12-31 | V152: 86
A153: Algoma Power Inc. | E153: Retail Transmission Rate – Network Service Rate | G153: $/kW | H153: 1.9496 | K153: 5_STREET LIGHTING SERVICE CLASSIFICATION | L153: C | P153: 5_STREET LIGHTING SERVICE CLASSIFICATION_Retail Transmission Rate – Network Service Rate | V153: 48
A154: Algoma Power Inc. | E154: Retail Transmission Rate – Line and Transformation Connection Service Rate | G154: $/kW | H154: 1.3767 | K154: 5_STREET LIGHTING SERVICE CLASSIFICATION | L154: C | P154: 5_STREET LIGHTING SERVICE CLASSIFICATION_Retail Transmission Rate – Line and Transformation Connection Service Rate | V154: 75
A155: Algoma Power Inc. | E155: MONTHLY RATES AND CHARGES – Regulatory Component | K155: 5_MRC_Reg | V155: 48
A156: Algoma Power Inc. | E156: Wholesale Market Service Rate | G156: $/kWh | H156: 0.0036 | K156: 5_STREET LIGHTING SERVICE CLASSIFICATION | L156: T | P156: 5_STREET LIGHTING SERVICE CLASSIFICATION_WMSR | V156: 30
A157: Algoma Power Inc. | E157: Rural or Remote Electricity Rate Protection Charge (RRRP) | G157: $/kWh | H157: 0.0013 | K157: 5_STREET LIGHTING SERVICE CLASSIFICATION | L157: T | P157: 5_STREET LIGHTING SERVICE CLASSIFICATION_RRRP | V157: 57
A158: Algoma Power Inc. | E158: Ontario Electricity Support Program Charge (OESP) | G158: $/kWh | H158: 0.0011 | K158: 5_STREET LIGHTING SERVICE CLASSIFICATION | L158: T | P158: 5_STREET LIGHTING SERVICE CLASSIFICATION_OESPR | V158: 49
A159: Algoma Power Inc. | E159: Standard Supply Service – Administration Charge (if applicable) | G159: $ | H159: 0.25 | K159: 5_STREET LIGHTING SERVICE CLASSIFICATION | L159: T | P159: 5_STREET LIGHTING SERVICE CLASSIFICATION_SSS | V159: 64
A160: Algoma Power Inc. | E160: microFIT SERVICE CLASSIFICATION | K160: 6_microFIT SERVICE CLASSIFICATION | V160: 31
A161: Algoma Power Inc. | E161: This classification applies to an electricity generation facility contracted under the Independent Electricity System Operator’s microFIT program and connected to the distributor’s distribution system. Further servicing details are available in the distributor’s Conditions of Service. | K161: 6_microFIT SERVICE CLASSIFICATION | V161: 286
A162: Algoma Power Inc. | E162: APPLICATION | K162: 6_APPLICATION | V162: 11
A163: Algoma Power Inc. | E163: The application of these rates and charges shall be in accordance with the Licence of the Distributor and any Code or Order of the Ontario Energy Board, and amendments thereto as approved by the Ontario Energy Board, which may be applicable to the administration of this schedule. | K163: 6_microFIT SERVICE CLASSIFICATION | V163: 280
A164: Algoma Power Inc. | E164: No rates and charges for the distribution of electricity and charges to meet the costs of any work or service done or furnished for the purpose of the distribution of electricity shall be made except as permitted by this schedule, unless required by the Distributor’s Licence or a Code or Order of the Ontario Energy Board, and amendments thereto as approved by the Ontario Energy Board, or as specified herein. | K164: 6_microFIT SERVICE CLASSIFICATION | V164: 411
A165: Algoma Power Inc. | E165: Unless specifically noted, this schedule does not contain any charges for the electricity commodity, be it under the Regulated Price Plan, a contract with a retailer or the wholesale market price, as applicable. | K165: 6_microFIT SERVICE CLASSIFICATION | V165: 211
A166: Algoma Power Inc. | E166: It should be noted that this schedule does not list any charges, assessments or credits that are required by law to be invoiced by a distributor and that are not subject to Ontario Energy Board approval, such as the Debt Retirement Charge, the Global Adjustment, and the HST. | K166: 6_microFIT SERVICE CLASSIFICATION | V166: 275
A167: Algoma Power Inc. | E167: MONTHLY RATES AND CHARGES – Delivery Component | K167: 6_MRC_Del | V167: 47
A168: Algoma Power Inc. | E168: Service Charge | G168: $ | H168: 5.4 | K168: 6_microFIT SERVICE CLASSIFICATION | L168: A | P168: 6_microFIT SERVICE CLASSIFICATION_MSC | V168: 15
A169: Algoma Power Inc. | E169: ALLOWANCES | K169: Algoma Power Inc._ALLOWANCES | V169: 10
A170: Algoma Power Inc. | E170: Transformer Allowance for Ownership – per kW of billing demand/month | G170: $/kW | H170: -0.6 | V170: 69
A171: Algoma Power Inc. | E171: Primary Metering Allowance for transformer losses – applied to measured demand and energy | G171: % | H171: -1 | L171: T | V171: 90
A172: Algoma Power Inc. | E172: SPECIFIC SERVICE CHARGES | K172: Algoma Power Inc._SSC | V172: 24
A173: Algoma Power Inc. | E173: APPLICATION | V173: 11
A174: Algoma Power Inc. | E174: The application of these rates and charges shall be in accordance with the Licence of the Distributor and any Code or Order of the Ontario Energy Board, and amendments thereto as approved by the Ontario Energy Board, which may be applicable to the administration of this schedule. | V174: 280
A175: Algoma Power Inc. | E175: No charges to meet the costs of any work or service done or furnished for the purpose of the distribution of electricity shall be made except as permitted by this schedule, unless required by the Distributor’s Licence or a Code or Order of the Ontario Energy Board, and amendments thereto as approved by the Ontario Energy Board, or as specified herein. | V175: 353
A176: Algoma Power Inc. | E176: It should be noted that this schedule does not list any charges, assessments or credits that are required by law to be invoiced by a distributor and that are not subject to Ontario Energy Board approval, such as the Debt Retirement Charge, the Global Adjustment, and the HST. | V176: 275
A177: Algoma Power Inc. | E177: Customer Administration | K177: Algoma Power Inc._CA | V177: 23
A178: Algoma Power Inc. | E178: Arrears certificate (credit reference) | G178: $ | H178: 15 | V178: 39
A179: Algoma Power Inc. | E179: Statement of account | G179: $ | H179: 15 | V179: 21
A180: Algoma Power Inc. | E180: Pulling post dated cheques | G180: $ | H180: 15 | V180: 27
A181: Algoma Power Inc. | E181: Duplicate invoices for previous billing | G181: $ | H181: 15 | V181: 40
A182: Algoma Power Inc. | E182: Request for other billing information | G182: $ | H182: 15 | V182: 38
A183: Algoma Power Inc. | E183: Easement letter | G183: $ | H183: 15 | V183: 16
A184: Algoma Power Inc. | E184: Income tax letter | G184: $ | H184: 15 | V184: 18
A185: Algoma Power Inc. | E185: Notification charge | G185: $ | H185: 15 | V185: 20
A186: Algoma Power Inc. | E186: Account history | G186: $ | H186: 15 | V186: 16
A187: Algoma Power Inc. | E187: Credit reference/credit check (plus credit agency costs) | G187: $ | H187: 15 | V187: 57
A188: Algoma Power Inc. | E188: Account set up charge/change of occupancy charge (plus credit agency costs if applicable) | G188: $ | H188: 30 | V188: 90
A189: Algoma Power Inc. | E189: Returned cheque charge (plus bank charges) | G189: $ | H189: 15 | V189: 43
A190: Algoma Power Inc. | E190: Charge to certify cheques | G190: $ | H190: 15 | V190: 26
A191: Algoma Power Inc. | E191: Legal letter charge | G191: $ | H191: 15 | V191: 20
A192: Algoma Power Inc. | E192: Special meter reads | G192: $ | H192: 30 | V192: 20
A193: Algoma Power Inc. | E193: Meter dispute charge plus Measurement Canada fees (if meter found correct) | G193: $ | H193: 30 | V193: 75
A194: Algoma Power Inc. | E194: Non-Payment of Account | K194: Algoma Power Inc._NPoA | V194: 22
A195: Algoma Power Inc. | E195: Late payment - per month | G195: % | H195: 1.5 | V195: 25
A196: Algoma Power Inc. | E196: Late payment - per annum | G196: % | H196: 19.56 | V196: 25
A197: Algoma Power Inc. | E197: Collection of account charge – no disconnection - during regular business hours | G197: $ | H197: 30 | V197: 80
A198: Algoma Power Inc. | E198: Collection of account charge - no disconnection - after regular hours | G198: $ | H198: 165 | V198: 70
A199: Algoma Power Inc. | E199: Disconnect/reconnect charges - at meter during regular hours | G199: $ | H199: 65 | V199: 61
A200: Algoma Power Inc. | E200: Disconnect/reconnect charges - at meter after regular hours | G200: $ | H200: 185 | V200: 60
A201: Algoma Power Inc. | E201: Disconnect/reconnect charges at pole - during regular hours | G201: $ | H201: 185 | V201: 60
... 4299 more rows

Sheet lists (hidden)
A1: ALLOWANCES | B1: Embedded Distributor | C1: =COUNTA(B1:B17) -> 4 | I1: A Standby Service Charge will be applied for a month where standby power is not provided. The applicable rate is the approved Distribution Volumetric Rate of the applicable service class and is applied to gross metered demand or contracted amount, whichever is greater. A monthly administration charge of $200, for simple metering arrangements, or $500, for complex metering arrangements, will also be applied. | L1: Loss Factors | N1: Units | O1: Units1 | P1: Units2 | Z1: Account History | AA1: Account set up charge/change of occupancy charge (plus credit agency costs if applicable) | AB1: Total Loss Factor – Embedded Distributor – Hydro One Networks Inc. | AL1: Algoma Power Inc. | AM1: Algoma Power Inc. | AO1: DISTRIBUTED GENERATION [DGEN] | AP1: kW | AT1: Sub-Total: Delivery (Distribution and Retail Transmission)
A2: COMPETITIVE SECTOR MULTI-UNIT RESIDENTIAL SERVICE | B2: General Service 3,000 to 4,999 kW | I2: Distribution Volumetric Rate | L2: Total Loss Factor – Primary Metered Customer | N2: $ | O2: $/kWh | P2: $ | Z2: Account set up charge/change of occupancy charge | AA2: Administrative Billing Charge | AB2: Total Loss Factor – Primary Metered Customer | AL2: Atikokan Hydro Inc. | AM2: Atikokan Hydro Inc. | AO2: EMBEDDED DISTRIBUTOR | AP2: kW | AT2: Wholesale Market Service Rate | AW2: =AU2*AV2 -> 0 | AX2: =AU2 -> 0 | AY2: 0 | AZ2: =AX2*AY2 -> 0 | BB2: =AZ2-AW2 -> 0 | BC2: =BB2/AW2 -> 
A3: COMPETITIVE SECTOR MULTI-UNIT RESIDENTIAL SERVICE CLASSIFICATION | B3: General Service 1,000 to 4,999 kW | I3: Distribution Volumetric Rate - $/kW of contracted amount | L3: Total Loss Factor – Primary Metered Customer < 5,000 kW | N3: $/kWh | O3: $/kW | P3: % | W3: MSC | Z3: Account set up charge/change of occupancy charge (plus credit agency costs if applicable – Residential) | AA3: Bell Canada Pole Rentals | AB3: Total Loss Factor – Primary Metered Customer < 5,000 kW | AL3: Bluewater Power Distribution Corporation | AM3: Bluewater Power Distribution Corporation | AO3: EMBEDDED DISTRIBUTOR | AP3: kW | AT3: Rural or Remote Electricity Rate Protection Charge (RRRP) | AW3: =AU3*AV3 -> 0 | AX3: 0 | AY3: 0 | AZ3: =AX3*AY3 -> 0 | BB3: =AZ3-AW3 -> 0 | BC3: =BB3/AW3 -> 
A4: DISTRIBUTED GENERATION [DGEN] | B4: General Service Equal To Or Greater Than 1,500 kW - Interval Metered | I4: Distribution Wheeling Service Rate | L4: Total Loss Factor – Primary Metered Customer > 5,000 kW | N4: $/kW | O4: $/kVA | W4: SM_Rate_Adder | Z4: Account set up charge/change of occupancy charge (plus credit agency costs if applicable) | AA4: Clearance Pole Attachment charge $/pole/year | AB4: Total Loss Factor – Primary Metered Customer > 5,000 kW | AL4: Brant County Power Inc. | AM4: Brant County Power Inc. | AO4: FARMS - SINGLE PHASE ENERGY-BILLED [F1] | AP4: kWh | AT4: Standard Supply Service – Administration Charge (if applicable) | AW4: =AU4*AV4 -> 0 | AX4: 0 | AY4: 0 | AZ4: =AX4*AY4 -> 0 | BB4: =AZ4-AW4 -> 0 | BC4: =BB4/AW4 -> 
A5: DISTRIBUTED GENERATION [DGEN] SERVICE CLASSIFICATION | I5: Electricity Rate | L5: Total Loss Factor – Secondary Metered Customer | N5: $/kVA | W5: MSC_Rate_Rider_ | Z5: Arrears certificate | AA5: Collection of account charge – no disconnection | AB5: Total Loss Factor – Secondary Metered Customer | AL5: Brantford Power Inc. | AM5: Brantford Power Inc. | AO5: FARMS - THREE PHASE ENERGY-BILLED [F3] | AP5: kWh | AT5: Sub-Total: Regulatory | AW5: =SUM(AW2:AW4) -> 0 | AZ5: =SUM(AZ2:BA4) -> 0 | BB5: =AZ5-AW5 -> 0 | BC5: =BB5/AW5 -> 
A6: EMBEDDED DISTRIBUTOR | I6: Electricity Rate - All Additional kWh | L6: Total Loss Factor – Secondary Metered Customer < 5,000 kW | W6: VC | Z6: Arrears certificate (credit reference) | AA6: Collection of account charge – no disconnection – after regular hours | AB6: Total Loss Factor – Secondary Metered Customer < 5,000 kW | AL6: Burlington Hydro Inc. | AM6: Burlington Hydro Inc. | AO6: GENERAL SERVICE - COMMERCIAL | AP6: kW | AT6: Debt Retirement Charge (DRC) | AW6: =AU6*AV6 -> 0 | AX6: =AU6 -> 0 | AY6: =AV6 -> 0 | AZ6: =AX6*AY6 -> 0 | BB6: =AZ6-AW6 -> 0 | BC6: =BB6/AW6 -> 
A7: EMBEDDED DISTRIBUTOR SERVICE CLASSIFICATION | I7: Electricity Rate - First 250 kWh | AL7: Cambridge and North Dumfries Hydro Inc. | AM7: Cambridge and North Dumfries Hydro Inc. | AO7: GENERAL SERVICE - INSTITUTIONAL | AP7: kW
A8: ENERGY FROM WASTE SERVICE CLASSIFICATION | I8: Electricity Rate -All Additional kWh | L8: Total Loss Factor – Secondary Metered Customer > 5,000 kW | W8: VC_Rate_Rider_ | Z8: Charge to certify cheque | AA8: Collection of account charge – no disconnection - during regular business hours | AB8: Total Loss Factor – Secondary Metered Customer > 5,000 kW | AL8: Canadian Niagara Power Inc. | AM8: Canadian Niagara Power Inc. | AO8: GENERAL SERVICE 1,000 TO 2,999 KW | AP8: kW | AT8: Total Bill on RPP (before taxes) | BB8: =AZ8-AW8 -> 0
A9: FARMS - SINGLE PHASE ENERGY-BILLED [F1] | I9: Electricity Rate First 1,000 kWh | L9: Distribution Loss Factor - Secondary Metered Customer < 5,000 kW | W9: VC_GA_Rate_Rider_kW_ | Z9: Collection of Account Charge – No Disconnection | AA9: Collection of account charge – no disconnection – during regular hours | AL9: Centre Wellington Hydro Ltd. | AM9: Centre Wellington Hydro Ltd. | AO9: GENERAL SERVICE 1,000 TO 4,999 KW | AP9: kW | AT9: HST | AW9: =AV9*AW8 -> 0 | AY9: =AV9 -> 0 | AZ9: =AY9*AZ8 -> 0 | BB9: =AZ9-AW9 -> 0 | BC9: =BB9/AW9 -> 
A10: FARMS - THREE PHASE ENERGY-BILLED [F3] | I10: Electricity Rate First 25,000 kWh | L10: Distribution Loss Factor - Secondary Metered Customer > 5,000 kW | W10: VC_LV_Rate | Z10: Credit Card Convenience Charge | AA10: Collection/Disconnection/Load Limiter/Reconnection – if in Community | AL10: Chapleau Public Utilities Corporation | AM10: Chapleau Public Utilities Corporation | AO10: GENERAL SERVICE 1,000 TO 4,999 KW - INTERVAL METERS | AP10: kW | AT10: Total Bill (including HST) | AW10: =AW9+AW8 -> 0 | AZ10: =AZ9+AZ8 -> 0 | BB10: =AZ10-AW10 -> 0 | BC10: =BB10/AW10 -> 
A11: GENERAL SERVICE - COMMERCIAL | I11: Electricity Rate First 6,000 kWh | L11: Distribution Loss Factor - Primary Metered Customer < 5,000 kW | W11: RTSR_Network | Z11: Credit check (plus credit agency costs) | AA11: Credit Card Convenience Charge | AL11: Collus PowerStream Corporation | AM11: Collus PowerStream Corporation | AO11: GENERAL SERVICE 1,000 TO 4,999 KW (CO-GENERATION) | AP11: kW | AT11: Ontario Clean Energy Benefit (OCEB) | AW11: =-0.1*AW10 -> 0 | AY11: =AV11 -> 0 | AZ11: =-0.1*AZ10 -> 0 | BB11: =AZ11-AW11 -> 0 | BC11: =BB11/AW11 -> 
A12: GENERAL SERVICE - INSTITUTIONAL | I12: Electricity Rate Next 1,500 kWh | L12: Distribution Loss Factor - Primary Metered Customer > 5,000 kW | W12: RTSR_Connection | Z12: Credit reference Letter | AA12: Disconnect/Reconnect at meter – after regular hours | AL12: Cooperative Hydro Embrun Inc. | AM12: Cooperative Hydro Embrun Inc. | AO12: GENERAL SERVICE 1,500 TO 4,999 KW | AP12: kW | AT12: Total Bill on RPP (including OCEB) | AW12: =AW10+AW11 -> 0 | AZ12: =AZ10+AZ11 -> 0 | BB12: =AZ12-AW12 -> 0 | BC12: =BB12/AW12 -> 
A13: GENERAL SERVICE 1,000 TO 2,999 KW | I13: General Service 1,500 to 4,999 kW customer | AL13: E.L.K. Energy Inc. | AM13: E.L.K. Energy Inc. | AO13: GENERAL SERVICE 2,500 TO 4,999 KW | AP13: kW
A14: GENERAL SERVICE 1,000 TO 4,999 KW | I14: General Service 50 to 1,499 kW customer | L14: Total Loss Factor - Embedded Distributor | W14: RTSR_Network_Interval | Z14: Credit reference/credit check (plus credit agency costs – General Service) | AA14: Disconnect/Reconnect at meter – during regular hours | AL14: Enersource Hydro Mississauga Inc. | AM14: Enersource Hydro Mississauga Inc. | AO14: GENERAL SERVICE 3,000 TO 4,999 KW | AP14: kW | AT14: Total Bill on TOU (before taxes) | BB14: =AZ14-AW14 -> 0
A15: GENERAL SERVICE 1,000 TO 4,999 KW - INTERVAL METERS | I15: General Service Large Use customer | L15: Total Loss Factor – Embedded Distributor – Hydro One Networks Inc. | W15: RTSR_Connection_Interval | Z15: Credit Reference/credit check (plus credit agency costs) | AA15: Disconnect/Reconnect at pole – after regular hours | AL15: Entegrus Powerlines Inc. | AM15: Entegrus Powerlines Inc. | AO15: GENERAL SERVICE 3,000 TO 4,999 KW - INTERMEDIATE USE | AP15: kW | AT15: HST | AW15: =AV15*AW14 -> 0 | AY15: =AV15 -> 0 | AZ15: =AY15*AZ14 -> 0 | BB15: =AZ15-AW15 -> 0 | BC15: =BB15/AW15 -> 
A16: GENERAL SERVICE 1,000 TO 4,999 KW (CO-GENERATION) | I16: Green Energy Act Initiatives Funding Adder - effective until the date of the next cost of service-based rate order | W16: RTSR_Network_Interval_GR1000kW | Z16: Dispute Test – Commercial self contained -- MC | AA16: Disconnect/Reconnect at pole – during regular hours | AL16: Entegrus Powerlines Inc. - Dutton Service Area | AM16: Entegrus Powerlines Inc. - Dutton Service Area | AO16: GENERAL SERVICE 3,000 TO 4,999 KW - INTERVAL METERED | AP16: kW | AT16: Total Bill (including HST) | AW16: =AW15+AW14 -> 0 | AZ16: =AZ15+AZ14 -> 0 | BB16: =AZ16-AW16 -> 0 | BC16: =BB16/AW16 -> 
A17: GENERAL SERVICE 1,000 TO 4,999 KW (CO-GENERATION) SERVICE CLASSIFICATION | I17: Green Energy Act Plan Funding Adder | W17: RTSR_Connection_Interval_GR1000kW | Z17: Dispute Test – Commercial TT -- MC | AA17: Disconnect/Reconnect Charge – At Meter – After Hours | AL17: Entegrus Powerlines Inc. - former Chatham-Kent Hydro Service Area | AM17: Entegrus Powerlines Inc. - former Chatham-Kent Hydro Service Area | AO17: GENERAL SERVICE 3,000 TO 4,999 KW - TIME OF USE | AP17: kW | AT17: Ontario Clean Energy Benefit (OCEB) | AW17: =-0.1*AW16 -> 0 | AY17: =AV17 -> 0 | AZ17: =-0.1*AZ16 -> 0 | BB17: =AZ17-AW17 -> 0 | BC17: =BB17/AW17 -> 
A18: GENERAL SERVICE 1,000 to 4,999 kW SERVICE CLASSIFICATION | I18: Green Energy Act Plan Funding Adder - effective April 1, 2013 until March 31, 2014 | W18: RTSR_Line_Connection | Z18: Dispute Test – Residential | AA18: Disconnect/Reconnect Charge – At Meter – During Regular Hours | AL18: Entegrus Powerlines Inc. - Newbury Service Area | AM18: Entegrus Powerlines Inc. - Newbury Service Area | AO18: GENERAL SERVICE 50 TO 1,000 KW | AP18: kW | AT18: Total Bill on TOU (including OCEB) | AW18: =AW16+AW17 -> 0 | AZ18: =AZ16+AZ17 -> 0 | BB18: =AZ18-AW18 -> 0 | BC18: =BB18/AW18 -> 
A19: GENERAL SERVICE 1,500 TO 4,999 KW | I19: Green Energy Act Plan Funding Adder - effective April 1, 2014 until March 31, 2015 | W19: RTSR_Transformer_Connection | Z19: Duplicate Invoices for previous billing | AA19: Disconnect/Reconnect Charge – At Pole – After Hours | AL19: Entegrus Powerlines Inc. - Strathroy, Mount Brydges and Parkhill Service Areas | AM19: Entegrus Powerlines Inc. - Strathroy, Mount Brydges and Parkhill Service Areas | AO19: GENERAL SERVICE 50 TO 1,000 KW - INTERVAL METERS | AP19: kW
A20: GENERAL SERVICE 2,500 TO 4,999 KW | I20: ICM Rate Rider (2014) - in effect until the effective date of the next cost of service rates | W20: WMSR | Z20: Easement Letter | AA20: Disconnect/Reconnect Charge – At Pole – During Regular Hours | AL20: ENWIN Utilities Ltd. | AM20: ENWIN Utilities Ltd. | AO20: GENERAL SERVICE 50 TO 1,000 KW - NON INTERVAL METERS | AP20: kW
A21: GENERAL SERVICE 3,000 TO 4,999 KW | I21: Low Voltage Service Charge | W21: RRRP | Z21: Income Tax Letter | AA21: Disconnect/Reconnect Charges for non payment of account - At Meter After Hours | AL21: Erie Thames Powerlines Corporation | AM21: Erie Thames Powerlines Corporation | AO21: GENERAL SERVICE 50 TO 1,499 KW | AP21: kW
A22: GENERAL SERVICE 3,000 TO 4,999 KW - INTERMEDIATE USE | I22: Low Voltage Service Rate | W22: SPC | Z22: Interval Meter Interrogation | AA22: Disconnect/Reconnect charges for non payment of account – at meter after regular hours | AL22: Espanola Regional Hydro Distribution Corporation | AM22: Espanola Regional Hydro Distribution Corporation | AO22: GENERAL SERVICE 50 TO 1,499 KW - INTERVAL METERED | AP22: kW
A23: GENERAL SERVICE 3,000 TO 4,999 KW - INTERMEDIATE USE SERVICE CLASSIFICATION | I23: Low Voltage Volumetric Rate | W23: DRC | Z23: Interval meter request change | AA23: Disconnect/Reconnect Charges for non payment of account - At Meter During Regular Hours | AL23: Essex Powerlines Corporation | AM23: Essex Powerlines Corporation | AO23: GENERAL SERVICE 50 TO 2,499 KW | AP23: kW
A24: GENERAL SERVICE 3,000 TO 4,999 KW - INTERVAL METERED | I24: LRAM Rate Rider - Effective Until April 30, 2015 | W24: SSS | Z24: Legal letter | AA24: Disconnect/Reconnect charges for non payment of account – at meter during regular hours | AL24: Festival Hydro Inc. | AM24: Festival Hydro Inc. | AO24: GENERAL SERVICE 50 TO 2,999 KW | AP24: kW
A25: GENERAL SERVICE 3,000 TO 4,999 KW - TIME OF USE | I25: Minimum Distribution Charge - per KW of maximum billing demand in the previous 11 months | W25: SFLF | Z25: Legal letter charge | AA25: Disconnect/Reconnect charges for non payment of account – at pole after regular hours | AL25: Fort Frances Power Corporation | AM25: Fort Frances Power Corporation | AO25: GENERAL SERVICE 50 TO 2,999 KW - INTERVAL METERED | AP25: kW
A26: GENERAL SERVICE 3,000 TO 4,999 KW SERVICE CLASSIFICATION | B26: January | I26: Monthly Distribution Wheeling Service Rate - Dedicated LV Line | W26: DLF_Secondary_LT_5000kW | Z26: Meter dispute charge plus Measurement Canada fees (if meter found correct) | AA26: Disconnect/Reconnect charges for non payment of account – at pole during regular hours | AL26: Greater Sudbury Hydro Inc. | AM26: Greater Sudbury Hydro Inc. | AO26: GENERAL SERVICE 50 TO 2,999 KW - TIME OF USE | AP26: kW
A27: GENERAL SERVICE 50 TO 1,000 KW | B27: February | I27: Monthly Distribution Wheeling Service Rate - Hydro One Networks | W27: DLF_Secondary_GT_5000kW | Z27: Notification charge | AA27: Disconnect/Reconnection for >300 volts - after regular hours | AL27: Grimsby Power Inc. | AM27: Grimsby Power Inc. | AO27: GENERAL SERVICE 50 TO 4,999 KW | AP27: kW
A28: GENERAL SERVICE 50 TO 1,000 KW - INTERVAL METERS | B28: March | I28: Monthly Distribution Wheeling Service Rate - Shared LV Line | W28: DLF_Primary_LT_5000kW | Z28: Pulling Post Dated Cheques | AA28: Disconnect/Reconnection for >300 volts - during regular hours | AL28: Guelph Hydro Electric Systems Inc. | AM28: Guelph Hydro Electric Systems Inc. | AO28: GENERAL SERVICE 50 TO 4,999 KW - INTERVAL METERED | AP28: kW
A29: GENERAL SERVICE 50 TO 1,000 KW - NON INTERVAL METERS | B29: April | I29: Monthly Distribution Wheeling Service Rate - Waterloo North Hydro | W29: DLF_Primary_GT_5000kW | Z29: Request for other billing information | AA29: Disposal of Concrete Poles | AL29: Haldimand County Hydro Inc. | AM29: Haldimand County Hydro Inc. | AO29: GENERAL SERVICE 50 TO 4,999 KW - TIME OF USE | AP29: kW
A30: GENERAL SERVICE 50 TO 1,499 KW | B30: May | I30: Rate Rider for Application of Tax Change - effective until April 30, 2015 | W30: TLF_Secondary_LT_5000kW | Z30: Returned cheque (plus bank charges) | AA30: Dispute Test – Commercial TT -- MC | AL30: Halton Hills Hydro Inc. | AM30: Halton Hills Hydro Inc. | AO30: GENERAL SERVICE 50 TO 4,999 KW (COGENERATION) | AP30: kW
A31: GENERAL SERVICE 50 TO 1,499 KW - INTERVAL METERED | B31: June | I31: Rate Rider for Application of Tax Change - effective until December 31, 2014 | W31: TLF_Secondary_GT_5000kW | Z31: Returned cheque charge (plus bank charges) | AA31: Install/Remove load control device – after regular hours | AL31: Hearst Power Distribution Company Limited | AM31: Hearst Power Distribution Company Limited | AO31: GENERAL SERVICE 50 TO 4,999 KW (FORMERLY TIME OF USE) | AP31: kW
A32: GENERAL SERVICE 50 to 1,499 kW SERVICE CLASSIFICATION | B32: July | I32: Rate Rider for Application of Tax Change (2014) - effective until April 30, 2015 | W32: TLF_Primary_LT_5000kW | Z32: Special Billing Service (aggregation) | AA32: Install/Remove load control device – during regular hours | AL32: Horizon Utilities Corporation | AM32: Horizon Utilities Corporation | AO32: GENERAL SERVICE 50 TO 499 KW | AP32: kW
A33: GENERAL SERVICE 50 TO 2,499 KW | B33: August | I33: Rate Rider for Application of Tax Change (per connection) - effective until April 30, 2015 | W33: TLF_Primary_GT_5000kW | Z33: Special Billing Service (sub-metering charge per meter) | AA33: Interval Meter Interrogation | AL33: Hydro 2000 Inc. | AM33: Hydro 2000 Inc. | AO33: GENERAL SERVICE 50 TO 699 KW | AP33: kW
A34: GENERAL SERVICE 50 TO 2,999 KW | B34: September | I34: Rate Rider for CGAAP Accounting Changes (2013) - effective until April 30, 2017 | W34: TLF_EmbeddedDistributor | Z34: Special meter reads | AA34: Interval Meter Load Management Tool Charge $/month | AL34: Hydro Hawkesbury Inc. | AM34: Hydro Hawkesbury Inc. | AO34: GENERAL SERVICE 50 TO 999 KW | AP34: kW
A35: GENERAL SERVICE 50 TO 2,999 KW - INTERVAL METERED | B35: October | I35: Rate Rider for Deferral/Variance Account (2012) - effective unitl April 30, 2016 | Z35: Statement of Account | AA35: Interval meter request change | AL35: Hydro One Brampton Networks Inc. | AM35: Hydro One Brampton Networks Inc. | AO35: GENERAL SERVICE 50 TO 999 KW - INTERVAL METERED | AP35: kW
A36: GENERAL SERVICE 50 TO 2,999 KW - TIME OF USE | B36: November | I36: Rate Rider for Deferral/Variance Account Disposition – effective until April 30, 2015 | Z36: Unprocessed Payment Charge (plus bank charges) | AA36: Late Payment – per annum | AL36: Hydro One Networks Inc. | AM36: Hydro One Networks Inc. | AO36: GENERAL SERVICE 500 TO 4,999 KW | AP36: kW
A37: GENERAL SERVICE 50 TO 2,999 KW SERVICE CLASSIFICATION | B37: December | I37: Rate Rider for Deferral/Variance Account Disposition (2012) - effective until April 30, 2016 | AA37: Late Payment – per month | AL37: Hydro Ottawa Limited | AM37: Hydro Ottawa Limited | AO37: GENERAL SERVICE 700 TO 4,999 KW | AP37: kW
A38: GENERAL SERVICE 50 TO 4,999 KW | I38: Rate Rider for Deferral/Variance Account Disposition (2013) - effective until April 30, 2014 | AA38: Layout fees | AL38: Innisfil Hydro Distribution Systems Limited | AM38: Innisfil Hydro Distribution Systems Limited | AO38: GENERAL SERVICE DEMAND BILLED (50 KW AND ABOVE) [GSD] | AP38: kW
A39: GENERAL SERVICE 50 TO 4,999 KW - INTERVAL METERED | I39: Rate Rider for Deferral/Variance Account Disposition (2014) - effective until April 28, 2016 | AA39: Meter dispute charge plus Measurement Canada fees (if meter found correct) | AL39: Kenora Hydro Electric Corporation Ltd. | AM39: Kenora Hydro Electric Corporation Ltd. | AO39: GENERAL SERVICE ENERGY BILLED (LESS THAN 50 KW) [GSE-METERED] | AP39: kWh
A40: GENERAL SERVICE 50 TO 4,999 KW - TIME OF USE | I40: Rate Rider for Deferral/Variance Account Disposition (2014) - effective until April 30, 2015 | AA40: Meter Interrogation Charge | AL40: Kingston Hydro Corporation | AM40: Kingston Hydro Corporation | AO40: GENERAL SERVICE ENERGY BILLED (LESS THAN TO 50 KW) [GSE-UNMETERED] | AP40: kWh
A41: GENERAL SERVICE 50 TO 4,999 KW (COGENERATION) | I41: Rate Rider for Deferral/Variance Account Disposition (2014) - effective until December 31, 2014 | AA41: Missed Service Appointment | AL41: Kitchener-Wilmot Hydro Inc. | AM41: Kitchener-Wilmot Hydro Inc. | AO41: GENERAL SERVICE EQUAL TO OR GREATER THAN 1,500 KW | AP41: kW
A42: GENERAL SERVICE 50 TO 4,999 KW (FORMERLY TIME OF USE) | I42: Rate Rider for Deferral/Variance Account Disposition (2014) - effective until December 31, 2015 | AA42: Norfolk Pole Rentals – Billed | AL42: Lakefront Utilities Inc. | AM42: Lakefront Utilities Inc. | AO42: GENERAL SERVICE EQUAL TO OR GREATER THAN 1,500 KW - INTERVAL METERED | AP42: kW
A43: GENERAL SERVICE 50 TO 4,999 KW SERVICE CLASSIFICATION | I43: Rate Rider for Deferral/Variance Account Dispositon (2012) - effective until April 30, 2016 | AA43: Optional Interval/TOU Meter charge $/month | AL43: Lakeland Power Distribution Ltd. | AM43: Lakeland Power Distribution Ltd. | AO43: GENERAL SERVICE GREATER THAN 1,000 KW | AP43: kW
A44: GENERAL SERVICE 50 to 4,999 kWSERVICE CLASSIFICATION | I44: Rate Rider for Disposition of Accounting Changes Under CGAAP Account 1576 - effective until April 30, 2016 | AA44: Overtime Locate | AL44: London Hydro Inc. | AM44: London Hydro Inc. | AO44: GENERAL SERVICE GREATER THAN 50 kW - WMP | AP44: kW
A45: GENERAL SERVICE 50 TO 499 KW | I45: Rate Rider for Disposition of Deferral/Variance Accounts (2010) - effective until December 31, 2014 | AA45: Owner Requested Disconnection/Reconnection – after regular hours | AL45: Midland Power Utility Corporation | AM45: Midland Power Utility Corporation | AO45: GENERAL SERVICE INTERMEDIATE 1,000 TO 4,999 KW | AP45: kW
A46: GENERAL SERVICE 50 to 499 kW SERVICE CLASSIFICATION | I46: Rate Rider for Disposition of Deferral/Variance Accounts (2011) - effective until April 30, 2015 | AA46: Owner Requested Disconnection/Reconnection – during regular hours | AL46: Milton Hydro Distribution Inc. | AM46: Milton Hydro Distribution Inc. | AO46: GENERAL SERVICE INTERMEDIATE RATE CLASS 1,000 TO 4,999 KW (FORMERLY GENERAL SERVICE > 50 KW CUSTOMERS) | AP46: kW
A47: GENERAL SERVICE 50 TO 699 KW | I47: Rate Rider for Disposition of Deferral/Variance Accounts (2011) - effective until April 30, 2016 | AA47: Returned cheque (plus bank charges) | AL47: Newmarket - Tay Power Distribution Ltd. | AM47: Newmarket - Tay Power Distribution Ltd. | AO47: GENERAL SERVICE INTERMEDIATE RATE CLASS 1,000 TO 4,999 KW (FORMERLY LARGE USE CUSTOMERS) | AP47: kW
A48: GENERAL SERVICE 50 TO 699 KW SERVICE CLASSIFICATION | I48: Rate Rider for Disposition of Deferral/Variance Accounts (2012) - effective until April 30, 2014 | AA48: Rural system expansion / line connection fee | AL48: Niagara Peninsula Energy Inc. | AM48: Niagara Peninsula Energy Inc. | AO48: GENERAL SERVICE LESS THAN 50 KW | AP48: kWh
A49: GENERAL SERVICE 50 TO 999 KW | I49: Rate Rider for Disposition of Deferral/Variance Accounts (2012) - effective until April 30, 2015 | AA49: Same Day Open Trench | AL49: Niagara-on-the-Lake Hydro Inc. | AM49: Niagara-on-the-Lake Hydro Inc. | AO49: GENERAL SERVICE LESS THAN 50 KW - SINGLE PHASE ENERGY-BILLED [G1] | AP49: kWh
A50: GENERAL SERVICE 50 TO 999 KW - INTERVAL METERED | I50: Rate Rider for Disposition of Deferral/Variance Accounts (2012) - effective until April 30, 2016 | AA50: Scheduled Day Open Trench | AL50: Norfolk Power Distribution Inc. | AM50: Norfolk Power Distribution Inc. | AO50: GENERAL SERVICE LESS THAN 50 KW - THREE PHASE ENERGY-BILLED [G3] | AP50: kWh
A51: GENERAL SERVICE 50 to 999 kW SERVICE CLASSIFICATION | I51: Rate Rider for Disposition of Deferral/Variance Accounts (2012) - effective until August 31, 2014 | AA51: Service call – after regular hours | AL51: North Bay Hydro Distribution Limited | AM51: North Bay Hydro Distribution Limited | AO51: GENERAL SERVICE LESS THAN 50 KW - TRANSMISSION CLASS ENERGY-BILLED [T] | AP51: kWh
A52: GENERAL SERVICE 500 TO 1,499 KW SERVICE CLASSIFICATION | I52: Rate Rider for Disposition of Deferral/Variance Accounts (2012) - effective until December 31, 2015 | AA52: Service call – customer owned equipment | AL52: Northern Ontario Wires Inc. | AM52: Northern Ontario Wires Inc. | AO52: GENERAL SERVICE LESS THAN 50 KW - URBAN ENERGY-BILLED [UG] | AP52: kWh
A53: GENERAL SERVICE 500 TO 4,999 KW | I53: Rate Rider for Disposition of Deferral/Variance Accounts (2012) - effective until December 31, 2016 Applicable only in the former service area of Clinton Power | AA53: Service Call – Customer-owned Equipment – After Regular Hours | AL53: Oakville Hydro Electricity Distribution Inc. | AM53: Oakville Hydro Electricity Distribution Inc. | AO53: GENERAL SERVICE SINGLE PHASE - G1 | AP53: kW
A54: GENERAL SERVICE 500 to 4,999 kW SERVICE CLASSIFICATION | I54: Rate Rider for Disposition of Deferral/Variance Accounts (2012) – effective until December 31, 2016 Applicable only in the former service area of Clinton Power | AA54: Service Call – Customer-owned Equipment – During Regular Hours | AL54: Orangeville Hydro Limited | AM54: Orangeville Hydro Limited | AO54: GENERAL SERVICE THREE PHASE - G3 | AP54: kW
A55: GENERAL SERVICE 700 TO 4,999 KW | I55: Rate Rider for Disposition of Deferral/Variance Accounts (2012) - effective until January 31, 2014 | AA55: Service Charge for onsite interrogation of interval meter due to customer phone line failure - required weekly until line repaired $ 6 | AL55: Orillia Power Distribution Corporation | AM55: Orillia Power Distribution Corporation | AO55: INTERMEDIATE USERS | AP55: kW
A56: GENERAL SERVICE 700 TO 4,999 KW SERVICE CLASSIFICATION | I56: Rate Rider for Disposition of Deferral/Variance Accounts (2012) - effective until June 30, 2014 | AA56: Service Layout - Commercial | AL56: Oshawa PUC Networks Inc. | AM56: Oshawa PUC Networks Inc. | AO56: INTERMEDIATE WITH SELF GENERATION | AP56: kW
A57: GENERAL SERVICE DEMAND BILLED (50 KW AND ABOVE) [GSD] | I57: Rate Rider for Disposition of Deferral/Variance Accounts (2013) - Applicable only to Wholesale Market Participants - effective until April 30, 2015 | AA57: Service Layout - ResidentiaI | AL57: Ottawa River Power Corporation | AM57: Ottawa River Power Corporation | AO57: LARGE USE | AP57: kW
A58: GENERAL SERVICE ENERGY BILLED (LESS THAN 50 KW) [GSE-METERED] | I58: Rate Rider for Disposition of Deferral/Variance Accounts (2013) - effective until April 30, 2014 | AA58: Special Billing Service (sub-metering charge per meter) | AL58: Parry Sound Power Corporation | AM58: Parry Sound Power Corporation | AO58: LARGE USE - 3TS | AP58: kW
A59: GENERAL SERVICE ENERGY BILLED (LESS THAN TO 50 KW) [GSE-UNMETERED] | I59: Rate Rider for Disposition of Deferral/Variance Accounts (2013) - effective until April 30, 2015 | AA59: Special meter reads | AL59: Peterborough Distribution Incorporated | AM59: Peterborough Distribution Incorporated | AO59: LARGE USE - FORD ANNEX | AP59: kW
A60: GENERAL SERVICE EQUAL TO OR GREATER THAN 1,500 KW | I60: Rate Rider for Disposition of Deferral/Variance Accounts (2013) - effective until April 30, 2015 - not applicable to Wholesale Market Participants | AA60: Specific Charge for Access to the Power Poles - $/pole/year | AL60: PowerStream Inc. | AM60: PowerStream Inc. | AO60: LARGE USE - REGULAR | AP60: kW
A61: GENERAL SERVICE EQUAL TO OR GREATER THAN 1,500 KW - INTERVAL METERED | I61: Rate Rider for Disposition of Deferral/Variance Accounts (2013) - effective until April 30, 2017 | AA61: Specific Charge for Bell Canada Access to the Power Poles – per pole/year | AL61: PUC Distribution Inc. | AM61: PUC Distribution Inc. | AO61: LARGE USE > 5000 KW | AP61: kW
A62: GENERAL SERVICE EQUAL TO OR GREATER THAN 1,500 KW SERVICE CLASSIFICATION | I62: Rate Rider for Disposition of Deferral/Variance Accounts (2013) - effective until August 31, 2014 | AA62: Switching for company maintenance – Charge based on Time and Materials | AL62: Renfrew Hydro Inc. | AM62: Renfrew Hydro Inc. | AO62: microFIT | AP62: $
A63: GENERAL SERVICE GREATER THAN 1,000 KW | I63: Rate Rider for Disposition of Deferral/Variance Accounts (2013) - effective until December 31, 2014 | AA63: Temporary Service – Install & remove – overhead – no transformer | AL63: Rideau St. Lawrence Distribution Inc. | AM63: Rideau St. Lawrence Distribution Inc. | AO63: RESIDENTIAL | AP63: kWh
A64: GENERAL SERVICE GREATER THAN 50 kW - WMP | I64: Rate Rider for Disposition of Deferral/Variance Accounts (2013) - effective until May 31, 2014 | AA64: Temporary Service – Install & remove – overhead – with transformer | AL64: Sioux Lookout Hydro Inc. | AM64: Sioux Lookout Hydro Inc. | AO64: RESIDENTIAL - HENSALL | AP64: kWh
A65: GENERAL SERVICE INTERMEDIATE 1,000 TO 4,999 KW | I65: Rate Rider for Disposition of Deferral/Variance Accounts (2014) - effective until December 31, 2015 | AA65: Temporary Service – Install & remove – underground – no transformer | AL65: St. Thomas Energy Inc. | AM65: St. Thomas Energy Inc. | AO65: RESIDENTIAL - HIGH DENSITY [R1] | AP65: kWh
A66: GENERAL SERVICE INTERMEDIATE RATE CLASS 1,000 TO 4,999 KW (FORMERLY GENERAL SERVICE > 50 KW CUSTOMERS) | I66: Rate Rider for Disposition of Deferred PILs Variance Account 1562 - effective until March 31, 2016 | AA66: Temporary service install & remove – overhead – no transformer | AL66: Thunder Bay Hydro Electricity Distribution Inc. | AM66: Thunder Bay Hydro Electricity Distribution Inc. | AO66: RESIDENTIAL - LOW DENSITY [R2] | AP66: kWh
A67: GENERAL SERVICE INTERMEDIATE RATE CLASS 1,000 TO 4,999 KW (FORMERLY LARGE USE CUSTOMERS) | I67: Rate Rider for Disposition of Deferred PILs Variance Account 1562 (2012) - effective until April 30, 2015 | AA67: Temporary Service Install & Remove – Overhead – With Transformer | AL67: Tillsonburg Hydro Inc. | AM67: Tillsonburg Hydro Inc. | AO67: RESIDENTIAL - MEDIUM DENSITY [R1] | AP67: kWh
A68: GENERAL SERVICE LESS THAN 50 KW | I68: Rate Rider for Disposition of Deferred PILs Variance Account 1562 (2012) - effective until April 30, 2016 | AA68: Temporary Service Install & Remove – Underground – No Transformer | AL68: Toronto Hydro-Electric System Limited | AM68: Toronto Hydro-Electric System Limited | AO68: RESIDENTIAL - NORMAL DENSITY [R2] | AP68: kWh
A69: GENERAL SERVICE LESS THAN 50 KW - SINGLE PHASE ENERGY-BILLED [G1] | I69: Rate Rider for Disposition of Deferred PILs Variance Account 1562 (2nd Installment - 2012) - effective until April 30, 2016 | AA69: Temporary service installation and removal – overhead – no transformer | AL69: Veridian Connections Inc. | AM69: Veridian Connections Inc. | AO69: RESIDENTIAL - TIME OF USE | AP69: kWh
A70: GENERAL SERVICE LESS THAN 50 KW - THREE PHASE ENERGY-BILLED [G3] | I70: Rate Rider for Disposition of Deferred PILs Variance Account 1562 (per connection) (2012) - effective until April 30, 2015 | AA70: Temporary service installation and removal – overhead – with transformer | AL70: Wasaga Distribution Inc. | AM70: Wasaga Distribution Inc. | AO70: RESIDENTIAL - URBAN [UR] | AP70: kWh
A71: GENERAL SERVICE LESS THAN 50 KW - TRANSMISSION CLASS ENERGY-BILLED [T] | I71: Rate Rider for Disposition of Deferred PILs Variance Account 1562 (per connection) (2012) - effective until April 30, 2016 | AA71: Temporary service installation and removal – underground – no transformer | AL71: Waterloo North Hydro Inc. | AM71: Waterloo North Hydro Inc. | AO71: RESIDENTIAL REGULAR | AP71: kWh
A72: GENERAL SERVICE LESS THAN 50 KW - URBAN ENERGY-BILLED [UG] | I72: Rate Rider for Disposition of Global Adjustment Sub-Account (2011) - effective until April 30, 2015 Applicable only for Non-RPP Customers | AL72: Welland Hydro-Electric System Corp. | AM72: Welland Hydro-Electric System Corp. | AO72: RESIDENTIAL SUBURBAN | AP72: kWh
A73: GENERAL SERVICE LESS THAN 50 kW SERVICE CLASSIFICATION | I73: Rate Rider for Disposition of Global Adjustment Sub-Account (2011) - effective until April 30, 2016 Applicable only for Non-RPP Customers | AL73: Wellington North Power Inc. | AM73: Wellington North Power Inc. | AO73: RESIDENTIAL SUBURBAN SEASONAL | AP73: kWh
A74: GENERAL SERVICE SINGLE PHASE - G1 | I74: Rate Rider for Disposition of Global Adjustment Sub-Account (2012) - effective until April 30, 2014 Applicable only for Non-RPP Customers | AL74: West Coast Huron Energy Inc. | AM74: West Coast Huron Energy Inc. | AO74: RESIDENTIAL SUBURBAN YEAR ROUND | AP74: kWh
A75: GENERAL SERVICE THREE PHASE - G3 | I75: Rate Rider for Disposition of Global Adjustment Sub-Account (2012) - effective until April 30, 2015 Applicable only for Non-RPP Customers | AL75: Westario Power Inc. | AM75: Westario Power Inc. | AO75: RESIDENTIAL URBAN | AP75: kWh
A76: GENERAL SERVICELESS THAN 50 kWSERVICE CLASSIFICATION | I76: Rate Rider for Disposition of Global Adjustment Sub-Account (2012) - effective until April 30, 2015 Applicatble only for Non-RPP Customers | AL76: Whitby Hydro Electric Corporation | AM76: Whitby Hydro Electric Corporation | AO76: RESIDENTIAL URBAN YEAR-ROUND | AP76: kWh
A77: INTERMEDIATE USER SERVICE CLASSIFICATION | I77: Rate Rider for Disposition of Global Adjustment Sub-Account (2012) - effective until April 30, 2016 Applicable only for Non-RPP Customers | AL77: Woodstock Hydro Services Inc. | AM77: Woodstock Hydro Services Inc. | AO77: SEASONAL RESIDENTIAL | AP77: kWh
A78: INTERMEDIATE USERS | I78: Rate Rider for Disposition of Global Adjustment Sub-Account (2012) - effective until January 31, 2014. Applicable only for Non-RPP Customers | AO78: SEASONAL RESIDENTIAL - HIGH DENSITY [R3] | AP78: kWh
A79: INTERMEDIATE WITH SELF GENERATION | I79: Rate Rider for Disposition of Global Adjustment Sub-Account (2012) - effective until June 30, 2014 Applicable only for Non-RPP Customers | AO79: SEASONAL RESIDENTIAL - NORMAL DENSITY [R4] | AP79: kWh
A80: LARGE USE | I80: Rate Rider for Disposition of Global Adjustment Sub-Account (2012) Applicable only for Non-RPP Customers - effective until August 31, 2014 | AO80: SENTINEL LIGHTING | AP80: kW
A81: LARGE USE - 3TS | I81: Rate Rider for Disposition of Global Adjustment Sub-Account (2012) Applicable only to Non-RPP Customers - effective until August 31, 2014 | AO81: SMALL COMMERCIAL AND USL - PER CONNECTION | AP81: kWh
A82: LARGE USE - 3TS SERVICE CLASSIFICATION | I82: Rate Rider for Disposition of Global Adjustment Sub-Account (2013) - effective until April 30, 2014 Applicable only for Non-RPP Customers | AO82: SMALL COMMERCIAL AND USL - PER METER | AP82: kWh
A83: LARGE USE - FORD ANNEX | I83: Rate Rider for Disposition of Global Adjustment Sub-Account (2013) - effective until April 30, 2015 Applicable only for Non-RPP Customers | AO83: STANDARD A GENERAL SERVICE AIR ACCESS | AP83: kWh
A84: LARGE USE - FORD ANNEX SERVICE CLASSIFICATION | I84: Rate Rider for Disposition of Global Adjustment Sub-Account (2013) - effective until April 30, 2015 Applicable only for Non-RPP Customers and excluding Wholesale Market Participants | AO84: STANDARD A GENERAL SERVICE ROAD/RAIL | AP84: kWh
A85: LARGE USE - REGULAR | I85: Rate Rider for Disposition of Global Adjustment Sub-Account (2013) - effective until April 30, 2017 Applicable only for Non-RPP Customers | AO85: STANDARD A GRID CONNECTED | AP85: kWh
A86: LARGE USE - REGULAR SERVICE CLASSIFICATION | I86: Rate Rider For Disposition of Global Adjustment Sub-Account (2013) - effective until August 31, 2014 Applicable only for Non-RPP Customers | AO86: STANDARD A RESIDENTIAL AIR ACCESS | AP86: kWh
A87: LARGE USE > 5000 KW | I87: Rate Rider for Disposition of Global Adjustment Sub-Account (2013) - effective until December 31, 2014 Applicable only for Non-RPP Customers | AO87: STANDARD A RESIDENTIAL ROAD/RAIL | AP87: kWh
A88: LARGE USE SERVICE CLASSIFICATION | I88: Rate Rider for Disposition of Global Adjustment Sub-Account (2013) - effective until May 31, 2014 Applicable only for Non-RPP Customers | AO88: STANDBY - GENERAL SERVICE 1,000 - 5,000 KW | AP88: kW
A89: LARGE USE WITH DEDICATED ASSETS SERVICE CLASSIFICATION | I89: Rate Rider for Disposition of Global Adjustment Sub-Account (2014) - effective until December 31, 2014. Applicable only for Non-RPP - Class B Customers | AO89: STANDBY - GENERAL SERVICE 50 - 1,000 KW | AP89: kW
A90: LARGE USESERVICE CLASSIFICATION | I90: Rate Rider for Disposition of Global Adjustment Sub-Account (2014) - effective until December 31, 2014. Applicable only for Non-RPP Customers | AO90: STANDBY - LARGE USE | AP90: kW
A91: LOSS FACTORS | I91: Rate Rider for Disposition of Global Adjustment Sub-Account (2014) - effective until December 31, 2014. Applicable only for Non-RPP Customers - Class A Customers | AO91: STANDBY DISTRIBUTION SERVICE | AP91: kW
A92: microFIT | I92: Rate Rider for Disposition of Global Adjustment Sub-Account (2014) - effective until December 31, 2014. Applicable only for Non-RPP Customers - Interval Metered | AO92: STANDBY POWER | AP92: kW
A93: MICROFIT GENERATOR SERVICE CLASSIFICATION | I93: Rate Rider for Disposition of Global Adjustment Sub-Account (2014) - effective until December 31, 2014. Applicable only for Non-RPP Customers - Non Interval Metered | AO93: STANDBY POWER - APPROVED ON AN INTERIM BASIS | AP93: kW
A94: microFIT SERVICE CLASSIFICATION | I94: Rate Rider for Disposition of Global Adjustment Sub-Account (2014) - effective until December 31, 2015. Applicable only for Non-RPP Customers. | AO94: STANDBY POWER GENERAL SERVICE 1,500 TO 4,999 KW | AP94: kW
A95: microFITGENERATOR SERVICE CLASSIFICATION | I95: Rate Rider for Disposition of Post Retirement Actuarial Gain - effective until March 31, 2025 | AO95: STANDBY POWER GENERAL SERVICE 50 TO 1,499 KW | AP95: kW
A96: MONTHLY RATES AND CHARGES–DELIVERY COMPONENT-APPROVED ON AN INTERIM | I96: Rate Rider for Disposition of Residual Hisotrical Smart Meter Costs - effective until April 30, 2015 | AO96: STANDBY POWER GENERAL SERVICE LARGE USE | AP96: kW
A97: NON STANDARD A GENERAL SERVICE SINGLE PHASE SERVICE CLASSIFICATION – G1 | I97: Rate Rider for Disposition of Residual Hisotrical Smart Meter Costs - effective until April 30, 2017 | AO97: STREET LIGHTING | AP97: kW
A98: NON STANDARD A GENERAL SERVICE THREE PHASE SERVICE CLASSIFICATION – G3 | I98: Rate Rider for Disposition of Residual Historical Smart Meter Costs - effective until April 30, 2014 | AO98: SUB TRANSMISSION [ST] | AP98: kW
A99: NON STANDARD A SEASONAL RESIDENTIAL SERVICE CLASSIFICATION – R4 | I99: Rate Rider for Disposition of Residual Historical Smart Meter Costs - effective until April 30, 2016 | AO99: UNMETERED SCATTERED LOAD | AP99: kWh
A100: NON STANDARD A YEAR ROUND RESIDENTIAL SERVICE CLASSIFICATION – R2 | I100: Rate Rider for Disposition of Residual Historical Smart Meter Costs - effective until August 31, 2014 | AO100: URBAN GENERAL SERVICE DEMAND BILLED (50 KW AND ABOVE) [UGD] | AP100: kW
A101: ONTARIO ELECTRICITY SUPPORT PROGRAM RECIPIENTS | I101: Rate Rider for Disposition of Residual Historical Smart Meter Costs - effective until August 31, 2015 | AO101: URBAN GENERAL SERVICE ENERGY BILLED (LESS THAN 50 KW) [UGE] | AP101: kWh
A102: RESIDENTIAL | I102: Rate Rider for Disposition of Residual Historical Smart Meter Costs - effective until December 31, 2014 | AO102: WESTPORT SEWAGE TREATMENT PLANT | AP102: kW
A103: RESIDENTIAL - HENSALL | I103: Rate Rider for Disposition of Residual Historical Smart Meter Costs – effective until December 31, 2014 | AO103: YEAR-ROUND RESIDENTIAL - R2 | AP103: kWh
A104: RESIDENTIAL - HIGH DENSITY [R1] | I104: Rate Rider for Disposition of Residual Historical Smart Meter Costs - effective until December 31, 2015
A105: RESIDENTIAL - LOW DENSITY [R2] | I105: Rate Rider for Disposition of Residual Historical Smart Meter Costs - effective until December 31, 2016
A106: RESIDENTIAL - MEDIUM DENSITY [R1] | I106: Rate Rider for Disposition of Residual Historical Smart Meter Costs - effective until October 31, 2014
A107: RESIDENTIAL - NORMAL DENSITY [R2] | I107: Rate Rider for Disposition of Residual Historical Smart Meter Costs - effective until September 30, 2014
A108: RESIDENTIAL - TIME OF USE | I108: Rate Rider for Disposition of Residual Historical Smart Meter Costs - Non-Interval Metered - effective until April 30, 2014
A109: RESIDENTIAL - URBAN [UR] | I109: Rate Rider for Disposition of Residual Historical Smart Meter Costs 2 - in effect until the effective date of the next cost of service-based rate order
A110: RESIDENTIAL REGULAR | I110: Rate Rider for Disposition of Residual Historical Smart Meter Costs 3 - in effect until the effective date of the next cost of service-based rate order
A111: RESIDENTIAL SERVICE CLASSIFICATION | I111: Rate Rider for Disposition of Residual Incremental Historical Smart Meter Costs - effective until August 31, 2015
A112: RESIDENTIAL SUBURBAN | I112: Rate Rider for Disposition of Stranded Meter costs - effective until April 30, 2015
A113: RESIDENTIAL SUBURBAN SEASONAL | I113: Rate Rider for Disposition of Stranded Meter Costs - effective until April 30, 2016
A114: RESIDENTIAL SUBURBAN YEAR ROUND | I114: Rate Rider for Disposition of Stranded Meter Costs - effective until April 30, 2017
A115: RESIDENTIAL URBAN | I115: Rate Rider for Global Adjustment Sub Account Disposition - effective until April 30, 2016 Applicable only for Non RPP Customers
A116: RESIDENTIAL URBAN YEAR-ROUND | I116: Rate Rider for Global Adjustment Sub-Account Disposition (2014) - effective until April 28, 2016 Applicable only for Non-RPP Customers
A117: RETAIL SERVICE CHARGES (if applicable) | I117: Rate Rider for Global Adjustment Sub-Account Disposition (2014) - effective until April 30, 2015 Applicable only for Non-RPP Customers
A118: SEASONAL RESIDENTIAL | I118: Rate Rider for Global Adjustment Sub-Account Disposition (2014) - effective until December 30, 2015 Applicable only for Non-RPP Customers
A119: SEASONAL RESIDENTIAL - HIGH DENSITY [R3] | I119: Rate Rider for Global Adjustment Sub-Account Disposition (2014) - effective until December 31, 2014 Applicable only for Non-RPP Customers
A120: SEASONAL RESIDENTIAL - NORMAL DENSITY [R4] | I120: Rate Rider for Global Adjustment Sub-Account Disposition (2014) - effective until December 31, 2015 Applicable only for Non-RPP Customers
A121: SEASONAL RESIDENTIAL SERVICE CLASSIFICATION | I121: Rate Rider for Global Adjustment Sub-Account Disposition Applicable only for Non-RPP Customers - effective until April 30, 2015
A122: SENTINEL LIGHTING | I122: Rate Rider for Incremental Capital - Distribution Volumetric - effective until April 30, 2016
A123: SENTINEL LIGHTING SERVICE CLASSIFICATION | I123: Rate Rider for Incremental Capital - Service Charge - effective until April 30, 2016
A124: SMALL COMMERCIAL AND USL - PER CONNECTION | I124: Rate Rider for Incremental Capital (2012) - effective until April 30, 2015
A125: SMALL COMMERCIAL AND USL - PER METER | I125: Rate Rider for Lost Revenue Adjustment Mechanism Variance Account (LRAMVA) Recovery (2012 CDM Activities) - effective until April 30, 2015
A126: SPECIFIC SERVICE CHARGES | I126: Rate Rider for Recover of Residual Historical Smart meter Costs - effective until June 30, 2014
A127: SPECIFIC SERVICE CHARGES | I127: Rate Rider for Recovery of CGAAP/CWIP Differential - in effect until December 31, 2016
A128: STANDARD A GENERAL SERVICE AIR ACCESS | I128: Rate Rider for Recovery of Foregone Revenue - effective until April 30, 2015
A129: STANDARD A GENERAL SERVICE AIR ACCESS SERVICE CLASSIFICATION | I129: Rate Rider for Recovery of Forgone Revenue - effective until April 30, 2015
A130: STANDARD A GENERAL SERVICE ROAD/RAIL | I130: Rate Rider for Recovery of Forgone Revenue - effective until December 31, 2014
A131: STANDARD A GENERAL SERVICE ROAD/RAIL ACCESS SERVICE CLASSIFICATION | I131: Rate Rider for Recovery of Green Energy Act related costs - effective until December 31, 2014
A132: STANDARD A GRID CONNECTED | I132: Rate Rider for Recovery of Incremental Capital (2013) - in effect until the effective date of the next cost of service-based rate order
A133: STANDARD A GRID CONNECTED SERVICE CLASSIFICATION | I133: Rate Rider for Recovery of Incremental Capital (2013) - in effect until the effective date of the next cost of service-based rate order
A134: STANDARD A RESIDENTIAL AIR ACCESS | I134: Rate Rider for Recovery of Incremental Capital (2013) (per connection) - in effect until the effective date of the next cost of service-based rate order
A135: STANDARD A RESIDENTIAL AIR ACCESS SERVICE CLASSIFICATION | I135: Rate Rider for Recovery of Incremental Capital (2013) (per connection)- in effect until the effective date of the next cost of service-based rate order
A136: STANDARD A RESIDENTIAL ROAD/RAIL | I136: Rate Rider for Recovery of Incremental Capital Costs
A137: STANDARD A RESIDENTIAL ROAD/RAIL ACCESS SERVICE CLASSIFICATION | I137: Rate Rider for Recovery of Incremental Capital Costs - effective until April 30, 2015
A138: STANDBY - GENERAL SERVICE 1,000 - 5,000 KW | I138: Rate Rider for Recovery of Incremental Capital Module Costs (2014) - in effect until the effective date of the next cost of service-based rate order
A139: STANDBY - GENERAL SERVICE 50 - 1,000 KW | I139: Rate Rider for Recovery of Incremental Capital Module Costs (2014) - in effect until the effective date of the next cost of service-based rate order
A140: STANDBY - LARGE USE | I140: Rate Rider for Recovery of Lost Revenue Adjustment Mechanism ( LRAM)/Shared Savings Mechanism (SSM) (2012) - effective until August 31, 2014
A141: STANDBY DISTRIBUTION SERVICE | I141: Rate Rider for Recovery of Lost Revenue Adjustment Mechanism (2013) - effective until December 31, 2014
A142: STANDBY DISTRIBUTION SERVICE CLASSIFICATION | I142: Rate Rider for Recovery of Lost Revenue Adjustment Mechanism (LRAM) - effective until April 30, 2016
A143: STANDBY POWER | I143: Rate Rider for Recovery of Lost Revenue Adjustment Mechanism (LRAM) (pre-2011 CDM Activities) - effective until April 30, 2015
A144: STANDBY POWER - APPROVED ON AN INTERIM BASIS | I144: Rate Rider for Recovery of Lost Revenue Adjustment Mechanism (LRAM) (pre-2011 CDM Activities) (2013) - effective until April 30, 2015
A145: STANDBY POWER GENERAL SERVICE 1,500 TO 4,999 KW | I145: Rate Rider for Recovery of Lost Revenue Adjustment Mechanism (LRAM)/Shared Savings
A146: STANDBY POWER GENERAL SERVICE 50 TO 1,499 KW | I146: Rate Rider for Recovery of Lost Revenue Adjustment Mechanism (LRAM)/Shared Savings Mechanism (SSM) - effective until December 31, 2018 and applicable in the service area excluding the former service areas of Clinton Power and West Perth Power
A147: STANDBY POWER GENERAL SERVICE LARGE USE | I147: Rate Rider for Recovery of Lost Revenue Adjustment Mechanism (LRAM)/Shared Savings Mechanism (SSM) - effective until December 31, 2014 and applicable in the service area excluding the former service areas of Clinton Power and West Perth Power
A148: STANDBY POWER SERVICE | I148: Rate Rider for Recovery of Lost Revenue Adjustment Mechanism (LRAM)/Shared Savings Mechanism (SSM) - effective until December 31, 2014 and applicable only in the former service area of Clinton Power
A149: STANDBY POWER SERVICE CLASSIFICATION | I149: Rate Rider for Recovery of Lost Revenue Adjustment Mechanism (LRAM)/Shared Savings Mechanism (SSM) - effective until December 31, 2014 and applicable only in the former service area of West Perth Power
A150: STANDBY POWER SERVICE CLASSIFICATION | I150: Rate Rider for Recovery of Lost Revenue Adjustment Mechanism (LRAM)/Shared Savings Mechanism (SSM) - effective until December 31, 2014 and applicable in the service area excluding the former service area of Clinton Power
A151: STANDBY POWERSERVICE CLASSIFICATION | I151: Rate Rider for Recovery of Lost Revenue Adjustment Mechanism (LRAM)/Shared Savings Mechanism (SSM) - effective until March 31, 2016
A152: STREET LIGHTING | I152: Rate Rider for Recovery of Lost Revenue Adjustment Mechanism (LRAM)/Shared Savings Mechanism (SSM) (2012) - effective until August 31, 2014
A153: STREET LIGHTING SERVICE CLASSIFICATION | I153: Rate Rider for Recovery of Lost Revenue Adjustment Mechanism (LRAM)/Shared Savings Mechanism (SSM) Recovery - effective until April 30, 2015
A154: SUB TRANSMISSION [ST] | I154: Rate Rider for Recovery of Lost Revenue Adjustment Mechanism Variance Account (LRAMVA) (2014) - effective until April 30, 2015
A155: UNMETERED SCATTERED LOAD | I155: Rate Rider for Recovery of Residual Historical Smart Meter Costs - effective July 1, 2012 - April 30, 2016
A156: UNMETERED SCATTERED LOAD SERVICE CLASSIFICATION | I156: Rate Rider for Recovery of Smart Meter Incremental Revenue Requirement - effective until the date of the next cost of service-based rate order
A157: URBAN GENERAL SERVICE DEMAND BILLED (50 KW AND ABOVE) [UGD] | I157: Rate Rider for Recovery of Smart Meter Incremental Revenue Requirement - effective until the effective date of the next cost of service-based rate order, or October 31, 2017, whichever occurs earlier
A158: URBAN GENERAL SERVICE ENERGY BILLED (LESS THAN 50 KW) [UGE] | I158: Rate Rider for Recovery of Smart Meter Incremental Revenue Requirement - in effect until the effective date of the next cost of service-based rate order
A159: WESTPORT SEWAGE TREATMENT PLANT | I159: Rate Rider for Recovery of Smart Meter Incremental Revenue Requirement - Non-Interval Metered - in effect until the effective date of the next cost of service-based rate order
A160: YEAR-ROUND RESIDENTIAL - R2 | I160: Rate Rider for Recovery of Smart Meter Incremental Revenue Requirements - in effect until the effective date of the next cost of service application
I161: Rate Rider for Recovery of Smart Meter Stranded Assets - effective until April 30, 2016
I162: Rate Rider for Recovery of Storm Damage Costs - effective until August 31, 2017
I163: Rate Rider for Recovery of Stranded Assets - effective until April 30, 2016
I164: Rate Rider for Recovery of Stranded Meter Assets - effective July 1, 2012 - April 30, 2016
I165: Rate Rider for Recovery of Stranded Meter Assets – effective until April 30, 2015
I166: Rate Rider for Recovery of Stranded Meter Assets - effective until April 30, 2016
I167: Rate Rider for Recovery of Stranded Meter Assets - effective until April 30, 2017
I168: Rate Rider for Recovery of Stranded Meter Assets - effective until August 31, 2015
I169: Rate Rider for Recovery of Stranded Meter Assets - effective until August 31, 2017
I170: Rate Rider for Recovery of Stranded Meter Assets - effective until December 31, 2014
I171: Rate Rider for Recovery of Stranded Meter Assets - effective until December 31, 2015
I172: Rate Rider for Recovery of Stranded Meter Assets - effective until June 30, 2016
I173: Rate Rider for Recovery of Stranded Meter Assets - effective until March 31, 2016
I174: Rate Rider for Recovery of Stranded Meter Assets - effective until May 31, 2014
I175: Rate Rider for Reversal of Deferral/Variance Account Disposition (2011) - effective until April 30, 2015
I176: Rate Rider for Smart Meter Disposition - effective until April 30, 2016
I177: Rate Rider for Smart Meter Incremental Revenue Requirement - in effect until the effective date of the next cost of service-based rate order
I178: Rate Rider for Smart Metering Entity Charge - effective until October 31, 2018
I179: Rate Rider for Stranded Meter Cost Recovery - effective until April 30, 2017
I180: Rate Rider for Tax Change
I181: Rate Rider for Tax Change - effective until April 30, 2015
I182: Rate Rider for Tax Change (2014) - effective until April 30, 2015
I183: Retail Transmission Rate - Line and Transformation Connection Service Rate
I184: Retail Transmission Rate - Line and Transformation Connection Service Rate - (less than 1,000 kW)
I185: Retail Transmission Rate - Line and Transformation Connection Service Rate - Interval Metered
I186: Retail Transmission Rate - Line and Transformation Connection Service Rate - Interval Metered (1,000 to 4,999 kW)
I187: Retail Transmission Rate - Line and Transformation Connection Service Rate - Interval Metered (less than 1,000 kW)
I188: Retail Transmission Rate - Line and Transformation Connection Service Rate - Interval Metered < 1,000 kW
I189: Retail Transmission Rate - Line and Transformation Connection Service Rate FOR ALL SERVICE AREAS EXCEPT HENSALL
I190: Retail Transmission Rate - Line and Transformation Connection Service Rate - Interval Metered > 1,000 kW
I191: Retail Transmission Rate - Line Connection Service Rate
I192: Retail Transmission Rate - Network Service Rate
I193: Retail Transmission Rate - Network Service Rate - (less than 1,000 kW)
I194: Retail Transmission Rate - Network Service Rate - Interval Metered
I195: Retail Transmission Rate - Network Service Rate - Interval Metered (1,000 to 4,999 kW)
I196: Retail Transmission Rate - Network Service Rate - Interval Metered (less than 1,000 kW)
I197: Retail Transmission Rate - Network Service Rate - Interval Metered > 1,000 kW
I198: Retail Transmission Rate - Transformation Connection Service Rate
I199: Rider for Global Adjustment Sub-Account Disposition (2012) - effective until April 30, 2016 Applicable only for Non-RPP Customers
I200: Rural or Remote Electricity Rate Protection Charge (RRRP)
... 14 more rows

Sheet Sheet2 (hidden)
A1: Algoma Power Inc. | H1: Atikokan Hydro Inc. | N1: =VLOOKUP(H1,A:A,1,0) -> Atikokan Hydro Inc.
A2: Atikokan Hydro Inc. | H2: Bluewater Power Distribution Corporation | N2: =VLOOKUP(H2,A:A,1,0) -> Bluewater Power Distribution Corporation
A3: Bluewater Power Distribution Corporation | H3: Brant County Power Inc. | N3: Brant County Power Inc.
A4: Brant County Power Inc. | H4: Brantford Power Inc. | N4: Brantford Power Inc.
A5: Brantford Power Inc. | H5: Burlington Hydro Inc. | N5: Burlington Hydro Inc.
A6: Burlington Hydro Inc. | H6: Cambridge and North Dumfries Hydro Inc. | N6: Cambridge and North Dumfries Hydro Inc.
A7: Cambridge and North Dumfries Hydro Inc. | H7: Canadian Niagara Power Inc. | N7: Canadian Niagara Power Inc.
A8: Canadian Niagara Power Inc. | H8: Centre Wellington Hydro Ltd. | N8: Centre Wellington Hydro Ltd.
A9: Centre Wellington Hydro Ltd. | H9: Chapleau Public Utilities Corporation | N9: Chapleau Public Utilities Corporation
A10: Chapleau Public Utilities Corporation | H10: Collus PowerStream Corp. | N10: Collus PowerStream Corp.
A11: Collus PowerStream Corp. | H11: Cooperative Hydro Embrun Inc. | N11: Cooperative Hydro Embrun Inc.
A12: Cooperative Hydro Embrun Inc. | H12: E.L.K. Energy Inc. | N12: E.L.K. Energy Inc.
A13: E.L.K. Energy Inc. | H13: Enersource Hydro Mississauga Inc. | N13: Enersource Hydro Mississauga Inc.
A14: Enersource Hydro Mississauga Inc. | H14: Entegrus Powerlines Inc. | N14: Entegrus Powerlines Inc.
A15: Entegrus Powerlines Inc. | H15: EnWin Utilities Ltd. | N15: EnWin Utilities Ltd.
A16: EnWin Utilities Ltd. | H16: Erie Thames Powerlines Corporation | N16: Erie Thames Powerlines Corporation
A17: Erie Thames Powerlines Corporation | H17: Espanola Regional Hydro Distribution Corporation | N17: Espanola Regional Hydro Distribution Corporation
A18: Espanola Regional Hydro Distribution Corporation | H18: Essex Powerlines Corporation | N18: Essex Powerlines Corporation
A19: Essex Powerlines Corporation | H19: Festival Hydro Inc. | N19: Festival Hydro Inc.
A20: Festival Hydro Inc. | H20: Fort Frances Power Corporation | N20: Fort Frances Power Corporation
A21: Fort Frances Power Corporation | H21: Greater Sudbury Hydro Inc. | N21: Greater Sudbury Hydro Inc.
A22: Greater Sudbury Hydro Inc. | H22: Grimsby Power Incorporated | N22: Grimsby Power Incorporated
A23: Grimsby Power Incorporated | H23: Guelph Hydro Electric Systems Inc. | N23: Guelph Hydro Electric Systems Inc.
A24: Guelph Hydro Electric Systems Inc. | H24: Halton Hills Hydro Inc. | N24: Halton Hills Hydro Inc.
A25: Haldimand County Hydro Inc. | H25: Hydro 2000 Inc. | N25: Hydro 2000 Inc.
A26: Halton Hills Hydro Inc. | H26: Hydro Hawkesbury Inc. | N26: Hydro Hawkesbury Inc.
A27: Hearst Power Distribution Company Limited | H27: Hydro One Brampton Networks Inc. | N27: Hydro One Brampton Networks Inc.
A28: Horizon Utilities Corporation | H28: Hydro One Remote Communities Inc. | N28: Hydro One Remote Communities Inc.
A29: Hydro 2000 Inc. | H29: Hydro Ottawa Limited | N29: Hydro Ottawa Limited
A30: Hydro Hawkesbury Inc. | H30: Innpower Corporation | N30: Innpower Corporation
A31: Hydro One Brampton Networks Inc. | H31: Kenora Hydro Electric Corporation Ltd. | N31: Kenora Hydro Electric Corporation Ltd.
A32: Hydro One Networks Inc. | H32: Kingston Hydro Corporation | N32: Kingston Hydro Corporation
A33: Hydro One Remote Communities Inc. | H33: Kitchener-Wilmot Hydro Inc. | N33: Kitchener-Wilmot Hydro Inc.
A34: Hydro Ottawa Limited | H34: Lakefront Utilities Inc. | N34: Lakefront Utilities Inc.
A35: Innpower Corporation | H35: Lakeland Power Distribution Ltd. | N35: Lakeland Power Distribution Ltd.
A36: Kenora Hydro Electric Corporation Ltd. | H36: London Hydro Inc. | N36: London Hydro Inc.
